Body_Code,Body_Name,Service,Posting Date,GL Code,GL Code Desc,Doc Number,Doc Net Amount,Supplier Name
http://statistics.data.gov.uk/id/local-authority/38,Oxfordshire County Council,Continuing Care - Care Homes - 65+,12/02/2024,5687,,3111603537,"-135,907.50",Elysium Neurological Services (Badb
http://statistics.data.gov.uk/id/local-authority/38,Oxfordshire County Council,Continuing Care - Support at Home - U65,12/02/2024,5688,,3111603707,"-99,658.08",Autism at Kingwood Limited
http://statistics.data.gov.uk/id/local-authority/38,Oxfordshire County Council,NURSERY ED FUND,28/02/2024,5537,Payments to Other Establishments,3111616663,"-92,270.88",Annabelles Nursery
http://statistics.data.gov.uk/id/local-authority/38,Oxfordshire County Council,Support at Home U65 Learning Disability,12/02/2024,5688,,3111603988,"-85,558.14",UNITED RESPONSE
http://statistics.data.gov.uk/id/local-authority/38,Oxfordshire County Council,Support at Home U65 HFA,12/02/2024,5688,,3111603993,"-76,206.17",Autism at Kingwood Limited
http://statistics.data.gov.uk/id/local-authority/38,Oxfordshire County Council,Care Homes - Over 65 Memory & Cognition,12/02/2024,5687,,3111605718,"-60,030.97",SANCTUARY CARE PROPERTY (2) LTD
http://statistics.data.gov.uk/id/local-authority/38,Oxfordshire County Council,NURSERY ED FUND,28/02/2024,5537,Payments to Other Establishments,3111616419,"-56,328.48",Julia Durbin Day Nursery
http://statistics.data.gov.uk/id/local-authority/38,Oxfordshire County Council,Continuing Care - Care Homes - 65+,12/02/2024,5687,,3111605721,"-55,725.73",SANCTUARY CARE PROPERTY (2) LTD
http://statistics.data.gov.uk/id/local-authority/38,Oxfordshire County Council,NURSERY ED FUND,28/02/2024,5537,Payments to Other Establishments,3111621889,"-53,598.45",Millbrook Primary School
http://statistics.data.gov.uk/id/local-authority/38,Oxfordshire County Council,COMM DRAWDOWN FUNDNG,14/02/2024,8102,Payments to main contractor,2201198710,"-53,412.35",Milestone Infrastructure Limited
http://statistics.data.gov.uk/id/local-authority/38,Oxfordshire County Council,NURSERY ED FUND,28/02/2024,5537,Payments to Other Establishments,3111617131,"-52,232.69",Banbury School Day Nurse
http://statistics.data.gov.uk/id/local-authority/38,Oxfordshire County Council,NURSERY ED FUND,28/02/2024,5537,Payments to Other Establishments,3111620311,"-51,905.88",The Sunshine Centre
http://statistics.data.gov.uk/id/local-authority/38,Oxfordshire County Council,NURSERY ED FUND,28/02/2024,5537,Payments to Other Establishments,3111619632,"-51,377.08",Sunrise Nursery
http://statistics.data.gov.uk/id/local-authority/38,Oxfordshire County Council,Continuing Care - Care Homes - 65+,12/02/2024,5687,,3111604143,"-48,912.41",METHODIST HOMES
http://statistics.data.gov.uk/id/local-authority/38,Oxfordshire County Council,NURSERY ED FUND,28/02/2024,5537,Payments to Other Establishments,3111624509,"-47,668.39",Grow Learn Play Project CIC
http://statistics.data.gov.uk/id/local-authority/38,Oxfordshire County Council,NURSERY ED FUND,28/02/2024,5537,Payments to Other Establishments,3111618378,"-47,321.85",Culham Nursery and Pre-School
http://statistics.data.gov.uk/id/local-authority/38,Oxfordshire County Council,NURSERY ED FUND,28/02/2024,5537,Payments to Other Establishments,3111623456,"-45,755.28",Busy Bees Bicester Kingsmere
http://statistics.data.gov.uk/id/local-authority/38,Oxfordshire County Council,NURSERY ED FUND,28/02/2024,5537,Payments to Other Establishments,3111618887,"-45,223.63",Kids Unlimited Harwell
http://statistics.data.gov.uk/id/local-authority/38,Oxfordshire County Council,Continuing Care - Care Homes - 65+,12/02/2024,5687,,3111605228,"-44,684.89",The Julie Richardson Nursing Home
http://statistics.data.gov.uk/id/local-authority/38,Oxfordshire County Council,NURSERY ED FUND,28/02/2024,5537,Payments to Other Establishments,3111618192,"-43,906.32",Jack & Jill Playgroup
http://statistics.data.gov.uk/id/local-authority/38,Oxfordshire County Council,NURSERY ED FUND,28/02/2024,5537,Payments to Other Establishments,3111622961,"-43,892.42",Banana Moon Day Nursery Chipping No
http://statistics.data.gov.uk/id/local-authority/38,Oxfordshire County Council,NURSERY ED FUND,28/02/2024,5537,Payments to Other Establishments,3111619885,"-43,651.15",Child First (Banbury)
http://statistics.data.gov.uk/id/local-authority/38,Oxfordshire County Council,NURSERY ED FUND,28/02/2024,5537,Payments to Other Establishments,3111620455,"-43,556.40",Co-Op Madley Park Nursery
http://statistics.data.gov.uk/id/local-authority/38,Oxfordshire County Council,NURSERY ED FUND,28/02/2024,5537,Payments to Other Establishments,3111624746,"-43,510.46",RAFA Kidz Brize Norton
http://statistics.data.gov.uk/id/local-authority/38,Oxfordshire County Council,NURSERY ED FUND,28/02/2024,5537,Payments to Other Establishments,3111618536,"-43,183.54",Ladybird Pre-School Limited
http://statistics.data.gov.uk/id/local-authority/38,Oxfordshire County Council,ContrO ASC Payments Control Account,22/02/2024,7190,Other Recovered Costs,3111611790,"-42,925.14",Orchard House (Harwell)
http://statistics.data.gov.uk/id/local-authority/38,Oxfordshire County Council,NURSERY ED FUND,28/02/2024,5537,Payments to Other Establishments,3111622440,"-41,448.89",West Kidlington Primary &NurserySch
http://statistics.data.gov.uk/id/local-authority/38,Oxfordshire County Council,NURSERY ED FUND,28/02/2024,5537,Payments to Other Establishments,3111620730,"-40,908.46",Little Dots Daycare
http://statistics.data.gov.uk/id/local-authority/38,Oxfordshire County Council,NURSERY ED FUND,28/02/2024,5537,Payments to Other Establishments,3111617145,"-40,532.94",Sandfield Day Nursery
http://statistics.data.gov.uk/id/local-authority/38,Oxfordshire County Council,NURSERY ED FUND,28/02/2024,5537,Payments to Other Establishments,3111619819,"-39,918.96",Child First (Bicester)
http://statistics.data.gov.uk/id/local-authority/38,Oxfordshire County Council,NURSERY ED FUND,28/02/2024,5537,Payments to Other Establishments,3111623159,"-39,799.73",Bright Horizon Didcot Day Nursery
http://statistics.data.gov.uk/id/local-authority/38,Oxfordshire County Council,NURSERY ED FUND,28/02/2024,5537,Payments to Other Establishments,3111618308,"-39,735.72",Bramley Nursery Busy Bees
http://statistics.data.gov.uk/id/local-authority/38,Oxfordshire County Council,NURSERY ED FUND,28/02/2024,5537,Payments to Other Establishments,3111625150,"-39,048.69",St Johns CofE Academy
http://statistics.data.gov.uk/id/local-authority/38,Oxfordshire County Council,NURSERY ED FUND,28/02/2024,5537,Payments to Other Establishments,3111619132,"-38,159.86",Mongewell Park Nursery S
http://statistics.data.gov.uk/id/local-authority/38,Oxfordshire County Council,NURSERY ED FUND,28/02/2024,5537,Payments to Other Establishments,3111619535,"-37,821.24",Busy Bees Day Nursery (Bicester)
http://statistics.data.gov.uk/id/local-authority/38,Oxfordshire County Council,CHC Fast Track - Care Homes - Over 65,12/02/2024,5687,,3111606456,"-37,500.00",Wytham House
http://statistics.data.gov.uk/id/local-authority/38,Oxfordshire County Council,NURSERY ED FUND,28/02/2024,5537,Payments to Other Establishments,3111619446,"-36,877.18",St Marys Day Nursery
http://statistics.data.gov.uk/id/local-authority/38,Oxfordshire County Council,NURSERY ED FUND,28/02/2024,5537,Payments to Other Establishments,3111624707,"-36,740.42",The Old Station Nursery Oxford
http://statistics.data.gov.uk/id/local-authority/38,Oxfordshire County Council,NURSERY ED FUND,28/02/2024,5537,Payments to Other Establishments,3111621368,"-36,629.93",Eynsham Community
http://statistics.data.gov.uk/id/local-authority/38,Oxfordshire County Council,Continuing Care - Support at Home - U65,21/02/2024,5688,,3111611344,"-36,372.18",The Brandon Trust
http://statistics.data.gov.uk/id/local-authority/38,Oxfordshire County Council,NURSERY ED FUND,28/02/2024,5537,Payments to Other Establishments,3111623616,"-35,100.00",Roots for Life Thame
http://statistics.data.gov.uk/id/local-authority/38,Oxfordshire County Council,NURSERY ED FUND,28/02/2024,5537,Payments to Other Establishments,3111619686,"-35,044.78",Kidsunlimited (Milton Park)
http://statistics.data.gov.uk/id/local-authority/38,Oxfordshire County Council,NURSERY ED FUND,28/02/2024,5537,Payments to Other Establishments,3111619990,"-34,877.54",The Old Station Nursery
http://statistics.data.gov.uk/id/local-authority/38,Oxfordshire County Council,NURSERY ED FUND,28/02/2024,5537,Payments to Other Establishments,3111622633,"-34,595.71",Little Dots Daycare Ltd
http://statistics.data.gov.uk/id/local-authority/38,Oxfordshire County Council,NURSERY ED FUND,28/02/2024,5537,Payments to Other Establishments,3111620217,"-34,468.20",Co-Op Carterton Nursery
http://statistics.data.gov.uk/id/local-authority/38,Oxfordshire County Council,NURSERY ED FUND,28/02/2024,5537,Payments to Other Establishments,3111620172,"-34,047.00",Co-Op Rose Hill Nursery
http://statistics.data.gov.uk/id/local-authority/38,Oxfordshire County Council,NURSERY ED FUND,28/02/2024,5537,Payments to Other Establishments,3111619915,"-32,983.20",Toad Hall Day Nursery
http://statistics.data.gov.uk/id/local-authority/38,Oxfordshire County Council,NURSERY ED FUND,28/02/2024,5537,Payments to Other Establishments,3111622555,"-32,690.52",Longford Park Primary School
http://statistics.data.gov.uk/id/local-authority/38,Oxfordshire County Council,NURSERY ED FUND,28/02/2024,5537,Payments to Other Establishments,3111621750,"-31,963.75",Busy Bees at Oxford
http://statistics.data.gov.uk/id/local-authority/38,Oxfordshire County Council,NURSERY ED FUND,28/02/2024,5537,Payments to Other Establishments,3111615976,"-31,883.76",Harriers Banbury Academy
http://statistics.data.gov.uk/id/local-authority/38,Oxfordshire County Council,NURSERY ED FUND,28/02/2024,5537,Payments to Other Establishments,3111620779,"-31,848.12",Dashwood Banbury Academy
http://statistics.data.gov.uk/id/local-authority/38,Oxfordshire County Council,NURSERY ED FUND,28/02/2024,5537,Payments to Other Establishments,3111622129,"-31,481.14",Southwold Primary School Academy
http://statistics.data.gov.uk/id/local-authority/38,Oxfordshire County Council,NURSERY ED FUND,28/02/2024,5537,Payments to Other Establishments,3111617011,"-31,041.11",Robin Playgroup
http://statistics.data.gov.uk/id/local-authority/38,Oxfordshire County Council,NURSERY ED FUND,28/02/2024,5537,Payments to Other Establishments,3111621303,"-30,637.73",Wantage CE Primary School # Academy
http://statistics.data.gov.uk/id/local-authority/38,Oxfordshire County Council,CHC Fast Track - Care Homes - Over 65,12/02/2024,5687,,3111603020,"-30,591.44",Orders of St John
http://statistics.data.gov.uk/id/local-authority/38,Oxfordshire County Council,NURSERY ED FUND,28/02/2024,5537,Payments to Other Establishments,3111618773,"-30,243.89",Little Stars Nursery
http://statistics.data.gov.uk/id/local-authority/38,Oxfordshire County Council,NURSERY ED FUND,28/02/2024,5537,Payments to Other Establishments,3111623013,"-30,234.60",Aureus Primary School Academy
http://statistics.data.gov.uk/id/local-authority/38,Oxfordshire County Council,NURSERY ED FUND,28/02/2024,5537,Payments to Other Establishments,3111620684,"-30,216.53",Little Monkeys Charlbury Limited
http://statistics.data.gov.uk/id/local-authority/38,Oxfordshire County Council,NURSERY ED FUND,28/02/2024,5537,Payments to Other Establishments,3111622189,"-29,969.03",Benson Children & Family Services
http://statistics.data.gov.uk/id/local-authority/38,Oxfordshire County Council,CHC Fast Track - Care Homes - Over 65,12/02/2024,5687,,3111604719,"-29,571.44",Freeland House
http://statistics.data.gov.uk/id/local-authority/38,Oxfordshire County Council,NURSERY ED FUND,28/02/2024,5537,Payments to Other Establishments,3111620013,"-29,474.28",PUDDLEDUCK NURSERY
http://statistics.data.gov.uk/id/local-authority/38,Oxfordshire County Council,NURSERY ED FUND,28/02/2024,5537,Payments to Other Establishments,3111622868,"-29,325.27",The Old Station Nursery Heyford Par
http://statistics.data.gov.uk/id/local-authority/38,Oxfordshire County Council,NURSERY ED FUND,28/02/2024,5537,Payments to Other Establishments,3111618478,"-29,181.60",Bright Start Pre-school
http://statistics.data.gov.uk/id/local-authority/38,Oxfordshire County Council,NURSERY ED FUND,28/02/2024,5537,Payments to Other Establishments,3111623410,"-29,178.72",The Close Day Nursery Opco Ltd
http://statistics.data.gov.uk/id/local-authority/38,Oxfordshire County Council,NURSERY ED FUND,28/02/2024,5537,Payments to Other Establishments,3111624182,"-28,887.91",Culham Village Nursery and Preschoo
http://statistics.data.gov.uk/id/local-authority/38,Oxfordshire County Council,NURSERY ED FUND,28/02/2024,5537,Payments to Other Establishments,3111622099,"-28,585.44",Didcot Primary Academy
http://statistics.data.gov.uk/id/local-authority/38,Oxfordshire County Council,NURSERY ED FUND,28/02/2024,5537,Payments to Other Establishments,3111619241,"-28,402.20",Chandlings
http://statistics.data.gov.uk/id/local-authority/38,Oxfordshire County Council,NURSERY ED FUND,28/02/2024,5537,Payments to Other Establishments,3111621587,"-28,347.48",NOAs Ark Nursery
http://statistics.data.gov.uk/id/local-authority/38,Oxfordshire County Council,NURSERY ED FUND,28/02/2024,5537,Payments to Other Establishments,3111619364,"-28,173.52",Ladygrove Day Nursery and Nursery S
http://statistics.data.gov.uk/id/local-authority/38,Oxfordshire County Council,NURSERY ED FUND,28/02/2024,5537,Payments to Other Establishments,3111618113,"-28,089.54",Camel Pre-School (PFSU)
http://statistics.data.gov.uk/id/local-authority/38,Oxfordshire County Council,NURSERY ED FUND,28/02/2024,5537,Payments to Other Establishments,3111623749,"-27,914.78",Botley Primary School
http://statistics.data.gov.uk/id/local-authority/38,Oxfordshire County Council,NURSERY ED FUND,28/02/2024,5537,Payments to Other Establishments,3111624650,"-27,852.48",Buds That Blossom
http://statistics.data.gov.uk/id/local-authority/38,Oxfordshire County Council,NURSERY ED FUND,28/02/2024,5537,Payments to Other Establishments,3111620133,"-27,614.52",Co-Op JR Nursery
http://statistics.data.gov.uk/id/local-authority/38,Oxfordshire County Council,NURSERY ED FUND,28/02/2024,5537,Payments to Other Establishments,3111616298,"-27,229.46",Little Acorns
http://statistics.data.gov.uk/id/local-authority/38,Oxfordshire County Council,NURSERY ED FUND,28/02/2024,5537,Payments to Other Establishments,3111622730,"-26,936.28",Northbourne CE(A) Primary School
http://statistics.data.gov.uk/id/local-authority/38,Oxfordshire County Council,ContrO ASC Payments Control Account,02/02/2024,7190,Other Recovered Costs,3111599468,"-26,584.32",SHAW HEALTHCARE (SPECIALIST SERVICE
http://statistics.data.gov.uk/id/local-authority/38,Oxfordshire County Council,NURSERY ED FUND,28/02/2024,5537,Payments to Other Establishments,3111618437,"-26,496.50",Horspath Pre-School Nursery
http://statistics.data.gov.uk/id/local-authority/38,Oxfordshire County Council,NURSERY ED FUND,28/02/2024,5537,Payments to Other Establishments,3111623910,"-26,433.00",New Marston Primary School
http://statistics.data.gov.uk/id/local-authority/38,Oxfordshire County Council,NURSERY ED FUND,28/02/2024,5537,Payments to Other Establishments,3111621421,"-26,386.56",St Christophers Primary School -
http://statistics.data.gov.uk/id/local-authority/38,Oxfordshire County Council,NURSERY ED FUND,28/02/2024,5537,Payments to Other Establishments,3111620649,"-26,240.98",Faringdon Infant School - Adademy
http://statistics.data.gov.uk/id/local-authority/38,Oxfordshire County Council,NURSERY ED FUND,28/02/2024,5537,Payments to Other Establishments,3111620427,"-26,011.80",Rainbows Day Nursery
http://statistics.data.gov.uk/id/local-authority/38,Oxfordshire County Council,NURSERY ED FUND,28/02/2024,5537,Payments to Other Establishments,3111623121,"-25,809.48",People Place & Participation LTD
http://statistics.data.gov.uk/id/local-authority/38,Oxfordshire County Council,NURSERY ED FUND,28/02/2024,5537,Payments to Other Establishments,3111624613,"-25,726.90",Charlton Primary School Nursery
http://statistics.data.gov.uk/id/local-authority/38,Oxfordshire County Council,Continuing Care - Care Homes - 65+,12/02/2024,5687,,3111606051,"-25,531.45",Elysium Healthcare
http://statistics.data.gov.uk/id/local-authority/38,Oxfordshire County Council,NURSERY ED FUND,28/02/2024,5537,Payments to Other Establishments,3111618798,"-25,455.72",Filkins Nursery School
http://statistics.data.gov.uk/id/local-authority/38,Oxfordshire County Council,NURSERY ED FUND,28/02/2024,5537,Payments to Other Establishments,3111617742,"-25,296.41",Farmhouse Nursery School
http://statistics.data.gov.uk/id/local-authority/38,Oxfordshire County Council,NURSERY ED FUND,28/02/2024,5537,Payments to Other Establishments,3111616109,"-25,215.35",The Manor Preparatory Sc
http://statistics.data.gov.uk/id/local-authority/38,Oxfordshire County Council,NURSERY ED FUND,28/02/2024,5537,Payments to Other Establishments,3111616209,"-25,058.19",Early Days Nursery Schoo
http://statistics.data.gov.uk/id/local-authority/38,Oxfordshire County Council,NURSERY ED FUND,28/02/2024,5537,Payments to Other Establishments,3111623827,"-24,737.40",GEMS Wantage Primary Academy
http://statistics.data.gov.uk/id/local-authority/38,Oxfordshire County Council,NURSERY ED FUND,28/02/2024,5537,Payments to Other Establishments,3111624102,"-24,701.76",Barton Park Primary School
http://statistics.data.gov.uk/id/local-authority/38,Oxfordshire County Council,NURSERY ED FUND,28/02/2024,5537,Payments to Other Establishments,3111622772,"-24,260.98",Culham After School Club
http://statistics.data.gov.uk/id/local-authority/38,Oxfordshire County Council,NURSERY ED FUND,28/02/2024,5537,Payments to Other Establishments,3111616460,"-24,132.96",Willow Cottage Nurseries Limited
http://statistics.data.gov.uk/id/local-authority/38,Oxfordshire County Council,NURSERY ED FUND,28/02/2024,5537,Payments to Other Establishments,3111623671,"-23,766.48",Marcham Little Angels
http://statistics.data.gov.uk/id/local-authority/38,Oxfordshire County Council,NURSERY ED FUND,28/02/2024,5537,Payments to Other Establishments,3111616872,"-23,700.31",Cholsey Pre-School (PFSU)
http://statistics.data.gov.uk/id/local-authority/38,Oxfordshire County Council,NURSERY ED FUND,28/02/2024,5537,Payments to Other Establishments,3111623556,"-23,637.96",Glory Farm Primary School
http://statistics.data.gov.uk/id/local-authority/38,Oxfordshire County Council,NURSERY ED FUND,28/02/2024,5537,Payments to Other Establishments,3111617768,"-23,542.77",The Cottage Nursery
http://statistics.data.gov.uk/id/local-authority/38,Oxfordshire County Council,NURSERY ED FUND,28/02/2024,5537,Payments to Other Establishments,3111623855,"-23,427.36",Cherry Fields Primary School
http://statistics.data.gov.uk/id/local-authority/38,Oxfordshire County Council,NURSERY ED FUND,28/02/2024,5537,Payments to Other Establishments,3111617082,"-23,381.42",Brize Norton Village Pre
http://statistics.data.gov.uk/id/local-authority/38,Oxfordshire County Council,NURSERY ED FUND,28/02/2024,5537,Payments to Other Establishments,3111617998,"-23,208.69",Tiddlywinks Pre-School
http://statistics.data.gov.uk/id/local-authority/38,Oxfordshire County Council,NURSERY ED FUND,28/02/2024,5537,Payments to Other Establishments,3111620820,"-23,088.24",John Henry Newman Academy
http://statistics.data.gov.uk/id/local-authority/38,Oxfordshire County Council,NURSERY ED FUND,28/02/2024,5537,Payments to Other Establishments,3111624411,"-22,757.65",Kids Planet Woodstock Road Day Nurs
http://statistics.data.gov.uk/id/local-authority/38,Oxfordshire County Council,NURSERY ED FUND,28/02/2024,5537,Payments to Other Establishments,3111625012,"-22,676.83",Yarnton Day Nursery Ltd
http://statistics.data.gov.uk/id/local-authority/38,Oxfordshire County Council,NURSERY ED FUND,28/02/2024,5537,Payments to Other Establishments,3111618842,"-22,638.74",Little Oak Pre-School
http://statistics.data.gov.uk/id/local-authority/38,Oxfordshire County Council,NURSERY ED FUND,28/02/2024,5537,Payments to Other Establishments,3111622043,"-22,538.52",William Morris Primary School
http://statistics.data.gov.uk/id/local-authority/38,Oxfordshire County Council,NURSERY ED FUND,28/02/2024,5537,Payments to Other Establishments,3111622175,"-22,327.92",Willow Cottage Nurseries Limited
http://statistics.data.gov.uk/id/local-authority/38,Oxfordshire County Council,NURSERY ED FUND,28/02/2024,5537,Payments to Other Establishments,3111620090,"-22,208.69",Scamps of Benson Ltd
http://statistics.data.gov.uk/id/local-authority/38,Oxfordshire County Council,NURSERY ED FUND,28/02/2024,5537,Payments to Other Establishments,3111617688,"-22,126.60",Red Dragon Pre-School Gr
http://statistics.data.gov.uk/id/local-authority/38,Oxfordshire County Council,NURSERY ED FUND,28/02/2024,5537,Payments to Other Establishments,3111616417,"-22,065.91",Little Pippins Pre-Schoo
http://statistics.data.gov.uk/id/local-authority/38,Oxfordshire County Council,NURSERY ED FUND,28/02/2024,5537,Payments to Other Establishments,3111618914,"-21,677.55",Bubbles Pre School
http://statistics.data.gov.uk/id/local-authority/38,Oxfordshire County Council,NURSERY ED FUND,28/02/2024,5537,Payments to Other Establishments,3111624075,"-21,658.96",Heyford Park School
http://statistics.data.gov.uk/id/local-authority/38,Oxfordshire County Council,NURSERY ED FUND,28/02/2024,5537,Payments to Other Establishments,3111616511,"-21,595.46",Peachcroft Pre-School
http://statistics.data.gov.uk/id/local-authority/38,Oxfordshire County Council,NURSERY ED FUND,28/02/2024,5537,Payments to Other Establishments,3111622277,"-21,592.15",Butterflies Pre-School Didcot CIO
http://statistics.data.gov.uk/id/local-authority/38,Oxfordshire County Council,NURSERY ED FUND,28/02/2024,5537,Payments to Other Establishments,3111621071,"-21,439.08",Watchfield Primary School - Academy
http://statistics.data.gov.uk/id/local-authority/38,Oxfordshire County Council,NURSERY ED FUND,28/02/2024,5537,Payments to Other Establishments,3111624369,"-21,419.63",Kids Planet Jack Straws Lane Day Nu
http://statistics.data.gov.uk/id/local-authority/38,Oxfordshire County Council,NURSERY ED FUND,28/02/2024,5537,Payments to Other Establishments,3111624391,"-21,419.63",Kids Planet The Triangle Day Nurser
http://statistics.data.gov.uk/id/local-authority/38,Oxfordshire County Council,NURSERY ED FUND,28/02/2024,5537,Payments to Other Establishments,3111622703,"-21,406.61",The Old Station Nursery (Bampton)
http://statistics.data.gov.uk/id/local-authority/38,Oxfordshire County Council,NURSERY ED FUND,28/02/2024,5537,Payments to Other Establishments,3111620062,"-21,293.50",Kennington Playgroup
http://statistics.data.gov.uk/id/local-authority/38,Oxfordshire County Council,Continuing Care - Care Homes - 65+,12/02/2024,5687,,3111606350,"-21,276.29",SANCTUARY CARE LTD
http://statistics.data.gov.uk/id/local-authority/38,Oxfordshire County Council,NURSERY ED FUND,28/02/2024,5537,Payments to Other Establishments,3111624870,"-21,109.25",The Elms Primary School
http://statistics.data.gov.uk/id/local-authority/38,Oxfordshire County Council,NURSERY ED FUND,28/02/2024,5537,Payments to Other Establishments,3111616016,"-21,063.44",Windrush Valley School
http://statistics.data.gov.uk/id/local-authority/38,Oxfordshire County Council,NURSERY ED FUND,28/02/2024,5537,Payments to Other Establishments,3111620365,"-20,999.30",Little Troopers Day Nursery Ltd
http://statistics.data.gov.uk/id/local-authority/38,Oxfordshire County Council,NURSERY ED FUND,28/02/2024,5537,Payments to Other Establishments,3111623387,"-20,755.39",Little Acorns Pre-school Kingsmere
http://statistics.data.gov.uk/id/local-authority/38,Oxfordshire County Council,NURSERY ED FUND,28/02/2024,5537,Payments to Other Establishments,3111617594,"-20,632.83",Bloxham Pre-School
http://statistics.data.gov.uk/id/local-authority/38,Oxfordshire County Council,CHC Fast Track - Care Homes - Over 65,12/02/2024,5687,,3111604111,"-20,603.57",Bridge House
http://statistics.data.gov.uk/id/local-authority/38,Oxfordshire County Council,NURSERY ED FUND,28/02/2024,5537,Payments to Other Establishments,3111616746,"-20,548.37",Wantage Preschool
http://statistics.data.gov.uk/id/local-authority/38,Oxfordshire County Council,NURSERY ED FUND,28/02/2024,5537,Payments to Other Establishments,3111616909,"-20,386.08",Broadhill Pre-School
http://statistics.data.gov.uk/id/local-authority/38,Oxfordshire County Council,NURSERY ED FUND,28/02/2024,5537,Payments to Other Establishments,3111622627,"-20,339.64",Hill View Primary School
http://statistics.data.gov.uk/id/local-authority/38,Oxfordshire County Council,NURSERY ED FUND,28/02/2024,5537,Payments to Other Establishments,3111620258,"-20,304.00",Rainbow Village Nursery
http://statistics.data.gov.uk/id/local-authority/38,Oxfordshire County Council,NURSERY ED FUND,28/02/2024,5537,Payments to Other Establishments,3111623230,"-20,266.34",Larkrise Primary School
http://statistics.data.gov.uk/id/local-authority/38,Oxfordshire County Council,NURSERY ED FUND,28/02/2024,5537,Payments to Other Establishments,3111621227,"-20,175.48",Windale Community Primary School
http://statistics.data.gov.uk/id/local-authority/38,Oxfordshire County Council,NURSERY ED FUND,28/02/2024,5537,Payments to Other Establishments,3111624347,"-20,086.66",Kids Planet Bradmore Road Day Nurse
http://statistics.data.gov.uk/id/local-authority/38,Oxfordshire County Council,NURSERY ED FUND,28/02/2024,5537,Payments to Other Establishments,3111616711,"-20,083.11",Deddington (PFSU)
http://statistics.data.gov.uk/id/local-authority/38,Oxfordshire County Council,NURSERY ED FUND,28/02/2024,5537,Payments to Other Establishments,3111619767,"-20,079.79",St Marys Playgroup
http://statistics.data.gov.uk/id/local-authority/38,Oxfordshire County Council,NURSERY ED FUND,28/02/2024,5537,Payments to Other Establishments,3111623309,"-19,836.36",Hardwick Primary School Academy
http://statistics.data.gov.uk/id/local-authority/38,Oxfordshire County Council,NURSERY ED FUND,28/02/2024,5537,Payments to Other Establishments,3111620915,"-19,789.92",St Thomas More Primary School - Aca
http://statistics.data.gov.uk/id/local-authority/38,Oxfordshire County Council,NURSERY ED FUND,28/02/2024,5537,Payments to Other Establishments,3111620849,"-19,789.92",The The Old Station Nursery Ltd
http://statistics.data.gov.uk/id/local-authority/38,Oxfordshire County Council,NURSERY ED FUND,28/02/2024,5537,Payments to Other Establishments,3111623522,"-19,643.32",Benson C of E Primary School
http://statistics.data.gov.uk/id/local-authority/38,Oxfordshire County Council,COMM DRAWDOWN FUNDNG,09/02/2024,8102,Payments to main contractor,2201197993,"-19,642.32",Milestone Infrastructure Limited
http://statistics.data.gov.uk/id/local-authority/38,Oxfordshire County Council,NURSERY ED FUND,28/02/2024,5537,Payments to Other Establishments,3111618950,"-19,590.12",Courtyard Pre-School
http://statistics.data.gov.uk/id/local-authority/38,Oxfordshire County Council,NURSERY ED FUND,28/02/2024,5537,Payments to Other Establishments,3111619035,"-19,502.71",Complete Childcare Ltd
http://statistics.data.gov.uk/id/local-authority/38,Oxfordshire County Council,NURSERY ED FUND,28/02/2024,5537,Payments to Other Establishments,3111622407,"-19,396.08",The Aunties' Old School Nursery
http://statistics.data.gov.uk/id/local-authority/38,Oxfordshire County Council,NURSERY ED FUND,28/02/2024,5537,Payments to Other Establishments,3111617907,"-19,368.72",Abingdon Kindergarten (Loyd Close)
http://statistics.data.gov.uk/id/local-authority/38,Oxfordshire County Council,NURSERY ED FUND,28/02/2024,5537,Payments to Other Establishments,3111622887,"-19,166.90",Madley Brook Community Primary Scho
http://statistics.data.gov.uk/id/local-authority/38,Oxfordshire County Council,NURSERY ED FUND,28/02/2024,5537,Payments to Other Establishments,3111620497,"-19,029.60",Cherubs Nursery and After Class Lim
http://statistics.data.gov.uk/id/local-authority/38,Oxfordshire County Council,NURSERY ED FUND,28/02/2024,5537,Payments to Other Establishments,3111624135,"-18,846.36",Tiny Toes Day Nursery
http://statistics.data.gov.uk/id/local-authority/38,Oxfordshire County Council,NURSERY ED FUND,28/02/2024,5537,Payments to Other Establishments,3111617244,"-18,762.62",Grovelands Park Pre-School
http://statistics.data.gov.uk/id/local-authority/38,Oxfordshire County Council,NURSERY ED FUND,28/02/2024,5537,Payments to Other Establishments,3111624837,"-18,754.74",Grimsbury Manor Nursery
http://statistics.data.gov.uk/id/local-authority/38,Oxfordshire County Council,NURSERY ED FUND,28/02/2024,5537,Payments to Other Establishments,3111624271,"-18,635.51",Sparkling Minds Pre-School& Day Nur
http://statistics.data.gov.uk/id/local-authority/38,Oxfordshire County Council,NURSERY ED FUND,28/02/2024,5537,Payments to Other Establishments,3111617798,"-18,628.84",The Warborough and Shillingford
http://statistics.data.gov.uk/id/local-authority/38,Oxfordshire County Council,NURSERY ED FUND,28/02/2024,5537,Payments to Other Establishments,3111624936,"-18,617.18",St John's Catholic Primary School
http://statistics.data.gov.uk/id/local-authority/38,Oxfordshire County Council,NURSERY ED FUND,28/02/2024,5537,Payments to Other Establishments,3111616326,"-18,608.40",Hagbourne Pre-School
http://statistics.data.gov.uk/id/local-authority/38,Oxfordshire County Council,NURSERY ED FUND,28/02/2024,5537,Payments to Other Establishments,3111616353,"-18,397.80",Kingfisher Kindergarten
http://statistics.data.gov.uk/id/local-authority/38,Oxfordshire County Council,NURSERY ED FUND,28/02/2024,5537,Payments to Other Establishments,3111621230,"-18,306.43",Ladybirds @ Riverside
http://statistics.data.gov.uk/id/local-authority/38,Oxfordshire County Council,NURSERY ED FUND,28/02/2024,5537,Payments to Other Establishments,3111618660,"-18,287.35",The Wantage Nursery and Pre-School
http://statistics.data.gov.uk/id/local-authority/38,Oxfordshire County Council,NURSERY ED FUND,28/02/2024,5537,Payments to Other Establishments,3111624907,"-18,173.19",Nara Horton
http://statistics.data.gov.uk/id/local-authority/38,Oxfordshire County Council,NURSERY ED FUND,28/02/2024,5537,Payments to Other Establishments,3111616577,"-18,058.68",Kiddies Korner
http://statistics.data.gov.uk/id/local-authority/38,Oxfordshire County Council,NURSERY ED FUND,28/02/2024,5537,Payments to Other Establishments,3111623774,"-17,948.73",Witney Community Primary Nursery
http://statistics.data.gov.uk/id/local-authority/38,Oxfordshire County Council,NURSERY ED FUND,28/02/2024,5537,Payments to Other Establishments,3111617285,"-17,893.51",Dalton Pre-School Nurser
http://statistics.data.gov.uk/id/local-authority/38,Oxfordshire County Council,NURSERY ED FUND,28/02/2024,5537,Payments to Other Establishments,3111625071,"-17,745.27",Graven Hill Primary School
http://statistics.data.gov.uk/id/local-authority/38,Oxfordshire County Council,NURSERY ED FUND,28/02/2024,5537,Payments to Other Establishments,3111624787,"-17,673.63",Wheatley CE Primary School
http://statistics.data.gov.uk/id/local-authority/38,Oxfordshire County Council,Care Homes - Under 65 Leaning Disability,12/02/2024,5686,,3111604219,"-17,645.89",Elmfield Cottage
http://statistics.data.gov.uk/id/local-authority/38,Oxfordshire County Council,NURSERY ED FUND,28/02/2024,5537,Payments to Other Establishments,3111619392,"-17,380.44",Clanfield Pre-School
http://statistics.data.gov.uk/id/local-authority/38,Oxfordshire County Council,NURSERY ED FUND,28/02/2024,5537,Payments to Other Establishments,3111623042,"-17,165.93",Gagle Brook Primary School
http://statistics.data.gov.uk/id/local-authority/38,Oxfordshire County Council,NURSERY ED FUND,28/02/2024,5537,Payments to Other Establishments,3111622310,"-17,041.32",Chalgrove Community Primary School
http://statistics.data.gov.uk/id/local-authority/38,Oxfordshire County Council,NURSERY ED FUND,28/02/2024,5537,Payments to Other Establishments,3111616152,"-16,830.72",Small World Nursery and
http://statistics.data.gov.uk/id/local-authority/38,Oxfordshire County Council,NURSERY ED FUND,28/02/2024,5537,Payments to Other Establishments,3111623490,"-16,784.79",Watlington Primary School
http://statistics.data.gov.uk/id/local-authority/38,Oxfordshire County Council,NURSERY ED FUND,28/02/2024,5537,Payments to Other Establishments,3111618159,"-16,708.31",Treetops Nursery
http://statistics.data.gov.uk/id/local-authority/38,Oxfordshire County Council,NURSERY ED FUND,28/02/2024,5537,Payments to Other Establishments,3111616543,"-16,674.84",Oxford Brookes University Nursery
http://statistics.data.gov.uk/id/local-authority/38,Oxfordshire County Council,NURSERY ED FUND,28/02/2024,5537,Payments to Other Establishments,3111624244,"-16,491.60",Our Lady's Catholic Primary School
http://statistics.data.gov.uk/id/local-authority/38,Oxfordshire County Council,NURSERY ED FUND,28/02/2024,5537,Payments to Other Establishments,3111619248,"-16,454.95",Hadden Hill Nursery and Pre-School
http://statistics.data.gov.uk/id/local-authority/38,Oxfordshire County Council,NURSERY ED FUND,28/02/2024,5537,Payments to Other Establishments,3111617426,"-16,451.64",Hendreds Pre-School
http://statistics.data.gov.uk/id/local-authority/38,Oxfordshire County Council,NURSERY ED FUND,28/02/2024,5537,Payments to Other Establishments,3111622914,"-16,281.00",Oxford's British Orchard Nursery
http://statistics.data.gov.uk/id/local-authority/38,Oxfordshire County Council,NURSERY ED FUND,28/02/2024,5537,Payments to Other Establishments,3111617198,"-16,235.06",Willow Cottage Kindergar
http://statistics.data.gov.uk/id/local-authority/38,Oxfordshire County Council,NURSERY ED FUND,28/02/2024,5537,Payments to Other Establishments,3111623272,"-16,189.63",Abingdon Learning Trust
http://statistics.data.gov.uk/id/local-authority/38,Oxfordshire County Council,NURSERY ED FUND,28/02/2024,5537,Payments to Other Establishments,3111620530,"-16,134.41",Rockwell House Day Nursery & Sch
http://statistics.data.gov.uk/id/local-authority/38,Oxfordshire County Council,NURSERY ED FUND,28/02/2024,5537,Payments to Other Establishments,3111618137,"-16,107.55",Sonning Common Pre-School
http://statistics.data.gov.uk/id/local-authority/38,Oxfordshire County Council,NURSERY ED FUND,28/02/2024,5537,Payments to Other Establishments,3111619079,"-15,841.22",St Thomas Day Nursery
http://statistics.data.gov.uk/id/local-authority/38,Oxfordshire County Council,NURSERY ED FUND,28/02/2024,5537,Payments to Other Establishments,3111617468,"-15,813.61",St Nicolas Pre-School and Playgroup
http://statistics.data.gov.uk/id/local-authority/38,Oxfordshire County Council,NURSERY ED FUND,28/02/2024,5537,Payments to Other Establishments,3111624811,"-15,758.64",The Oratory Prep School
http://statistics.data.gov.uk/id/local-authority/38,Oxfordshire County Council,NURSERY ED FUND,28/02/2024,5537,Payments to Other Establishments,3111616836,"-15,731.28",Cygnet Nursery
http://statistics.data.gov.uk/id/local-authority/38,Oxfordshire County Council,NURSERY ED FUND,28/02/2024,5962,Recharged Exp - LMS Expenditure,3111624997,"-15,721.98",St Michael's CofE Primary School Ox
http://statistics.data.gov.uk/id/local-authority/38,Oxfordshire County Council,Mainstream Res,22/02/2024,5560,B*Boundary Fencing,3111611802,"-15,700.57",Acorn Care & Education Ltd
http://statistics.data.gov.uk/id/local-authority/38,Oxfordshire County Council,Mainstream Res,22/02/2024,5560,B*Boundary Fencing,3111611806,"-15,700.57",Acorn Care & Education Ltd
http://statistics.data.gov.uk/id/local-authority/38,Oxfordshire County Council,Mainstream Res,22/02/2024,5560,B*Boundary Fencing,3111611808,"-15,700.57",Acorn Care & Education Ltd
http://statistics.data.gov.uk/id/local-authority/38,Oxfordshire County Council,NURSERY ED FUND,28/02/2024,5537,Payments to Other Establishments,3111616964,"-15,538.75",The Town Nursery School
http://statistics.data.gov.uk/id/local-authority/38,Oxfordshire County Council,NURSERY ED FUND,28/02/2024,5537,Payments to Other Establishments,3111617608,"-15,502.10",Bishopswood Day Nursery
http://statistics.data.gov.uk/id/local-authority/38,Oxfordshire County Council,NURSERY ED FUND,28/02/2024,5537,Payments to Other Establishments,3111625194,"-15,477.92",Adderbury Day Nursery
http://statistics.data.gov.uk/id/local-authority/38,Oxfordshire County Council,NURSERY ED FUND,28/02/2024,5537,Payments to Other Establishments,3111618638,"-15,410.74",Hanborough Meadows Pre-School
http://statistics.data.gov.uk/id/local-authority/38,Oxfordshire County Council,NURSERY ED FUND,28/02/2024,5537,Payments to Other Establishments,3111620892,"-15,392.16",Cutteslowe Primary
http://statistics.data.gov.uk/id/local-authority/38,Oxfordshire County Council,NURSERY ED FUND,28/02/2024,5537,Payments to Other Establishments,3111623802,"-15,392.16",St Joseph's Catholic Primary Carter
http://statistics.data.gov.uk/id/local-authority/38,Oxfordshire County Council,NURSERY ED FUND,28/02/2024,5537,Payments to Other Establishments,3111621539,"-15,392.16",St Josephs Catholic Primary School
http://statistics.data.gov.uk/id/local-authority/38,Oxfordshire County Council,NURSERY ED FUND,28/02/2024,5537,Payments to Other Establishments,3111623313,"-15,392.16",Sutton Courtenay C of E Primary Sch
http://statistics.data.gov.uk/id/local-authority/38,Oxfordshire County Council,NURSERY ED FUND,28/02/2024,5537,Payments to Other Establishments,3111619952,"-15,342.91",Chipping Norton Pre-school
http://statistics.data.gov.uk/id/local-authority/38,Oxfordshire County Council,NURSERY ED FUND,28/02/2024,5537,Payments to Other Establishments,3111619310,"-15,337.19",The Lighthouse Nursery
http://statistics.data.gov.uk/id/local-authority/38,Oxfordshire County Council,NURSERY ED FUND,28/02/2024,5537,Payments to Other Establishments,3111624537,"-15,299.62",North Leigh Pre-School CIO
http://statistics.data.gov.uk/id/local-authority/38,Oxfordshire County Council,NURSERY ED FUND,28/02/2024,5537,Payments to Other Establishments,3111621452,"-15,285.27",St Johns Priory School
http://statistics.data.gov.uk/id/local-authority/38,Oxfordshire County Council,NURSERY ED FUND,28/02/2024,5537,Payments to Other Establishments,3111618245,"-15,228.00",Hardwick & Arden Pre-School
http://statistics.data.gov.uk/id/local-authority/38,Oxfordshire County Council,Mainstream Res,22/02/2024,5560,B*Boundary Fencing,3111611800,"-15,194.10",Acorn Care & Education Ltd
http://statistics.data.gov.uk/id/local-authority/38,Oxfordshire County Council,Mainstream Res,22/02/2024,5560,B*Boundary Fencing,3111611804,"-15,194.10",Acorn Care & Education Ltd
http://statistics.data.gov.uk/id/local-authority/38,Oxfordshire County Council,NURSERY ED FUND,28/02/2024,5537,Payments to Other Establishments,3111621950,"-15,190.85",Tower Hill School
http://statistics.data.gov.uk/id/local-authority/38,Oxfordshire County Council,NURSERY ED FUND,28/02/2024,5537,Payments to Other Establishments,3111624580,"-15,181.56",Little Giants Nursery (Carterton) L
http://statistics.data.gov.uk/id/local-authority/38,Oxfordshire County Council,NURSERY ED FUND,28/02/2024,5537,Payments to Other Establishments,3111618972,"-15,086.38",Chasewell Playgroup
http://statistics.data.gov.uk/id/local-authority/38,Oxfordshire County Council,NURSERY ED FUND,28/02/2024,5537,Payments to Other Establishments,3111620069,"-14,970.96",The Oxford Nursery (Summertown)
http://statistics.data.gov.uk/id/local-authority/38,Oxfordshire County Council,NURSERY ED FUND,28/02/2024,5537,Payments to Other Establishments,3111623099,"-14,948.73",Little Peeple Nursery
http://statistics.data.gov.uk/id/local-authority/38,Oxfordshire County Council,NURSERY ED FUND,28/02/2024,5537,Payments to Other Establishments,3111617293,"-14,892.19",Paddocks Pre-School
http://statistics.data.gov.uk/id/local-authority/38,Oxfordshire County Council,Care Homes Under 65 Other Soc Isolation,12/02/2024,5686,,3111605092,"-14,880.80",HEATHCOTES (MOULTON) M LTD
http://statistics.data.gov.uk/id/local-authority/38,Oxfordshire County Council,NURSERY ED FUND,28/02/2024,5537,Payments to Other Establishments,3111621829,"-14,842.82",The Treehouse Thame Limited
http://statistics.data.gov.uk/id/local-authority/38,Oxfordshire County Council,NURSERY ED FUND,28/02/2024,5537,Payments to Other Establishments,3111616260,"-14,842.44",Highmoor Nursery School Ltd
http://statistics.data.gov.uk/id/local-authority/38,Oxfordshire County Council,NURSERY ED FUND,28/02/2024,5537,Payments to Other Establishments,3111621980,"-14,842.44",Wolvercote Primary School
http://statistics.data.gov.uk/id/local-authority/38,Oxfordshire County Council,NURSERY ED FUND,28/02/2024,5537,Payments to Other Establishments,3111623187,"-14,760.36",Impact Montessori Nursery
http://statistics.data.gov.uk/id/local-authority/38,Oxfordshire County Council,NURSERY ED FUND,28/02/2024,5537,Payments to Other Establishments,3111624153,"-14,750.82",Tiny Toes Day Nursery (Wallingford)
http://statistics.data.gov.uk/id/local-authority/38,Oxfordshire County Council,NURSERY ED FUND,28/02/2024,5537,Payments to Other Establishments,3111618731,"-14,741.78",South Moreton Pre-School
http://statistics.data.gov.uk/id/local-authority/38,Oxfordshire County Council,NURSERY ED FUND,28/02/2024,5537,Payments to Other Establishments,3111616934,"-14,695.85",Marcham Playgroup
http://statistics.data.gov.uk/id/local-authority/38,Oxfordshire County Council,Mainstream Res,22/02/2024,5560,B*Boundary Fencing,3111611810,"-14,687.63",Acorn Care & Education Ltd
http://statistics.data.gov.uk/id/local-authority/38,Oxfordshire County Council,NURSERY ED FUND,28/02/2024,5537,Payments to Other Establishments,3111622006,"-14,677.53",Checkendon Pre-School CIO
http://statistics.data.gov.uk/id/local-authority/38,Oxfordshire County Council,NURSERY ED FUND,28/02/2024,5537,Payments to Other Establishments,3111618066,"-14,659.19",Shelswell & Fringford Playgroup
http://statistics.data.gov.uk/id/local-authority/38,Oxfordshire County Council,NURSERY ED FUND,28/02/2024,5537,Payments to Other Establishments,3111619579,"-14,618.98",Kidsunlimited Oxford Business Park
http://statistics.data.gov.uk/id/local-authority/38,Oxfordshire County Council,CHC Fast Track - Care Homes - Over 65,12/02/2024,5687,,3111604181,"-14,614.29",METHODIST HOMES
http://statistics.data.gov.uk/id/local-authority/38,Oxfordshire County Council,NURSERY ED FUND,28/02/2024,5537,Payments to Other Establishments,3111617403,"-14,448.60",North Hinksey Pre School & Childcar
http://statistics.data.gov.uk/id/local-authority/38,Oxfordshire County Council,NURSERY ED FUND,28/02/2024,5537,Payments to Other Establishments,3111622482,"-14,402.66",The Willow On The Farm Nursery Ltd
http://statistics.data.gov.uk/id/local-authority/38,Oxfordshire County Council,NURSERY ED FUND,28/02/2024,5537,Payments to Other Establishments,3111625063,"-14,292.72",N�ra Charlbury Nursery
http://statistics.data.gov.uk/id/local-authority/38,Oxfordshire County Council,NURSERY ED FUND,28/02/2024,5537,Payments to Other Establishments,3111622388,"-14,292.72",The Aunties' Old School Nursery
http://statistics.data.gov.uk/id/local-authority/38,Oxfordshire County Council,NURSERY ED FUND,28/02/2024,5537,Payments to Other Establishments,3111617314,"-14,175.64",Steeple Aston Pre-School
http://statistics.data.gov.uk/id/local-authority/38,Oxfordshire County Council,NURSERY ED FUND,28/02/2024,5537,Payments to Other Establishments,3111616061,"-14,109.48",Busy Bees Playgroup (Thame)
http://statistics.data.gov.uk/id/local-authority/38,Oxfordshire County Council,NURSERY ED FUND,28/02/2024,5537,Payments to Other Establishments,3111617630,"-14,084.45",Childrey Little Ducks Pre-School
http://statistics.data.gov.uk/id/local-authority/38,Oxfordshire County Council,NURSERY ED FUND,28/02/2024,5537,Payments to Other Establishments,3111619382,"-14,072.84",Cygnets of Henley Ltd
http://statistics.data.gov.uk/id/local-authority/38,Oxfordshire County Council,CHC Fast Track - Care Homes - Over 65,12/02/2024,5687,,3111602753,"-13,984.33",Orders of St John
http://statistics.data.gov.uk/id/local-authority/38,Oxfordshire County Council,Funded Nursing Care  - Over 65,12/02/2024,5692,,3111603670,"-13,937.65",Banbury Heights Nursing Home
http://statistics.data.gov.uk/id/local-authority/38,Oxfordshire County Council,NURSERY ED FUND,28/02/2024,5537,Payments to Other Establishments,3111619293,"-13,871.52",A B C Nursery
http://statistics.data.gov.uk/id/local-authority/38,Oxfordshire County Council,NURSERY ED FUND,28/02/2024,5537,Payments to Other Establishments,3111617528,"-13,779.64",Brightwell Pre-school
http://statistics.data.gov.uk/id/local-authority/38,Oxfordshire County Council,NURSERY ED FUND,28/02/2024,5537,Payments to Other Establishments,3111621680,"-13,743.00",Lucy McAdden
http://statistics.data.gov.uk/id/local-authority/38,Oxfordshire County Council,NURSERY ED FUND,28/02/2024,5537,Payments to Other Establishments,3111623639,"-13,706.34",Small Steps Day Nursery Ltd
http://statistics.data.gov.uk/id/local-authority/38,Oxfordshire County Council,NURSERY ED FUND,28/02/2024,5537,Payments to Other Establishments,3111619782,"-13,692.65",Berinsfield Early Years Pre-School
http://statistics.data.gov.uk/id/local-authority/38,Oxfordshire County Council,NURSERY ED FUND,28/02/2024,5537,Payments to Other Establishments,3111617831,"-13,651.38",Cropredy Pre-School
http://statistics.data.gov.uk/id/local-authority/38,Oxfordshire County Council,NURSERY ED FUND,28/02/2024,5537,Payments to Other Establishments,3111619148,"-13,633.06",Stanford in the Vale Pre School
http://statistics.data.gov.uk/id/local-authority/38,Oxfordshire County Council,Funded Nursing Care  - Over 65,12/02/2024,5692,,3111603633,"-13,579.04",Banbury Heights Nursing Home
http://statistics.data.gov.uk/id/local-authority/38,Oxfordshire County Council,NURSERY ED FUND,28/02/2024,5537,Payments to Other Establishments,3111619564,"-13,571.71",Littlemore Playgroup
http://statistics.data.gov.uk/id/local-authority/38,Oxfordshire County Council,NURSERY ED FUND,28/02/2024,5537,Payments to Other Establishments,3111617883,"-13,559.77",Cogges Under 5s Associa
http://statistics.data.gov.uk/id/local-authority/38,Oxfordshire County Council,NURSERY ED FUND,28/02/2024,5537,Payments to Other Establishments,3111617449,"-13,525.27",Hanborough Pre-School
http://statistics.data.gov.uk/id/local-authority/38,Oxfordshire County Council,NURSERY ED FUND,28/02/2024,5537,Payments to Other Establishments,3111619489,"-13,466.74",Lake Street Nursery
http://statistics.data.gov.uk/id/local-authority/38,Oxfordshire County Council,NURSERY ED FUND,28/02/2024,5537,Payments to Other Establishments,3111617651,"-13,448.17",Combe Pre-school
http://statistics.data.gov.uk/id/local-authority/38,Oxfordshire County Council,Funded Nursing Care  - Over 65,12/02/2024,5692,,3111603630,"-13,429.62",Banbury Heights Nursing Home
http://statistics.data.gov.uk/id/local-authority/38,Oxfordshire County Council,NURSERY ED FUND,28/02/2024,5537,Payments to Other Establishments,3111618282,"-13,303.22",Ladybird Pre-School
http://statistics.data.gov.uk/id/local-authority/38,Oxfordshire County Council,NURSERY ED FUND,28/02/2024,5537,Payments to Other Establishments,3111617958,"-13,266.57",Jack and Jill Pre School
http://statistics.data.gov.uk/id/local-authority/38,Oxfordshire County Council,NURSERY ED FUND,28/02/2024,5537,Payments to Other Establishments,3111622065,"-13,202.57",The Early Years Nursery
http://statistics.data.gov.uk/id/local-authority/38,Oxfordshire County Council,NURSERY ED FUND,28/02/2024,5537,Payments to Other Establishments,3111619833,"-13,193.28",The Oxford Nursery (Eynsham)
http://statistics.data.gov.uk/id/local-authority/38,Oxfordshire County Council,NURSERY ED FUND,28/02/2024,5537,Payments to Other Establishments,3111623574,"-13,185.95",Badgemore Preschool
http://statistics.data.gov.uk/id/local-authority/38,Oxfordshire County Council,NURSERY ED FUND,28/02/2024,5537,Payments to Other Establishments,3111618577,"-13,114.52",Dorchester Pre-School
http://statistics.data.gov.uk/id/local-authority/38,Oxfordshire County Council,NURSERY ED FUND,28/02/2024,5537,Payments to Other Establishments,3111616129,"-13,092.63",Lord Williams School Da
http://statistics.data.gov.uk/id/local-authority/38,Oxfordshire County Council,NURSERY ED FUND,28/02/2024,5537,Payments to Other Establishments,3111618713,"-12,973.39",The Village Nursery
http://statistics.data.gov.uk/id/local-authority/38,Oxfordshire County Council,NURSERY ED FUND,28/02/2024,5537,Payments to Other Establishments,3111618448,"-12,877.38",Sunningwell Pre-School
http://statistics.data.gov.uk/id/local-authority/38,Oxfordshire County Council,NURSERY ED FUND,28/02/2024,5537,Payments to Other Establishments,3111624430,"-12,715.02",Kids Planet Mansion House Day Nurse
http://statistics.data.gov.uk/id/local-authority/38,Oxfordshire County Council,NURSERY ED FUND,28/02/2024,5537,Payments to Other Establishments,3111621507,"-12,643.56",St Peters Church of England Primary
http://statistics.data.gov.uk/id/local-authority/38,Oxfordshire County Council,NURSERY ED FUND,28/02/2024,5537,Payments to Other Establishments,3111616345,"-12,579.55",Charlbury Pre-School
http://statistics.data.gov.uk/id/local-authority/38,Oxfordshire County Council,NURSERY ED FUND,28/02/2024,5537,Payments to Other Establishments,3111617223,"-12,475.08",Broadshires Pre-School
http://statistics.data.gov.uk/id/local-authority/38,Oxfordshire County Council,NURSERY ED FUND,28/02/2024,5537,Payments to Other Establishments,3111625215,"-12,368.70",ST Hugh's School
http://statistics.data.gov.uk/id/local-authority/38,Oxfordshire County Council,NURSERY ED FUND,28/02/2024,5537,Payments to Other Establishments,3111617527,"-12,306.59",Kingsfield Nursery
http://statistics.data.gov.uk/id/local-authority/38,Oxfordshire County Council,NURSERY ED FUND,28/02/2024,5537,Payments to Other Establishments,3111616178,"-12,185.46",Freeland Pre-School (PFSU)
http://statistics.data.gov.uk/id/local-authority/38,Oxfordshire County Council,NURSERY ED FUND,28/02/2024,5537,Payments to Other Establishments,3111619737,"-12,169.54",SKIPS
http://statistics.data.gov.uk/id/local-authority/38,Oxfordshire County Council,NURSERY ED FUND,28/02/2024,5537,Payments to Other Establishments,3111620584,"-12,167.38",Cygnets Playschool
http://statistics.data.gov.uk/id/local-authority/38,Oxfordshire County Council,NURSERY ED FUND,28/02/2024,5537,Payments to Other Establishments,3111620381,"-12,135.09",Kids Unlimited (Clearwater Place)
http://statistics.data.gov.uk/id/local-authority/38,Oxfordshire County Council,NURSERY ED FUND,28/02/2024,5537,Payments to Other Establishments,3111618390,"-12,121.32",Cabin Pre-School
http://statistics.data.gov.uk/id/local-authority/38,Oxfordshire County Council,NURSERY ED FUND,28/02/2024,5537,Payments to Other Establishments,3111624551,"-12,093.84",Toddler Town Montessori Ltd
http://statistics.data.gov.uk/id/local-authority/38,Oxfordshire County Council,NURSERY ED FUND,28/02/2024,5537,Payments to Other Establishments,3111618020,"-12,076.02",Cherry Tree Nursery (Oxford)
http://statistics.data.gov.uk/id/local-authority/38,Oxfordshire County Council,COMM DRAWDOWN FUNDNG,09/02/2024,8102,Payments to main contractor,2201198099,"-11,990.37",Milestone Infrastructure Limited
http://statistics.data.gov.uk/id/local-authority/38,Oxfordshire County Council,NURSERY ED FUND,28/02/2024,5537,Payments to Other Establishments,3111616433,"-11,883.24",Rainbow Corner Day Nurse
http://statistics.data.gov.uk/id/local-authority/38,Oxfordshire County Council,NURSERY ED FUND,28/02/2024,5537,Payments to Other Establishments,3111618699,"-11,761.63",Ascott-under-Wychwood Pre-School
http://statistics.data.gov.uk/id/local-authority/38,Oxfordshire County Council,NURSERY ED FUND,28/02/2024,5537,Payments to Other Establishments,3111618082,"-11,681.55",Emmanuel Christian Schoo
http://statistics.data.gov.uk/id/local-authority/38,Oxfordshire County Council,NURSERY ED FUND,28/02/2024,5537,Payments to Other Establishments,3111621764,"-11,615.05",The Warriner Multi Academy Trust
http://statistics.data.gov.uk/id/local-authority/38,Oxfordshire County Council,NURSERY ED FUND,28/02/2024,5537,Payments to Other Establishments,3111622244,"-11,544.12",Bainton Road Nursery
http://statistics.data.gov.uk/id/local-authority/38,Oxfordshire County Council,NURSERY ED FUND,28/02/2024,5537,Payments to Other Establishments,3111625107,"-11,544.12",Sires Hill Primary Academy
http://statistics.data.gov.uk/id/local-authority/38,Oxfordshire County Council,Continuing Care - Care Homes - 65+,12/02/2024,5687,,3111602755,"-11,477.14",Orders of St John
http://statistics.data.gov.uk/id/local-authority/38,Oxfordshire County Council,NURSERY ED FUND,28/02/2024,5537,Payments to Other Establishments,3111616853,"-11,359.22",Middle Barton Pre-School
http://statistics.data.gov.uk/id/local-authority/38,Oxfordshire County Council,LD Continuing Care - Sup at Home - U65,13/02/2024,5688,,3111606970,"-11,258.70",The Brandon Trust
http://statistics.data.gov.uk/id/local-authority/38,Oxfordshire County Council,NURSERY ED FUND,28/02/2024,5537,Payments to Other Establishments,3111616486,"-11,223.57",Chesterton Playgroup
http://statistics.data.gov.uk/id/local-authority/38,Oxfordshire County Council,NURSERY ED FUND,28/02/2024,5537,Payments to Other Establishments,3111619013,"-11,122.92",Wootton & Dry Sandford P
http://statistics.data.gov.uk/id/local-authority/38,Oxfordshire County Council,NURSERY ED FUND,28/02/2024,5537,Payments to Other Establishments,3111619102,"-11,003.69",Minster Lovell Playgroup
http://statistics.data.gov.uk/id/local-authority/38,Oxfordshire County Council,NURSERY ED FUND,28/02/2024,5537,Payments to Other Establishments,3111621260,"-10,912.32",Little Treasure Day Nursery
http://statistics.data.gov.uk/id/local-authority/38,Oxfordshire County Council,NURSERY ED FUND,28/02/2024,5537,Payments to Other Establishments,3111619483,"-10,774.51",The Nursery
http://statistics.data.gov.uk/id/local-authority/38,Oxfordshire County Council,NURSERY ED FUND,28/02/2024,5537,Payments to Other Establishments,3111621549,"-10,558.28",Standlake CE Primary School
http://statistics.data.gov.uk/id/local-authority/38,Oxfordshire County Council,NURSERY ED FUND,28/02/2024,5537,Payments to Other Establishments,3111617945,"-10,496.09",Stonesfield Pre-School
http://statistics.data.gov.uk/id/local-authority/38,Oxfordshire County Council,NURSERY ED FUND,28/02/2024,5537,Payments to Other Establishments,3111621509,"-10,444.68",Buckland Primary School
http://statistics.data.gov.uk/id/local-authority/38,Oxfordshire County Council,NURSERY ED FUND,28/02/2024,5537,Payments to Other Establishments,3111621094,"-10,444.68",Orchard Meadow Primary School
http://statistics.data.gov.uk/id/local-authority/38,Oxfordshire County Council,NURSERY ED FUND,28/02/2024,5537,Payments to Other Establishments,3111617328,"-10,444.68",Woodcote Pre-School Group
http://statistics.data.gov.uk/id/local-authority/38,Oxfordshire County Council,Support at Home 65+ Physical Support,12/02/2024,5687,,3111606272,"-10,363.56",SANCTUARY CARE LTD
http://statistics.data.gov.uk/id/local-authority/38,Oxfordshire County Council,NURSERY ED FUND,28/02/2024,5537,Payments to Other Establishments,3111622766,"-10,234.08",Fundamentals Childcare Ltd
http://statistics.data.gov.uk/id/local-authority/38,Oxfordshire County Council,Support at Home U65 Physical Support,27/02/2024,5699,,3111614750,"-10,141.66",Direct Link Care Ltd
http://statistics.data.gov.uk/id/local-authority/38,Oxfordshire County Council,NURSERY ED FUND,28/02/2024,5537,Payments to Other Establishments,3111624969,"-10,087.49",Bright Horizons Witney Day Nursery
http://statistics.data.gov.uk/id/local-authority/38,Oxfordshire County Council,Care Homes - Over 65 Physical Sypport,12/02/2024,5687,,3111605468,"-10,065.71",Mill House Nursing Home
http://statistics.data.gov.uk/id/local-authority/38,Oxfordshire County Council,NURSERY ED FUND,28/02/2024,5537,Payments to Other Establishments,3111616556,"-10,011.60",Burford Pre-School
http://statistics.data.gov.uk/id/local-authority/38,Oxfordshire County Council,NURSERY ED FUND,28/02/2024,5537,Payments to Other Establishments,3111620883,"-9,675.07",Peapods Nursery School
http://statistics.data.gov.uk/id/local-authority/38,Oxfordshire County Council,NURSERY ED FUND,28/02/2024,5537,Payments to Other Establishments,3111624120,"-9,610.94",Tiny Toes Day Nursery (The Hay Barn
http://statistics.data.gov.uk/id/local-authority/38,Oxfordshire County Council,NURSERY ED FUND,28/02/2024,5537,Payments to Other Establishments,3111618037,"-9,480.89",Leafield Pre-School
http://statistics.data.gov.uk/id/local-authority/38,Oxfordshire County Council,NURSERY ED FUND,28/02/2024,5537,Payments to Other Establishments,3111616339,"-9,231.72",Long Wittenham Pre-School
http://statistics.data.gov.uk/id/local-authority/38,Oxfordshire County Council,NURSERY ED FUND,28/02/2024,5537,Payments to Other Establishments,3111616762,"-9,216.98",Annabelles Pre-school (Longcot)
http://statistics.data.gov.uk/id/local-authority/38,Oxfordshire County Council,NURSERY ED FUND,28/02/2024,5537,Payments to Other Establishments,3111624266,"-9,185.32",Fiona Baughan
http://statistics.data.gov.uk/id/local-authority/38,Oxfordshire County Council,NURSERY ED FUND,28/02/2024,5537,Payments to Other Establishments,3111617429,"-9,070.38",Oxford Montessori Nursery
http://statistics.data.gov.uk/id/local-authority/38,Oxfordshire County Council,Support at Home 65+ Physical Support,27/02/2024,5699,,3111615028,"-9,062.81",Kare Plus Oxford
http://statistics.data.gov.uk/id/local-authority/38,Oxfordshire County Council,NURSERY ED FUND,28/02/2024,5537,Payments to Other Establishments,3111619450,"-9,052.06",Forest Farm (Oxford Montessori Nurs
http://statistics.data.gov.uk/id/local-authority/38,Oxfordshire County Council,NURSERY ED FUND,28/02/2024,5537,Payments to Other Establishments,3111620141,"-8,832.67",Little Bears Pre-School (PFSU)
http://statistics.data.gov.uk/id/local-authority/38,Oxfordshire County Council,NURSERY ED FUND,28/02/2024,5537,Payments to Other Establishments,3111617853,"-8,804.80",Cumnor Pre-School Nurser
http://statistics.data.gov.uk/id/local-authority/38,Oxfordshire County Council,CHC Fast Track - Care Homes - Over 65,12/02/2024,5687,,3111602196,"-8,768.57",Orders of St John
http://statistics.data.gov.uk/id/local-authority/38,Oxfordshire County Council,NURSERY ED FUND,28/02/2024,5537,Payments to Other Establishments,3111618418,"-8,594.21",Begbroke Playgroup
http://statistics.data.gov.uk/id/local-authority/38,Oxfordshire County Council,NURSERY ED FUND,28/02/2024,5537,Payments to Other Establishments,3111623347,"-8,584.92",Hayley Murdoch
http://statistics.data.gov.uk/id/local-authority/38,Oxfordshire County Council,Funded Nursing Care  - Over 65,12/02/2024,5692,,3111604744,"-8,568.67",Freeland House
http://statistics.data.gov.uk/id/local-authority/38,Oxfordshire County Council,NURSERY ED FUND,28/02/2024,5537,Payments to Other Establishments,3111617684,"-8,374.32",Queensdown Nursery School
http://statistics.data.gov.uk/id/local-authority/38,Oxfordshire County Council,NURSERY ED FUND,28/02/2024,5537,Payments to Other Establishments,3111621722,"-8,355.75",Rabia Sharma
http://statistics.data.gov.uk/id/local-authority/38,Oxfordshire County Council,Support at Home 65+ Other /Soc Isolation,12/02/2024,5686,,3111603185,"-8,036.41",Orders of St John
http://statistics.data.gov.uk/id/local-authority/38,Oxfordshire County Council,Support at Home 65+ Memory & Cognition,27/02/2024,5699,,3111613437,"-7,964.98",Calvary Care Ltd
http://statistics.data.gov.uk/id/local-authority/38,Oxfordshire County Council,NURSERY ED FUND,28/02/2024,5537,Payments to Other Establishments,3111619689,"-7,915.97",Harpsden Pre-School Playgroup
http://statistics.data.gov.uk/id/local-authority/38,Oxfordshire County Council,NURSERY ED FUND,28/02/2024,5537,Payments to Other Establishments,3111617729,"-7,658.95",Whitchurch Pre-School Group
http://statistics.data.gov.uk/id/local-authority/38,Oxfordshire County Council,NURSERY ED FUND,28/02/2024,5537,Payments to Other Establishments,3111624219,"-7,505.71",Blewbury Preschool
http://statistics.data.gov.uk/id/local-authority/38,Oxfordshire County Council,Support at Home U65 Learning Disability,12/02/2024,5688,,3111603447,"-7,483.33",Style Acre
http://statistics.data.gov.uk/id/local-authority/38,Oxfordshire County Council,Care Homes - Over 65 Physical Sypport,12/02/2024,5685,B*Cycle tracks,3111605842,"-7,462.03",Stowford House
http://statistics.data.gov.uk/id/local-authority/38,Oxfordshire County Council,Care Homes - Over 65 Physical Sypport,12/02/2024,5685,B*Cycle tracks,3111606193,"-7,389.50",The Langston
http://statistics.data.gov.uk/id/local-authority/38,Oxfordshire County Council,SIGNING & LINING,14/02/2024,5526,Payments to Private Contractors,2201198709,"-7,279.60",Milestone Infrastructure Limited
http://statistics.data.gov.uk/id/local-authority/38,Oxfordshire County Council,NURSERY ED FUND,28/02/2024,5537,Payments to Other Establishments,3111621837,"-7,146.36",Burford Primary School (Academy)
http://statistics.data.gov.uk/id/local-authority/38,Oxfordshire County Council,NURSERY ED FUND,28/02/2024,5537,Payments to Other Establishments,3111617361,"-6,880.79",Great Tew Pre-School
http://statistics.data.gov.uk/id/local-authority/38,Oxfordshire County Council,COUNTY PRINT FINSHRS,16/02/2024,5091,Postage and Delivery,2201199227,"-6,859.10",Royal Mail Group Plc
http://statistics.data.gov.uk/id/local-authority/38,Oxfordshire County Council,Support at Home 65+ Mental Health,12/02/2024,5686,,3111605875,"-6,851.43",St Johns Residential Home
http://statistics.data.gov.uk/id/local-authority/38,Oxfordshire County Council,CHC Fast Track - Care Homes - Over 65,12/02/2024,5687,,3111606394,"-6,785.71",MARIA MALLABAND CARE GROUP
http://statistics.data.gov.uk/id/local-authority/38,Oxfordshire County Council,NURSERY ED FUND,28/02/2024,5537,Payments to Other Establishments,3111617923,"-6,752.39",Rye St Antony School
http://statistics.data.gov.uk/id/local-authority/38,Oxfordshire County Council,NURSERY ED FUND,28/02/2024,5537,Payments to Other Establishments,3111620331,"-6,750.87",Deddington Village Nursery
http://statistics.data.gov.uk/id/local-authority/38,Oxfordshire County Council,Funded Nursing Care  - Over 65,12/02/2024,5692,,3111604591,"-6,748.22",Oakland Wantage Care Home Limited
http://statistics.data.gov.uk/id/local-authority/38,Oxfordshire County Council,NURSERY ED FUND,28/02/2024,5537,Payments to Other Establishments,3111620982,"-6,596.64",Ladygrove Park Primary School
http://statistics.data.gov.uk/id/local-authority/38,Oxfordshire County Council,NURSERY ED FUND,28/02/2024,5537,Payments to Other Establishments,3111621370,"-6,596.64",Stanton Harcourt CE
http://statistics.data.gov.uk/id/local-authority/38,Oxfordshire County Council,NURSERY ED FUND,28/02/2024,5537,Payments to Other Establishments,3111623204,"-6,413.40",Tackley COFE Primary School
http://statistics.data.gov.uk/id/local-authority/38,Oxfordshire County Council,CHC Fast Track - Care Homes - Over 65,12/02/2024,5687,,3111605851,"-6,364.29",Stowford House
http://statistics.data.gov.uk/id/local-authority/38,Oxfordshire County Council,NURSERY ED FUND,28/02/2024,5537,Payments to Other Establishments,3111618945,"-6,303.46",EWELME PRE SCHOOL
http://statistics.data.gov.uk/id/local-authority/38,Oxfordshire County Council,Care Homes - Over 65 Physical Sypport,12/02/2024,5686,,3111604870,"-6,150.00",GCH (St Katherines) Ltd
http://statistics.data.gov.uk/id/local-authority/38,Oxfordshire County Council,NURSERY ED FUND,28/02/2024,5537,Payments to Other Establishments,3111622107,"-6,084.07",Mortimer Hall Pre-School CIO
http://statistics.data.gov.uk/id/local-authority/38,Oxfordshire County Council,NURSERY ED FUND,28/02/2024,5537,Payments to Other Establishments,3111616150,"-6,046.92",Balliol Day Nursery
http://statistics.data.gov.uk/id/local-authority/38,Oxfordshire County Council,NURSERY ED FUND,28/02/2024,5537,Payments to Other Establishments,3111624293,"-6,046.92",Sibford Gower Endowed Primary Schoo
http://statistics.data.gov.uk/id/local-authority/38,Oxfordshire County Council,CHC Fast Track - Care Homes - Over 65,12/02/2024,5687,,3111605699,"-6,000.00",Rushcourt Nursing Home
http://statistics.data.gov.uk/id/local-authority/38,Oxfordshire County Council,Funded Nursing Care  - Over 65,12/02/2024,5692,,3111604593,"-5,932.16",Oakland Wantage Care Home Limited
http://statistics.data.gov.uk/id/local-authority/38,Oxfordshire County Council,NURSERY ED FUND,28/02/2024,5537,Payments to Other Establishments,3111622679,"-5,625.72",Melanie Ford
http://statistics.data.gov.uk/id/local-authority/38,Oxfordshire County Council,Care Homes - Over 65 Physical Sypport,12/02/2024,5685,B*Cycle tracks,3111605074,"-5,613.26",HEALTHCARE HOMES (SPRING) LIMITED
http://statistics.data.gov.uk/id/local-authority/38,Oxfordshire County Council,NURSERY ED FUND,28/02/2024,5537,Payments to Other Establishments,3111621704,"-5,497.20",Bampton CofE School
http://statistics.data.gov.uk/id/local-authority/38,Oxfordshire County Council,CHC Fast Track - Care Homes - Over 65,12/02/2024,5687,,3111604252,"-5,496.86",CARE UK COMMUNITY PARTNERSHIPS LIMI
http://statistics.data.gov.uk/id/local-authority/38,Oxfordshire County Council,NURSERY ED FUND,28/02/2024,5537,Payments to Other Establishments,3111620510,"-5,451.52",Summertown Montessori Nursery
http://statistics.data.gov.uk/id/local-authority/38,Oxfordshire County Council,Funded Nursing Care  - Over 65,12/02/2024,5692,,3111606459,"-5,304.41",Wytham House
http://statistics.data.gov.uk/id/local-authority/38,Oxfordshire County Council,CHC Fast Track - Care Homes - Over 65,12/02/2024,5687,,3111605978,"-5,264.29",Tall Trees
http://statistics.data.gov.uk/id/local-authority/38,Oxfordshire County Council,CHC Fast Track - Care Homes - Under 65,12/02/2024,5687,,3111604172,"-5,142.86",METHODIST HOMES
http://statistics.data.gov.uk/id/local-authority/38,Oxfordshire County Council,NURSERY ED FUND,28/02/2024,5537,Payments to Other Establishments,3111621783,"-5,057.42",Florence Darby
http://statistics.data.gov.uk/id/local-authority/38,Oxfordshire County Council,Care Homes - Over 65 Memory & Cognition,12/02/2024,5686,,3111605353,"-5,028.57",Lyndhurst Residential Care Home
http://statistics.data.gov.uk/id/local-authority/38,Oxfordshire County Council,NURSERY ED FUND,28/02/2024,5537,Payments to Other Establishments,3111620500,"-4,947.48",St Annes College Day Nursery
http://statistics.data.gov.uk/id/local-authority/38,Oxfordshire County Council,Support at Home U65 Learning Disability,13/02/2024,5688,,3111606963,"-4,894.31",The Brandon Trust
http://statistics.data.gov.uk/id/local-authority/38,Oxfordshire County Council,Funded Nursing Care  - Over 65,12/02/2024,5692,,3111605400,"-4,864.99",Merryfield Nursing Home
http://statistics.data.gov.uk/id/local-authority/38,Oxfordshire County Council,NURSERY ED FUND,28/02/2024,5537,Payments to Other Establishments,3111623656,"-4,795.42",Victoria Bishop
http://statistics.data.gov.uk/id/local-authority/38,Oxfordshire County Council,Care Homes - Over 65 Physical Sypport,12/02/2024,5685,B*Cycle tracks,3111605081,"-4,785.86",HEALTHCARE HOMES (SPRING) LIMITED
http://statistics.data.gov.uk/id/local-authority/38,Oxfordshire County Council,Mainstream Res,21/02/2024,5558,,3111611669,"-4,756.37",Acorn Care & Education Ltd
http://statistics.data.gov.uk/id/local-authority/38,Oxfordshire County Council,Continuing Care - Care Homes - 65+,12/02/2024,5687,,3111606187,"-4,735.71",The Langston
http://statistics.data.gov.uk/id/local-authority/38,Oxfordshire County Council,COMM DRAWDOWN FUNDNG,21/02/2024,8004,Design Consultant,2201200377,"-4,656.96",Milestone Infrastructure Limited
http://statistics.data.gov.uk/id/local-authority/38,Oxfordshire County Council,Continuing Care - Care Homes - 65+,12/02/2024,5687,,3111606389,"-4,628.57",MARIA MALLABAND CARE GROUP
http://statistics.data.gov.uk/id/local-authority/38,Oxfordshire County Council,Care Homes - Over 65 Memory & Cognition,12/02/2024,5686,,3111604883,"-4,515.71",GCH (St Katherines) Ltd
http://statistics.data.gov.uk/id/local-authority/38,Oxfordshire County Council,Support at Home 65+ Memory & Cognition,12/02/2024,5686,,3111602314,"-4,440.00",Orders of St John
http://statistics.data.gov.uk/id/local-authority/38,Oxfordshire County Council,NURSERY ED FUND,28/02/2024,5537,Payments to Other Establishments,3111618681,"-4,397.76",Wolfson College Day Nurs
http://statistics.data.gov.uk/id/local-authority/38,Oxfordshire County Council,Care Homes - Over 65 Physical Sypport,12/02/2024,5686,,3111604910,"-4,360.00",GCH (St Katherines) Ltd
http://statistics.data.gov.uk/id/local-authority/38,Oxfordshire County Council,Continuing Care - Care Homes - 65+,12/02/2024,5687,,3111605955,"-4,294.23",Tall Trees
http://statistics.data.gov.uk/id/local-authority/38,Oxfordshire County Council,NURSERY ED FUND,28/02/2024,5537,Payments to Other Establishments,3111622212,"-4,278.78",Jemma Bridge
http://statistics.data.gov.uk/id/local-authority/38,Oxfordshire County Council,Support at Home 65+ Physical Support,12/02/2024,5687,,3111604785,"-4,271.43",Freeland House
http://statistics.data.gov.uk/id/local-authority/38,Oxfordshire County Council,2 YEAR OLD FUNDING - DISADVANTAGED,28/02/2024,5537,Payments to Other Establishments,3111615944,"-4,266.43",The Ace Centre
http://statistics.data.gov.uk/id/local-authority/38,Oxfordshire County Council,NURSERY ED FUND,28/02/2024,5537,Payments to Other Establishments,3111623669,"-4,205.74",Louise King
http://statistics.data.gov.uk/id/local-authority/38,Oxfordshire County Council,Care Homes - Over 65 Memory & Cognition,12/02/2024,5687,,3111604116,"-4,199.17",Bridge House
http://statistics.data.gov.uk/id/local-authority/38,Oxfordshire County Council,COMM DRAWDOWN FUNDNG,07/02/2024,8102,Payments to main contractor,2201196267,"-4,169.22",Milestone Infrastructure Limited
http://statistics.data.gov.uk/id/local-authority/38,Oxfordshire County Council,NURSERY ED FUND,28/02/2024,5537,Payments to Other Establishments,3111624833,"-4,077.22",Jane�s Kindergarten
http://statistics.data.gov.uk/id/local-authority/38,Oxfordshire County Council,Funded Nursing Care  - Over 65,12/02/2024,5692,,3111606173,"-4,048.93",The Langston
http://statistics.data.gov.uk/id/local-authority/38,Oxfordshire County Council,Mainstream Res,22/02/2024,5560,B*Boundary Fencing,3111611797,"-4,018.13",Acorn Care & Education Ltd
http://statistics.data.gov.uk/id/local-authority/38,Oxfordshire County Council,Mainstream Res,22/02/2024,5560,B*Boundary Fencing,3111611798,"-4,018.13",Acorn Care & Education Ltd
http://statistics.data.gov.uk/id/local-authority/38,Oxfordshire County Council,Funded Nursing Care  - Over 65,12/02/2024,5692,,3111604781,"-3,986.16",Freeland House
http://statistics.data.gov.uk/id/local-authority/38,Oxfordshire County Council,Care Homes - Over 65 Physical Sypport,12/02/2024,5687,,3111604161,"-3,977.79",METHODIST HOMES
http://statistics.data.gov.uk/id/local-authority/38,Oxfordshire County Council,NURSERY ED FUND,28/02/2024,5537,Payments to Other Establishments,3111624804,"-3,957.99",Finmere Primary School
http://statistics.data.gov.uk/id/local-authority/38,Oxfordshire County Council,Support at Home 65+ Memory & Cognition,27/02/2024,5699,,3111614771,"-3,921.99",Direct Link Care Ltd
http://statistics.data.gov.uk/id/local-authority/38,Oxfordshire County Council,Mainstream Res,22/02/2024,5560,B*Boundary Fencing,3111611795,"-3,888.51",Acorn Care & Education Ltd
http://statistics.data.gov.uk/id/local-authority/38,Oxfordshire County Council,Mainstream Res,22/02/2024,5560,B*Boundary Fencing,3111611796,"-3,888.51",Acorn Care & Education Ltd
http://statistics.data.gov.uk/id/local-authority/38,Oxfordshire County Council,Health Acquired Brain Injury C Homes U65,12/02/2024,5687,,3111604612,"-3,861.48",Elysium Healthcare
http://statistics.data.gov.uk/id/local-authority/38,Oxfordshire County Council,NURSERY ED FUND,28/02/2024,5537,Payments to Other Establishments,3111615900,"-3,848.04",Dr South's CE Primary School
http://statistics.data.gov.uk/id/local-authority/38,Oxfordshire County Council,NURSERY ED FUND,28/02/2024,5537,Payments to Other Establishments,3111621594,"-3,848.04",Theresa Lamble
http://statistics.data.gov.uk/id/local-authority/38,Oxfordshire County Council,Continuing Care - Care Homes - 65+,12/02/2024,5687,,3111606476,"-3,823.71",SANCTUARY CARE LTD
http://statistics.data.gov.uk/id/local-authority/38,Oxfordshire County Council,COMM DRAWDOWN FUNDNG,21/02/2024,8004,Design Consultant,2201200525,"-3,752.92",Milestone Infrastructure Limited
http://statistics.data.gov.uk/id/local-authority/38,Oxfordshire County Council,NURSERY ED FUND,28/02/2024,5537,Payments to Other Establishments,3111625037,"-3,742.68",The Bix Montessori School
http://statistics.data.gov.uk/id/local-authority/38,Oxfordshire County Council,NURSERY ED FUND,28/02/2024,5537,Payments to Other Establishments,3111623885,"-3,738.09",Lauren Gladden-Eaves
http://statistics.data.gov.uk/id/local-authority/38,Oxfordshire County Council,Care Homes - Over 65 Mental Health,12/02/2024,5686,,3111605206,"-3,737.14",Oxford Group Home Organ
http://statistics.data.gov.uk/id/local-authority/38,Oxfordshire County Council,NURSERY ED FUND,28/02/2024,5537,Payments to Other Establishments,3111624020,"-3,616.45",Nicola Williams
http://statistics.data.gov.uk/id/local-authority/38,Oxfordshire County Council,Continuing Care - Care Homes - 65+,12/02/2024,5687,,3111604315,"-3,600.00",Chacombe Park Care Home
http://statistics.data.gov.uk/id/local-authority/38,Oxfordshire County Council,Support at Home 65+ Physical Support,27/02/2024,5699,,3111614638,"-3,550.50",Direct Link Care Ltd
http://statistics.data.gov.uk/id/local-authority/38,Oxfordshire County Council,CHC Fast Track - Care Homes - Over 65,12/02/2024,5687,,3111604537,"-3,535.71",CUMNOR HILL HOUSE
http://statistics.data.gov.uk/id/local-authority/38,Oxfordshire County Council,COMM DRAWDOWN FUNDNG,09/02/2024,8102,Payments to main contractor,2201198101,"-3,513.54",Milestone Infrastructure Limited
http://statistics.data.gov.uk/id/local-authority/38,Oxfordshire County Council,Care Homes - Over 65 Mental Health,12/02/2024,5687,,3111604243,"-3,484.29",CARE UK COMMUNITY PARTNERSHIPS LIMI
http://statistics.data.gov.uk/id/local-authority/38,Oxfordshire County Council,Care Homes - Over 65 Memory & Cognition,12/02/2024,5686,,3111603267,"-3,449.77",ACER HEALTHCARE LTD
http://statistics.data.gov.uk/id/local-authority/38,Oxfordshire County Council,Continuing Care - Care Homes - 65+,12/02/2024,5687,,3111604993,"-3,428.57",Green Pastures Christian NH
http://statistics.data.gov.uk/id/local-authority/38,Oxfordshire County Council,MEMBERS SERVICES,21/02/2024,3942,Hire of Accommodation and Facilities,2201200398,"-3,370.00",Local Government Association
http://statistics.data.gov.uk/id/local-authority/38,Oxfordshire County Council,Funded Nursing Care  - Over 65,12/02/2024,5692,,3111603599,"-3,358.42",Banbury Heights Nursing Home
http://statistics.data.gov.uk/id/local-authority/38,Oxfordshire County Council,NURSERY ED FUND,28/02/2024,5537,Payments to Other Establishments,3111624581,"-3,298.32",Ami Underwood
http://statistics.data.gov.uk/id/local-authority/38,Oxfordshire County Council,NURSERY ED FUND,28/02/2024,5537,Payments to Other Establishments,3111622987,"-3,298.32",Anna Fraser
http://statistics.data.gov.uk/id/local-authority/38,Oxfordshire County Council,NURSERY ED FUND,28/02/2024,5537,Payments to Other Establishments,3111625050,"-3,298.32",Claire Hewitt
http://statistics.data.gov.uk/id/local-authority/38,Oxfordshire County Council,NURSERY ED FUND,28/02/2024,5537,Payments to Other Establishments,3111623881,"-3,298.32",Longcot and Fernham CE Primary Scho
http://statistics.data.gov.uk/id/local-authority/38,Oxfordshire County Council,NURSERY ED FUND,28/02/2024,5537,Payments to Other Establishments,3111619187,"-3,298.32","St Pauls Nursery, Somerville"
http://statistics.data.gov.uk/id/local-authority/38,Oxfordshire County Council,NURSERY ED FUND,28/02/2024,5537,Payments to Other Establishments,3111621667,"-3,216.24",Vikki Callaghan
http://statistics.data.gov.uk/id/local-authority/38,Oxfordshire County Council,NURSERY ED FUND,28/02/2024,5537,Payments to Other Establishments,3111621612,"-3,206.95",Nicola Playford
http://statistics.data.gov.uk/id/local-authority/38,Oxfordshire County Council,Care Homes - Over 65 Physical Sypport,12/02/2024,5685,B*Cycle tracks,3111603203,"-3,154.94",ACER HEALTHCARE LTD
http://statistics.data.gov.uk/id/local-authority/38,Oxfordshire County Council,NURSERY ED FUND,28/02/2024,5537,Payments to Other Establishments,3111625221,"-3,087.72",People Place and Participation Ltd
http://statistics.data.gov.uk/id/local-authority/38,Oxfordshire County Council,NURSERY ED FUND,28/02/2024,5537,Payments to Other Establishments,3111624534,"-3,078.43",Laura Allard
http://statistics.data.gov.uk/id/local-authority/38,Oxfordshire County Council,NURSERY ED FUND,28/02/2024,5537,Payments to Other Establishments,3111616815,"-3,078.43",The Orchard Pre-School
http://statistics.data.gov.uk/id/local-authority/38,Oxfordshire County Council,Funded Nursing Care  - Over 65,12/02/2024,5692,,3111604846,"-3,044.55",Godswell Park
http://statistics.data.gov.uk/id/local-authority/38,Oxfordshire County Council,Funded Nursing Care  - Over 65,12/02/2024,5692,,3111604725,"-3,013.16",Freeland House
http://statistics.data.gov.uk/id/local-authority/38,Oxfordshire County Council,NURSERY ED FUND,28/02/2024,5537,Payments to Other Establishments,3111623698,"-3,005.14",Alison Drummond
http://statistics.data.gov.uk/id/local-authority/38,Oxfordshire County Council,Continuing Care - Care Homes - 65+,12/02/2024,5687,,3111604187,"-2,985.71",Grace Care Service Ltd T/A Burford
http://statistics.data.gov.uk/id/local-authority/38,Oxfordshire County Council,Care Homes - Over 65 Physical Sypport,12/02/2024,5687,,3111604175,"-2,978.61",METHODIST HOMES
http://statistics.data.gov.uk/id/local-authority/38,Oxfordshire County Council,NURSERY ED FUND,28/02/2024,5537,Payments to Other Establishments,3111622296,"-2,968.48",Jackie Jones
http://statistics.data.gov.uk/id/local-authority/38,Oxfordshire County Council,Care Homes - Over 65 Physical Sypport,12/02/2024,5687,,3111606118,"-2,903.57",Four Seasons (Headington) Ltd
http://statistics.data.gov.uk/id/local-authority/38,Oxfordshire County Council,NURSERY ED FUND,28/02/2024,5537,Payments to Other Establishments,3111621618,"-2,877.12",Caryn Hornby
http://statistics.data.gov.uk/id/local-authority/38,Oxfordshire County Council,NURSERY ED FUND,28/02/2024,5537,Payments to Other Establishments,3111622304,"-2,858.54",Nicola Henshaw
http://statistics.data.gov.uk/id/local-authority/38,Oxfordshire County Council,Funded Nursing Care  - Over 65,12/02/2024,5692,,3111604606,"-2,824.84",Oakland Wantage Care Home Limited
http://statistics.data.gov.uk/id/local-authority/38,Oxfordshire County Council,Care Homes - Over 65 Physical Sypport,12/02/2024,5687,,3111604826,"-2,785.71",LAWTON GROUP LTD
http://statistics.data.gov.uk/id/local-authority/38,Oxfordshire County Council,NURSERY ED FUND,28/02/2024,5537,Payments to Other Establishments,3111623259,"-2,785.25",Zoe Mercer
http://statistics.data.gov.uk/id/local-authority/38,Oxfordshire County Council,NURSERY ED FUND,28/02/2024,5537,Payments to Other Establishments,3111621259,"-2,748.60",Abbey Woods Academy
http://statistics.data.gov.uk/id/local-authority/38,Oxfordshire County Council,NURSERY ED FUND,28/02/2024,5537,Payments to Other Establishments,3111622295,"-2,748.60",Jane Philpott
http://statistics.data.gov.uk/id/local-authority/38,Oxfordshire County Council,NURSERY ED FUND,28/02/2024,5537,Payments to Other Establishments,3111625261,"-2,748.60",Peapods Nursery Henley
http://statistics.data.gov.uk/id/local-authority/38,Oxfordshire County Council,ContrO ASC Payments Control Account,12/02/2024,7190,Other Recovered Costs,3111603943,"-2,742.04",The Camden Society
http://statistics.data.gov.uk/id/local-authority/38,Oxfordshire County Council,COMM DRAWDOWN FUNDNG,22/02/2024,8102,Payments to main contractor,2201200819,"-2,731.88",Milestone Infrastructure Limited
http://statistics.data.gov.uk/id/local-authority/38,Oxfordshire County Council,Care Homes - Over 65 Physical Sypport,12/02/2024,5686,,3111606481,"-2,720.04",SANCTUARY CARE LTD
http://statistics.data.gov.uk/id/local-authority/38,Oxfordshire County Council,Funded Nursing Care  - Over 65,12/02/2024,5692,,3111605449,"-2,667.90",Middletown Grange Care Home
http://statistics.data.gov.uk/id/local-authority/38,Oxfordshire County Council,Support at Home 65+ Memory & Cognition,12/02/2024,5685,B*Cycle tracks,3111602221,"-2,658.10",Orders of St John
http://statistics.data.gov.uk/id/local-authority/38,Oxfordshire County Council,Care Homes - Over 65 Physical Sypport,12/02/2024,5685,B*Cycle tracks,3111604820,"-2,636.33",LAWTON GROUP LTD
http://statistics.data.gov.uk/id/local-authority/38,Oxfordshire County Council,NURSERY ED FUND,28/02/2024,5537,Payments to Other Establishments,3111621784,"-2,602.01",Sally Anne Skellington
http://statistics.data.gov.uk/id/local-authority/38,Oxfordshire County Council,Care Homes - Over 65 Memory & Cognition,12/02/2024,5687,,3111606428,"-2,600.00",MARIA MALLABAND CARE GROUP
http://statistics.data.gov.uk/id/local-authority/38,Oxfordshire County Council,CHC Fast Track - Care Homes - Over 65,12/02/2024,5687,,3111604140,"-2,571.43",METHODIST HOMES
http://statistics.data.gov.uk/id/local-authority/38,Oxfordshire County Council,NURSERY ED FUND,28/02/2024,5537,Payments to Other Establishments,3111623846,"-2,538.00",Rosie Davis
http://statistics.data.gov.uk/id/local-authority/38,Oxfordshire County Council,NURSERY ED FUND,28/02/2024,5537,Payments to Other Establishments,3111622517,"-2,528.71",Mandy Stone
http://statistics.data.gov.uk/id/local-authority/38,Oxfordshire County Council,Funded Nursing Care  - Over 65,12/02/2024,5692,,3111604755,"-2,510.97",Freeland House
http://statistics.data.gov.uk/id/local-authority/38,Oxfordshire County Council,Support at Home U65 Learning Disability,12/02/2024,5690,,3111602828,"-2,488.47",Style Acre
http://statistics.data.gov.uk/id/local-authority/38,Oxfordshire County Council,Care Homes - Over 65 Leaning Disability,12/02/2024,5686,,3111604409,"-2,479.03",Community Homes of Intensive Care
http://statistics.data.gov.uk/id/local-authority/38,Oxfordshire County Council,Support at Home 65+ Physical Support,12/02/2024,5686,,3111604633,"-2,428.57",Enstone House
http://statistics.data.gov.uk/id/local-authority/38,Oxfordshire County Council,NURSERY ED FUND,28/02/2024,5537,Payments to Other Establishments,3111623306,"-2,382.12",Poppy Elliott
http://statistics.data.gov.uk/id/local-authority/38,Oxfordshire County Council,Support at Home 65+ Physical Support,12/02/2024,5686,,3111602209,"-2,349.11",Orders of St John
http://statistics.data.gov.uk/id/local-authority/38,Oxfordshire County Council,NURSERY ED FUND,28/02/2024,5537,Payments to Other Establishments,3111622220,"-2,327.40",Helen Dimmick
http://statistics.data.gov.uk/id/local-authority/38,Oxfordshire County Council,NURSERY ED FUND,28/02/2024,5537,Payments to Other Establishments,3111622790,"-2,308.82",Sally Rosoman
http://statistics.data.gov.uk/id/local-authority/38,Oxfordshire County Council,NURSERY ED FUND,28/02/2024,5537,Payments to Other Establishments,3111618942,"-2,290.50",Joscas Preparatory School
http://statistics.data.gov.uk/id/local-authority/38,Oxfordshire County Council,NURSERY ED FUND,28/02/2024,5537,Payments to Other Establishments,3111624854,"-2,251.01",Susan Exell
http://statistics.data.gov.uk/id/local-authority/38,Oxfordshire County Council,Care Homes - Under 65 MH - OBC Contract,12/02/2024,5686,,3111605653,"-2,238.17",2 Care
http://statistics.data.gov.uk/id/local-authority/38,Oxfordshire County Council,SEN TRANSPORT,06/02/2024,4330,Transport to School Activities,3111600959,"-2,216.16",Daci Chauffeurs
http://statistics.data.gov.uk/id/local-authority/38,Oxfordshire County Council,NURSERY ED FUND,28/02/2024,5537,Payments to Other Establishments,3111621646,"-2,198.88",Carol Pohlman
http://statistics.data.gov.uk/id/local-authority/38,Oxfordshire County Council,NURSERY ED FUND,28/02/2024,5537,Payments to Other Establishments,3111622889,"-2,198.88",Catherine Scate
http://statistics.data.gov.uk/id/local-authority/38,Oxfordshire County Council,NURSERY ED FUND,28/02/2024,5537,Payments to Other Establishments,3111625216,"-2,198.88",Claire Mullee (Childminder)
http://statistics.data.gov.uk/id/local-authority/38,Oxfordshire County Council,NURSERY ED FUND,28/02/2024,5537,Payments to Other Establishments,3111622281,"-2,198.88",Laura Dix
http://statistics.data.gov.uk/id/local-authority/38,Oxfordshire County Council,NURSERY ED FUND,28/02/2024,5537,Payments to Other Establishments,3111622247,"-2,198.88",Louise Duncan
http://statistics.data.gov.uk/id/local-authority/38,Oxfordshire County Council,NURSERY ED FUND,28/02/2024,5537,Payments to Other Establishments,3111623188,"-2,198.88",Lucy Dyer
http://statistics.data.gov.uk/id/local-authority/38,Oxfordshire County Council,NURSERY ED FUND,28/02/2024,5537,Payments to Other Establishments,3111621642,"-2,198.88",Nicky Hillier
http://statistics.data.gov.uk/id/local-authority/38,Oxfordshire County Council,NURSERY ED FUND,28/02/2024,5537,Payments to Other Establishments,3111622510,"-2,198.88",Rachel Mobbs
http://statistics.data.gov.uk/id/local-authority/38,Oxfordshire County Council,NURSERY ED FUND,28/02/2024,5537,Payments to Other Establishments,3111621703,"-2,198.88",Sarah Allen
http://statistics.data.gov.uk/id/local-authority/38,Oxfordshire County Council,NURSERY ED FUND,28/02/2024,5537,Payments to Other Establishments,3111621628,"-2,198.88",Sebrina O'Rourke
http://statistics.data.gov.uk/id/local-authority/38,Oxfordshire County Council,NURSERY ED FUND,28/02/2024,5537,Payments to Other Establishments,3111623696,"-2,198.88",Susan Karl
http://statistics.data.gov.uk/id/local-authority/38,Oxfordshire County Council,Funded Nursing Care  - Over 65,12/02/2024,5692,,3111604907,"-2,165.71",GCH (St Katherines) Ltd
http://statistics.data.gov.uk/id/local-authority/38,Oxfordshire County Council,NURSERY ED FUND,28/02/2024,5537,Payments to Other Establishments,3111622798,"-2,137.80",Sally Rosoman
http://statistics.data.gov.uk/id/local-authority/38,Oxfordshire County Council,NURSERY ED FUND,28/02/2024,5537,Payments to Other Establishments,3111621920,"-2,125.58",Sarah Peterson
http://statistics.data.gov.uk/id/local-authority/38,Oxfordshire County Council,Care Homes - Over 65 Physical Sypport,12/02/2024,5687,,3111604130,"-2,121.43",METHODIST HOMES
http://statistics.data.gov.uk/id/local-authority/38,Oxfordshire County Council,Support at Home 65+ Physical Support,12/02/2024,5686,,3111602476,"-2,101.83",Orders of St John
http://statistics.data.gov.uk/id/local-authority/38,Oxfordshire County Council,Care Homes - Over 65 Physical Sypport,12/02/2024,5685,B*Cycle tracks,3111604154,"-2,085.51",METHODIST HOMES
http://statistics.data.gov.uk/id/local-authority/38,Oxfordshire County Council,Care Homes - Under 65 Leaning Disability,12/02/2024,5686,,3111605640,"-2,026.11",REACH LTD
http://statistics.data.gov.uk/id/local-authority/38,Oxfordshire County Council,NURSERY ED FUND,28/02/2024,5537,Payments to Other Establishments,3111624024,"-1,988.28",Katrina Tanner
http://statistics.data.gov.uk/id/local-authority/38,Oxfordshire County Council,NURSERY ED FUND,28/02/2024,5537,Payments to Other Establishments,3111621710,"-1,988.28",Rebecca Sandwell
http://statistics.data.gov.uk/id/local-authority/38,Oxfordshire County Council,NURSERY ED FUND,28/02/2024,5537,Payments to Other Establishments,3111621640,"-1,979.00",Karen Fowler
http://statistics.data.gov.uk/id/local-authority/38,Oxfordshire County Council,NURSERY ED FUND,28/02/2024,5537,Payments to Other Establishments,3111622282,"-1,942.34",Claire Dow
http://statistics.data.gov.uk/id/local-authority/38,Oxfordshire County Council,NURSERY ED FUND,28/02/2024,5537,Payments to Other Establishments,3111623031,"-1,936.87",Lisa Hamilton
http://statistics.data.gov.uk/id/local-authority/38,Oxfordshire County Council,Continuing Care - Care Homes - 65+,12/02/2024,5687,,3111603814,"-1,928.57",Beech Haven Care Home
http://statistics.data.gov.uk/id/local-authority/38,Oxfordshire County Council,CHC Fast Track - Care Homes - Over 65,12/02/2024,5687,,3111605385,"-1,928.57",Meadow View Nursing Home
http://statistics.data.gov.uk/id/local-authority/38,Oxfordshire County Council,Funded Nursing Care  - Over 65,12/02/2024,5692,,3111606363,"-1,920.28",SANCTUARY CARE LTD
http://statistics.data.gov.uk/id/local-authority/38,Oxfordshire County Council,Care Homes - Over 65 Memory & Cognition,12/02/2024,5687,,3111603875,"-1,885.71",Beech Haven Care Home
http://statistics.data.gov.uk/id/local-authority/38,Oxfordshire County Council,Additional Discharge Fund - OCC,12/02/2024,5687,,3111604180,"-1,885.71",METHODIST HOMES
http://statistics.data.gov.uk/id/local-authority/38,Oxfordshire County Council,Care Homes - Over 65 Physical Sypport,12/02/2024,5686,,3111603916,"-1,868.75",CH (Benson) Limited
http://statistics.data.gov.uk/id/local-authority/38,Oxfordshire County Council,Funded Nursing Care  - Over 65,12/02/2024,5692,,3111603730,"-1,864.85",Banbury Heights Nursing Home
http://statistics.data.gov.uk/id/local-authority/38,Oxfordshire County Council,FOSTERING MAIN,06/02/2024,5548,B*Fostering - Special Rates & Plus Amou,3111600940,"-1,840.37",Redacted Personal Data
http://statistics.data.gov.uk/id/local-authority/38,Oxfordshire County Council,Care Homes - Over 65 Physical Sypport,12/02/2024,5687,,3111602408,"-1,801.42",Orders of St John
http://statistics.data.gov.uk/id/local-authority/38,Oxfordshire County Council,2 YEAR OLD FUNDING - DISADVANTAGED,28/02/2024,5537,Payments to Other Establishments,3111625260,"-1,777.68",Laura Morton
http://statistics.data.gov.uk/id/local-authority/38,Oxfordshire County Council,NURSERY ED FUND,28/02/2024,5537,Payments to Other Establishments,3111621981,"-1,759.10",Sharon Humphrey
http://statistics.data.gov.uk/id/local-authority/38,Oxfordshire County Council,NURSERY ED FUND,28/02/2024,5537,Payments to Other Establishments,3111622479,"-1,759.10",Susan Walsh
http://statistics.data.gov.uk/id/local-authority/38,Oxfordshire County Council,Care Homes - Over 65 Memory & Cognition,12/02/2024,5687,,3111604873,"-1,742.14",GCH (St Katherines) Ltd
http://statistics.data.gov.uk/id/local-authority/38,Oxfordshire County Council,Care Homes - Over 65 Physical Sypport,12/02/2024,5687,,3111604803,"-1,735.71",Freeland House
http://statistics.data.gov.uk/id/local-authority/38,Oxfordshire County Council,Care Homes - Over 65 Physical Sypport,12/02/2024,5687,,3111604761,"-1,724.86",Freeland House
http://statistics.data.gov.uk/id/local-authority/38,Oxfordshire County Council,NURSERY ED FUND,28/02/2024,5537,Payments to Other Establishments,3111621629,"-1,713.30",Sally Harvey
http://statistics.data.gov.uk/id/local-authority/38,Oxfordshire County Council,Care Homes - Under 65 Leaning Disability,12/02/2024,5686,,3111604216,"-1,706.04",Elmfield Cottage
http://statistics.data.gov.uk/id/local-authority/38,Oxfordshire County Council,UASC 16&17,13/02/2024,5549,B*Fostering Allowance - Regulation 38,3111607515,"-1,660.71",Redacted Personal Data
http://statistics.data.gov.uk/id/local-authority/38,Oxfordshire County Council,NURSERY ED FUND,28/02/2024,5537,Payments to Other Establishments,3111622756,"-1,658.45",Becky's Childminding Services
http://statistics.data.gov.uk/id/local-authority/38,Oxfordshire County Council,NURSERY ED FUND,28/02/2024,5537,Payments to Other Establishments,3111625217,"-1,649.16",Hannah Braham
http://statistics.data.gov.uk/id/local-authority/38,Oxfordshire County Council,NURSERY ED FUND,28/02/2024,5537,Payments to Other Establishments,3111622550,"-1,649.16",Jacqueline Lawson
http://statistics.data.gov.uk/id/local-authority/38,Oxfordshire County Council,NURSERY ED FUND,28/02/2024,5537,Payments to Other Establishments,3111624912,"-1,649.16",Jennifer Wells
http://statistics.data.gov.uk/id/local-authority/38,Oxfordshire County Council,NURSERY ED FUND,28/02/2024,5537,Payments to Other Establishments,3111622171,"-1,649.16",Kelly Wiblin
http://statistics.data.gov.uk/id/local-authority/38,Oxfordshire County Council,NURSERY ED FUND,28/02/2024,5537,Payments to Other Establishments,3111624649,"-1,649.16",Lisa Davies
http://statistics.data.gov.uk/id/local-authority/38,Oxfordshire County Council,NURSERY ED FUND,28/02/2024,5537,Payments to Other Establishments,3111623209,"-1,649.16",Michelle Buggins
http://statistics.data.gov.uk/id/local-authority/38,Oxfordshire County Council,NURSERY ED FUND,28/02/2024,5537,Payments to Other Establishments,3111622276,"-1,649.16",Tracey Hedges Childcare
http://statistics.data.gov.uk/id/local-authority/38,Oxfordshire County Council,Support at Home U65 Sensory Support,27/02/2024,5689,,3111614960,"-1,620.61",Home Helpers Care Ltd
http://statistics.data.gov.uk/id/local-authority/38,Oxfordshire County Council,NURSERY ED FUND,28/02/2024,5537,Payments to Other Establishments,3111623831,"-1,612.51",Victoria Murray
http://statistics.data.gov.uk/id/local-authority/38,Oxfordshire County Council,TRANSPORT COSTS,07/02/2024,4330,Transport to School Activities,3111601262,"-1,610.00",007 Taxi Limited
http://statistics.data.gov.uk/id/local-authority/38,Oxfordshire County Council,Care Homes - Over 65 Memory & Cognition,12/02/2024,5686,,3111602950,"-1,607.28",OSJ Contract - Stirlings
http://statistics.data.gov.uk/id/local-authority/38,Oxfordshire County Council,Care Homes - Over 65 Physical Sypport,12/02/2024,5687,,3111605099,"-1,600.96",Heathfield House Nursing Home
http://statistics.data.gov.uk/id/local-authority/38,Oxfordshire County Council,Care Homes - Over 65 Memory & Cognition,12/02/2024,5686,,3111604875,"-1,557.14",GCH (St Katherines) Ltd
http://statistics.data.gov.uk/id/local-authority/38,Oxfordshire County Council,CHC Fast Track - Care Homes - Over 65,12/02/2024,5687,,3111605618,"-1,550.00",Priory CC5 Limited
http://statistics.data.gov.uk/id/local-authority/38,Oxfordshire County Council,NURSERY ED FUND,28/02/2024,5537,Payments to Other Establishments,3111625105,"-1,548.50",Olivia Jeffs
http://statistics.data.gov.uk/id/local-authority/38,Oxfordshire County Council,NURSERY ED FUND,28/02/2024,5537,Payments to Other Establishments,3111622503,"-1,539.22",Natalie Velaj
http://statistics.data.gov.uk/id/local-authority/38,Oxfordshire County Council,NURSERY ED FUND,28/02/2024,5537,Payments to Other Establishments,3111621626,"-1,539.22",Redacted Personal Data
http://statistics.data.gov.uk/id/local-authority/38,Oxfordshire County Council,Support at Home 65+ Physical Support,27/02/2024,5699,,3111613957,"-1,538.32",Care Outlook Ltd
http://statistics.data.gov.uk/id/local-authority/38,Oxfordshire County Council,NURSERY ED FUND,28/02/2024,5537,Payments to Other Establishments,3111622289,"-1,511.73",Catherine Campbell
http://statistics.data.gov.uk/id/local-authority/38,Oxfordshire County Council,NURSERY ED FUND,28/02/2024,5537,Payments to Other Establishments,3111622507,"-1,502.57",Denise Gillian Swales
http://statistics.data.gov.uk/id/local-authority/38,Oxfordshire County Council,Care Homes - Over 65 Physical Sypport,12/02/2024,5687,,3111606277,"-1,498.23",SANCTUARY CARE LTD
http://statistics.data.gov.uk/id/local-authority/38,Oxfordshire County Council,NURSERY ED FUND,28/02/2024,5537,Payments to Other Establishments,3111621605,"-1,487.90",Deborah Barlow
http://statistics.data.gov.uk/id/local-authority/38,Oxfordshire County Council,CHC Fast Track - Care Homes - Over 65,12/02/2024,5687,,3111605114,"-1,485.71",Heathfield House Nursing Home
http://statistics.data.gov.uk/id/local-authority/38,Oxfordshire County Council,NURSERY ED FUND,28/02/2024,5537,Payments to Other Establishments,3111625129,"-1,465.92",Lynda Blades
http://statistics.data.gov.uk/id/local-authority/38,Oxfordshire County Council,SEN TRANSPORT,29/02/2024,4330,Transport to School Activities,3111625359,"-1,460.00",The Oxfordshire Taxi Company Ltd T/
http://statistics.data.gov.uk/id/local-authority/38,Oxfordshire County Council,NURSERY ED FUND,28/02/2024,5537,Payments to Other Establishments,3111621647,"-1,429.27",Catherine Emma Waddy
http://statistics.data.gov.uk/id/local-authority/38,Oxfordshire County Council,Care Homes - Over 65 Memory & Cognition,12/02/2024,5686,,3111604654,"-1,414.29",Featherton House
http://statistics.data.gov.uk/id/local-authority/38,Oxfordshire County Council,MAINSTREAM-SECONDARY,22/02/2024,4322,"Season Tickets - Bus, Rail & Ferry",3111611850,"-1,402.00",Oxford Bus Company Ltd
http://statistics.data.gov.uk/id/local-authority/38,Oxfordshire County Council,Support at Home 65+ Physical Support,27/02/2024,5699,,3111613311,"-1,400.97",Bridges Home Care Ltd
http://statistics.data.gov.uk/id/local-authority/38,Oxfordshire County Council,NURSERY ED FUND,28/02/2024,5537,Payments to Other Establishments,3111624071,"-1,392.62",Rachael Hall
http://statistics.data.gov.uk/id/local-authority/38,Oxfordshire County Council,Independent Foster,14/02/2024,5561,B* Bus Shelter Reps & Cleansing,3111609716,"-1,367.19",Fostering Support Group
http://statistics.data.gov.uk/id/local-authority/38,Oxfordshire County Council,Independent Foster,14/02/2024,5561,B* Bus Shelter Reps & Cleansing,3111609717,"-1,367.19",Fostering Support Group
http://statistics.data.gov.uk/id/local-authority/38,Oxfordshire County Council,NURSERY ED FUND,28/02/2024,5537,Payments to Other Establishments,3111621683,"-1,355.98",Rebecca Tapping
http://statistics.data.gov.uk/id/local-authority/38,Oxfordshire County Council,Care Homes - Over 65 Physical Sypport,12/02/2024,5687,,3111605233,"-1,355.00",The Julie Richardson Nursing Home
http://statistics.data.gov.uk/id/local-authority/38,Oxfordshire County Council,SEN TRANSPORT,27/02/2024,4330,Transport to School Activities,3111612822,"-1,353.00",Town Cars
http://statistics.data.gov.uk/id/local-authority/38,Oxfordshire County Council,NURSERY ED FUND,28/02/2024,5537,Payments to Other Establishments,3111624918,"-1,337.65",Michael Moody
http://statistics.data.gov.uk/id/local-authority/38,Oxfordshire County Council,NURSERY ED FUND,28/02/2024,5537,Payments to Other Establishments,3111621956,"-1,319.33",Emma Chambers
http://statistics.data.gov.uk/id/local-authority/38,Oxfordshire County Council,NURSERY ED FUND,28/02/2024,5537,Payments to Other Establishments,3111623193,"-1,319.33",Imogen Mason
http://statistics.data.gov.uk/id/local-authority/38,Oxfordshire County Council,NURSERY ED FUND,28/02/2024,5537,Payments to Other Establishments,3111622492,"-1,319.33",Nicola Rogers
http://statistics.data.gov.uk/id/local-authority/38,Oxfordshire County Council,NURSERY ED FUND,28/02/2024,5537,Payments to Other Establishments,3111624208,"-1,319.33",Zoe Osunde
http://statistics.data.gov.uk/id/local-authority/38,Oxfordshire County Council,Care Homes - Over 65 Physical Sypport,12/02/2024,5687,,3111602411,"-1,310.13",Orders of St John
http://statistics.data.gov.uk/id/local-authority/38,Oxfordshire County Council,NURSERY ED FUND,28/02/2024,5537,Payments to Other Establishments,3111622568,"-1,297.44",Victoria Littlejohn
http://statistics.data.gov.uk/id/local-authority/38,Oxfordshire County Council,SEN TRANSPORT,13/02/2024,4330,Transport to School Activities,3111609517,"-1,235.00",The Oxfordshire Taxi Company Ltd T/
http://statistics.data.gov.uk/id/local-authority/38,Oxfordshire County Council,NURSERY ED FUND,28/02/2024,5537,Payments to Other Establishments,3111623151,"-1,209.38",Samantha Smith
http://statistics.data.gov.uk/id/local-authority/38,Oxfordshire County Council,Care Homes - Over 65 Memory & Cognition,12/02/2024,5687,,3111605442,"-1,194.00",Middletown Grange Care Home
http://statistics.data.gov.uk/id/local-authority/38,Oxfordshire County Council,SEN TRANSPORT,06/02/2024,4330,Transport to School Activities,3111600960,"-1,183.00",Daci Chauffeurs
http://statistics.data.gov.uk/id/local-authority/38,Oxfordshire County Council,Continuing Care - Care Homes - Under 65,12/02/2024,5687,,3111606248,"-1,152.24",Valorum Care Limited
http://statistics.data.gov.uk/id/local-authority/38,Oxfordshire County Council,NURSERY ED FUND,28/02/2024,5537,Payments to Other Establishments,3111623226,"-1,136.09",Kayleigh James
http://statistics.data.gov.uk/id/local-authority/38,Oxfordshire County Council,CHC Fast Track - Care Homes - Over 65,12/02/2024,5687,,3111605615,"-1,107.14",Priory CC5 Limited
http://statistics.data.gov.uk/id/local-authority/38,Oxfordshire County Council,NURSERY ED FUND,28/02/2024,5537,Payments to Other Establishments,3111624780,"-1,099.44",Anna-Marie Bennett
http://statistics.data.gov.uk/id/local-authority/38,Oxfordshire County Council,NURSERY ED FUND,28/02/2024,5537,Payments to Other Establishments,3111622800,"-1,099.44",Carole Hickman
http://statistics.data.gov.uk/id/local-authority/38,Oxfordshire County Council,NURSERY ED FUND,28/02/2024,5537,Payments to Other Establishments,3111624036,"-1,099.44",Claire King
http://statistics.data.gov.uk/id/local-authority/38,Oxfordshire County Council,NURSERY ED FUND,28/02/2024,5537,Payments to Other Establishments,3111623727,"-1,099.44",Deborah Taylor
http://statistics.data.gov.uk/id/local-authority/38,Oxfordshire County Council,NURSERY ED FUND,28/02/2024,5537,Payments to Other Establishments,3111623768,"-1,099.44",Diane Munezero
http://statistics.data.gov.uk/id/local-authority/38,Oxfordshire County Council,NURSERY ED FUND,28/02/2024,5537,Payments to Other Establishments,3111625118,"-1,099.44",Fran Davis
http://statistics.data.gov.uk/id/local-authority/38,Oxfordshire County Council,NURSERY ED FUND,28/02/2024,5537,Payments to Other Establishments,3111623759,"-1,099.44",Gemma Jenkins
http://statistics.data.gov.uk/id/local-authority/38,Oxfordshire County Council,NURSERY ED FUND,28/02/2024,5537,Payments to Other Establishments,3111621671,"-1,099.44",Gill Jones
http://statistics.data.gov.uk/id/local-authority/38,Oxfordshire County Council,NURSERY ED FUND,28/02/2024,5537,Payments to Other Establishments,3111621660,"-1,099.44",Gillian Wright
http://statistics.data.gov.uk/id/local-authority/38,Oxfordshire County Council,NURSERY ED FUND,28/02/2024,5537,Payments to Other Establishments,3111622495,"-1,099.44",Hana Staley
http://statistics.data.gov.uk/id/local-authority/38,Oxfordshire County Council,NURSERY ED FUND,28/02/2024,5537,Payments to Other Establishments,3111624917,"-1,099.44",Jette Seymour
http://statistics.data.gov.uk/id/local-authority/38,Oxfordshire County Council,NURSERY ED FUND,28/02/2024,5537,Payments to Other Establishments,3111624921,"-1,099.44",Joanne Eeles
http://statistics.data.gov.uk/id/local-authority/38,Oxfordshire County Council,NURSERY ED FUND,28/02/2024,5537,Payments to Other Establishments,3111621675,"-1,099.44",Julie Harvey
http://statistics.data.gov.uk/id/local-authority/38,Oxfordshire County Council,NURSERY ED FUND,28/02/2024,5537,Payments to Other Establishments,3111624632,"-1,099.44",Kim Joslyn
http://statistics.data.gov.uk/id/local-authority/38,Oxfordshire County Council,NURSERY ED FUND,28/02/2024,5537,Payments to Other Establishments,3111624792,"-1,099.44",Redacted Personal Data
http://statistics.data.gov.uk/id/local-authority/38,Oxfordshire County Council,NURSERY ED FUND,28/02/2024,5537,Payments to Other Establishments,3111622505,"-1,099.44",Margarete Paz
http://statistics.data.gov.uk/id/local-authority/38,Oxfordshire County Council,NURSERY ED FUND,28/02/2024,5537,Payments to Other Establishments,3111622613,"-1,099.44",Michelle Williams
http://statistics.data.gov.uk/id/local-authority/38,Oxfordshire County Council,NURSERY ED FUND,28/02/2024,5537,Payments to Other Establishments,3111621652,"-1,099.44",Rachael Shaer
http://statistics.data.gov.uk/id/local-authority/38,Oxfordshire County Council,NURSERY ED FUND,28/02/2024,5537,Payments to Other Establishments,3111623878,"-1,099.44",Sarah Radband
http://statistics.data.gov.uk/id/local-authority/38,Oxfordshire County Council,NURSERY ED FUND,28/02/2024,5537,Payments to Other Establishments,3111625097,"-1,099.44",Sarah Wrapson
http://statistics.data.gov.uk/id/local-authority/38,Oxfordshire County Council,NURSERY ED FUND,28/02/2024,5537,Payments to Other Establishments,3111624779,"-1,099.44",Sophie Cushing
http://statistics.data.gov.uk/id/local-authority/38,Oxfordshire County Council,NURSERY ED FUND,28/02/2024,5537,Payments to Other Establishments,3111622245,"-1,099.44",Stephanie Allen
http://statistics.data.gov.uk/id/local-authority/38,Oxfordshire County Council,NURSERY ED FUND,28/02/2024,5537,Payments to Other Establishments,3111621926,"-1,099.44",Tina Farmer
http://statistics.data.gov.uk/id/local-authority/38,Oxfordshire County Council,NURSERY ED FUND,28/02/2024,5537,Payments to Other Establishments,3111615928,"-1,099.44",Wendy Dawson
http://statistics.data.gov.uk/id/local-authority/38,Oxfordshire County Council,Care Homes - Over 65 Physical Sypport,12/02/2024,5685,B*Cycle tracks,3111604263,"-1,077.76",WT UK Opco 4 Ltd C/O Care UK
http://statistics.data.gov.uk/id/local-authority/38,Oxfordshire County Council,NURSERY ED FUND,28/02/2024,5537,Payments to Other Establishments,3111620300,"-1,068.90",The Sunshine Centre
http://statistics.data.gov.uk/id/local-authority/38,Oxfordshire County Council,NURSERY ED FUND,28/02/2024,5537,Payments to Other Establishments,3111622734,"-1,044.47",Julie Powell
http://statistics.data.gov.uk/id/local-authority/38,Oxfordshire County Council,Support at Home U65 Physical Support,27/02/2024,5699,,3111615120,"-1,030.13",TOPKARE LIMITED
http://statistics.data.gov.uk/id/local-authority/38,Oxfordshire County Council,Care Homes - Over 65 Physical Sypport,12/02/2024,5685,B*Cycle tracks,3111605027,"-1,011.68",HC-ONE NO.1 LIMITED
http://statistics.data.gov.uk/id/local-authority/38,Oxfordshire County Council,NURSERY ED FUND,28/02/2024,5537,Payments to Other Establishments,3111622010,"-1,007.82",Naomi O'callaghan
http://statistics.data.gov.uk/id/local-authority/38,Oxfordshire County Council,FOSTERING MAIN,13/02/2024,5569,,3111607465,"-1,006.58",Redacted Personal Data
http://statistics.data.gov.uk/id/local-authority/38,Oxfordshire County Council,Funded Nursing Care  - Over 65,12/02/2024,5692,,3111606419,"-1,004.39",MARIA MALLABAND CARE GROUP
http://statistics.data.gov.uk/id/local-authority/38,Oxfordshire County Council,Councillors Priorities Fund,15/02/2024,4940,Other Services,3111609880,"-1,000.00",Deddington Town Colts FC
http://statistics.data.gov.uk/id/local-authority/38,Oxfordshire County Council,Care Homes - Over 65 Physical Sypport,12/02/2024,5687,,3111606106,"-1,000.00",Four Seasons (Headington) Ltd
http://statistics.data.gov.uk/id/local-authority/38,Oxfordshire County Council,Procurement Rebates & Income,06/02/2024,7203,Other Miscellaneous Income,3111600195,"-1,000.00",OCC One Time Vendor
http://statistics.data.gov.uk/id/local-authority/38,Oxfordshire County Council,Care Homes - Over 65 Physical Sypport,12/02/2024,5686,,3111602829,-989.10,Orders of St John
http://statistics.data.gov.uk/id/local-authority/38,Oxfordshire County Council,SCHOOLS FORUM,14/02/2024,3942,Hire of Accommodation and Facilities,2201198801,-980.00,Leonardo Hotels Management UK Limit
http://statistics.data.gov.uk/id/local-authority/38,Oxfordshire County Council,Support at Home 65+ Physical Support,27/02/2024,5699,,3111613315,-971.06,Bridges Home Care Ltd
http://statistics.data.gov.uk/id/local-authority/38,Oxfordshire County Council,Funded Nursing Care  - Over 65,12/02/2024,5692,,3111605445,-910.23,Middletown Grange Care Home
http://statistics.data.gov.uk/id/local-authority/38,Oxfordshire County Council,Pool Cars,19/02/2024,4270,HTM / Other Vehicle - Hire Charges,2201199612,-904.48,LeasePlan UK Ltd t/a Automotive Lea
http://statistics.data.gov.uk/id/local-authority/38,Oxfordshire County Council,2 YEAR OLD FUNDING - DISADVANTAGED,28/02/2024,5537,Payments to Other Establishments,3111625103,-888.84,Carrie-Jayne Currell
http://statistics.data.gov.uk/id/local-authority/38,Oxfordshire County Council,2 YEAR OLD FUNDING - DISADVANTAGED,28/02/2024,5537,Payments to Other Establishments,3111624949,-888.84,Catriona McMenamin
http://statistics.data.gov.uk/id/local-authority/38,Oxfordshire County Council,2 YEAR OLD FUNDING - DISADVANTAGED,28/02/2024,5537,Payments to Other Establishments,3111623302,-888.84,Charlotte Ford
http://statistics.data.gov.uk/id/local-authority/38,Oxfordshire County Council,2 YEAR OLD FUNDING - DISADVANTAGED,28/02/2024,5537,Payments to Other Establishments,3111622186,-888.84,Freida Brackman
http://statistics.data.gov.uk/id/local-authority/38,Oxfordshire County Council,2 YEAR OLD FUNDING - DISADVANTAGED,28/02/2024,5537,Payments to Other Establishments,3111622984,-888.84,Helen Porter-Sparks
http://statistics.data.gov.uk/id/local-authority/38,Oxfordshire County Council,2 YEAR OLD FUNDING - DISADVANTAGED,28/02/2024,5537,Payments to Other Establishments,3111625090,-888.84,Issy Hull
http://statistics.data.gov.uk/id/local-authority/38,Oxfordshire County Council,2 YEAR OLD FUNDING - DISADVANTAGED,28/02/2024,5537,Payments to Other Establishments,3111625109,-888.84,Jacqueline Fowler
http://statistics.data.gov.uk/id/local-authority/38,Oxfordshire County Council,2 YEAR OLD FUNDING - DISADVANTAGED,28/02/2024,5537,Payments to Other Establishments,3111623295,-888.84,Jade Bamford
http://statistics.data.gov.uk/id/local-authority/38,Oxfordshire County Council,2 YEAR OLD FUNDING - DISADVANTAGED,28/02/2024,5537,Payments to Other Establishments,3111615938,-888.84,Kerry Lydiate
http://statistics.data.gov.uk/id/local-authority/38,Oxfordshire County Council,2 YEAR OLD FUNDING - DISADVANTAGED,28/02/2024,5537,Payments to Other Establishments,3111623635,-888.84,Matthew Hills
http://statistics.data.gov.uk/id/local-authority/38,Oxfordshire County Council,2 YEAR OLD FUNDING - DISADVANTAGED,28/02/2024,5537,Payments to Other Establishments,3111621669,-888.84,Maureen Sim
http://statistics.data.gov.uk/id/local-authority/38,Oxfordshire County Council,2 YEAR OLD FUNDING - DISADVANTAGED,28/02/2024,5537,Payments to Other Establishments,3111624196,-888.84,Naomi Dixon
http://statistics.data.gov.uk/id/local-authority/38,Oxfordshire County Council,2 YEAR OLD FUNDING - DISADVANTAGED,28/02/2024,5537,Payments to Other Establishments,3111622615,-888.84,Nicola Rice
http://statistics.data.gov.uk/id/local-authority/38,Oxfordshire County Council,2 YEAR OLD FUNDING - DISADVANTAGED,28/02/2024,5537,Payments to Other Establishments,3111625213,-888.84,Sally Reading
http://statistics.data.gov.uk/id/local-authority/38,Oxfordshire County Council,2 YEAR OLD FUNDING - DISADVANTAGED,28/02/2024,5537,Payments to Other Establishments,3111623338,-888.84,Sylwia Horozaniecka
http://statistics.data.gov.uk/id/local-authority/38,Oxfordshire County Council,2 YEAR OLD FUNDING - DISADVANTAGED,28/02/2024,5537,Payments to Other Establishments,3111625263,-888.84,Tammy Judd
http://statistics.data.gov.uk/id/local-authority/38,Oxfordshire County Council,2 YEAR OLD FUNDING - DISADVANTAGED,28/02/2024,5537,Payments to Other Establishments,3111622068,-888.84,Tracey Tricker
http://statistics.data.gov.uk/id/local-authority/38,Oxfordshire County Council,2 YEAR OLD FUNDING - DISADVANTAGED,28/02/2024,5537,Payments to Other Establishments,3111624764,-888.84,Victoria Hopkins
http://statistics.data.gov.uk/id/local-authority/38,Oxfordshire County Council,NURSERY ED FUND,28/02/2024,5537,Payments to Other Establishments,3111622806,-879.55,Karen Wilcox
http://statistics.data.gov.uk/id/local-authority/38,Oxfordshire County Council,NURSERY ED FUND,28/02/2024,5537,Payments to Other Establishments,3111622049,-879.55,Kerry Wilkins
http://statistics.data.gov.uk/id/local-authority/38,Oxfordshire County Council,Planned Maintenance,08/02/2024,4042,Fixtures and Fittings,2201197177,-847.00,Barker & Evans Ltd
http://statistics.data.gov.uk/id/local-authority/38,Oxfordshire County Council,NURSERY ED FUND,28/02/2024,5537,Payments to Other Establishments,3111616997,-839.85,Robin Playgroup
http://statistics.data.gov.uk/id/local-authority/38,Oxfordshire County Council,2 YEAR OLD FUNDING - DISADVANTAGED,28/02/2024,5537,Payments to Other Establishments,3111623343,-829.58,Anne Marie Davis
http://statistics.data.gov.uk/id/local-authority/38,Oxfordshire County Council,UASC 16&17,05/02/2024,5549,B*Fostering Allowance - Regulation 38,3111599723,-822.00,Redacted Personal Data
http://statistics.data.gov.uk/id/local-authority/38,Oxfordshire County Council,Support at Home U65 Physical Support,27/02/2024,5227,Other Transport Arrangements,3111612823,-818.40,Town Cars
http://statistics.data.gov.uk/id/local-authority/38,Oxfordshire County Council,Funded Nursing Care  - Over 65,12/02/2024,5692,,3111604586,-816.07,Oakland Wantage Care Home Limited
http://statistics.data.gov.uk/id/local-authority/38,Oxfordshire County Council,SEN TRANSPORT,21/02/2024,4320,Pupil / Client Travel Reimbursement,3111611662,-795.96,Redacted Personal Data
http://statistics.data.gov.uk/id/local-authority/38,Oxfordshire County Council,Care Homes - Over 65 Memory & Cognition,12/02/2024,5687,,3111605547,-774.29,Oxford Beaumont
http://statistics.data.gov.uk/id/local-authority/38,Oxfordshire County Council,NURSERY ED FUND,28/02/2024,5537,Payments to Other Establishments,3111621923,-769.61,Samantha Gadsby (Childminder)
http://statistics.data.gov.uk/id/local-authority/38,Oxfordshire County Council,Care Homes - Over 65 Memory & Cognition,12/02/2024,5686,,3111605536,-767.81,Oxenford House
http://statistics.data.gov.uk/id/local-authority/38,Oxfordshire County Council,Funded Nursing Care  - Over 65,12/02/2024,5692,,3111606305,-753.29,Wardington House Nursing Home
http://statistics.data.gov.uk/id/local-authority/38,Oxfordshire County Council,NURSERY ED FUND,28/02/2024,5537,Payments to Other Establishments,3111621644,-732.96,Alison Kennet
http://statistics.data.gov.uk/id/local-authority/38,Oxfordshire County Council,NURSERY ED FUND,28/02/2024,5537,Payments to Other Establishments,3111615988,-732.96,Amanda Sinclair
http://statistics.data.gov.uk/id/local-authority/38,Oxfordshire County Council,NURSERY ED FUND,28/02/2024,5537,Payments to Other Establishments,3111623203,-732.96,Theresa Carlyle
http://statistics.data.gov.uk/id/local-authority/38,Oxfordshire County Council,SEN Inclusion Fund,29/02/2024,5537,Payments to Other Establishments,3111625652,-731.50,The Old Station Nursery
http://statistics.data.gov.uk/id/local-authority/38,Oxfordshire County Council,Care Homes - Over 65 Physical Sypport,12/02/2024,5686,,3111602233,-731.43,Orders of St John
http://statistics.data.gov.uk/id/local-authority/38,Oxfordshire County Council,Support at Home 65+ Physical Support,27/02/2024,5698,,3111614663,-726.08,Day & Night Care Assistance
http://statistics.data.gov.uk/id/local-authority/38,Oxfordshire County Council,Funded Nursing Care  - Under 65,12/02/2024,5692,,3111606028,-690.52,The Close Nursing Home
http://statistics.data.gov.uk/id/local-authority/38,Oxfordshire County Council,Support at Home 65+ Physical Support,05/02/2024,5696,,3111599970,-683.42,Orders of St John Care Trust
http://statistics.data.gov.uk/id/local-authority/38,Oxfordshire County Council,,27/02/2024,1320,Childcare Vouchers A/C,3111612775,-670.00,Childcare Vouchers Ltd
http://statistics.data.gov.uk/id/local-authority/38,Oxfordshire County Council,NURSERY ED FUND,28/02/2024,5537,Payments to Other Establishments,3111623476,-659.67,Charlotte Saxby
http://statistics.data.gov.uk/id/local-authority/38,Oxfordshire County Council,NURSERY ED FUND,28/02/2024,5537,Payments to Other Establishments,3111622909,-659.67,Karen Scarborough
http://statistics.data.gov.uk/id/local-authority/38,Oxfordshire County Council,NURSERY ED FUND,28/02/2024,5537,Payments to Other Establishments,3111625040,-659.66,Ella's Cottage Childminding
http://statistics.data.gov.uk/id/local-authority/38,Oxfordshire County Council,NURSERY ED FUND,28/02/2024,5537,Payments to Other Establishments,3111623854,-659.66,Jourdan Sessegnon
http://statistics.data.gov.uk/id/local-authority/38,Oxfordshire County Council,NURSERY ED FUND,28/02/2024,5537,Payments to Other Establishments,3111621621,-659.66,Kate Adams
http://statistics.data.gov.uk/id/local-authority/38,Oxfordshire County Council,NURSERY ED FUND,28/02/2024,5537,Payments to Other Establishments,3111622732,-659.66,Patricia Bricknell
http://statistics.data.gov.uk/id/local-authority/38,Oxfordshire County Council,NURSERY ED FUND,28/02/2024,5537,Payments to Other Establishments,3111622761,-659.66,Zoe Heaton
http://statistics.data.gov.uk/id/local-authority/38,Oxfordshire County Council,Funded Nursing Care  - Over 65,12/02/2024,5692,,3111604921,-659.13,Green Gates NH (BUPA)
http://statistics.data.gov.uk/id/local-authority/38,Oxfordshire County Council,Funded Nursing Care  - Over 65,12/02/2024,5692,,3111605407,-659.13,Merryfield Nursing Home
http://statistics.data.gov.uk/id/local-authority/38,Oxfordshire County Council,Pool Cars,19/02/2024,4270,HTM / Other Vehicle - Hire Charges,2201199635,-639.29,LeasePlan UK Ltd t/a Automotive Lea
http://statistics.data.gov.uk/id/local-authority/38,Oxfordshire County Council,Funded Nursing Care  - Over 65,12/02/2024,5692,,3111604970,-639.28,Green Pastures Christian NH
http://statistics.data.gov.uk/id/local-authority/38,Oxfordshire County Council,SEN TRANSPORT,21/02/2024,4320,Pupil / Client Travel Reimbursement,3111611341,-631.40,Redacted Personal Data
http://statistics.data.gov.uk/id/local-authority/38,Oxfordshire County Council,Funded Nursing Care  - Over 65,12/02/2024,5692,,3111603958,-627.74,CH (Benson) Limited
http://statistics.data.gov.uk/id/local-authority/38,Oxfordshire County Council,NURSERY ED FUND,28/02/2024,5537,Payments to Other Establishments,3111617930,-610.80,Jack and Jill Pre School
http://statistics.data.gov.uk/id/local-authority/38,Oxfordshire County Council,,21/02/2024,1448,Blackfield Inc & Exp A/c,3111611339,-608.60,OCC One Time Vendor
http://statistics.data.gov.uk/id/local-authority/38,Oxfordshire County Council,Support at Home U65 Learning Disability,27/02/2024,5699,,3111613290,-597.48,BBC CARE SERVICE LIMITED
http://statistics.data.gov.uk/id/local-authority/38,Oxfordshire County Council,Support at Home U65 Mental Health,27/02/2024,5699,,3111615144,-576.87,Oasis Private Care Ltd
http://statistics.data.gov.uk/id/local-authority/38,Oxfordshire County Council,Pool Cars,12/02/2024,4270,HTM / Other Vehicle - Hire Charges,2201198340,-567.78,LeasePlan UK Ltd t/a Automotive Lea
http://statistics.data.gov.uk/id/local-authority/38,Oxfordshire County Council,Pool Cars,12/02/2024,4270,HTM / Other Vehicle - Hire Charges,2201198342,-567.77,LeasePlan UK Ltd t/a Automotive Lea
http://statistics.data.gov.uk/id/local-authority/38,Oxfordshire County Council,Pool Cars,14/02/2024,4270,HTM / Other Vehicle - Hire Charges,2201198871,-567.77,LeasePlan UK Ltd t/a Automotive Lea
http://statistics.data.gov.uk/id/local-authority/38,Oxfordshire County Council,Funded Nursing Care  - Over 65,12/02/2024,5692,,3111605085,-564.97,HEALTHCARE HOMES (SPRING) LIMITED
http://statistics.data.gov.uk/id/local-authority/38,Oxfordshire County Council,Reactive Maintenance,21/02/2024,4531,Materials,2201200385,-553.50,Wolseley UK Limited
http://statistics.data.gov.uk/id/local-authority/38,Oxfordshire County Council,NURSERY ED FUND,28/02/2024,5537,Payments to Other Establishments,3111625031,-549.72,Angela Knowles
http://statistics.data.gov.uk/id/local-authority/38,Oxfordshire County Council,NURSERY ED FUND,28/02/2024,5537,Payments to Other Establishments,3111621617,-549.72,Camilla Collins
http://statistics.data.gov.uk/id/local-authority/38,Oxfordshire County Council,NURSERY ED FUND,28/02/2024,5537,Payments to Other Establishments,3111622488,-549.72,Clares Childcare Services
http://statistics.data.gov.uk/id/local-authority/38,Oxfordshire County Council,NURSERY ED FUND,28/02/2024,5537,Payments to Other Establishments,3111623666,-549.72,Emma Marshall
http://statistics.data.gov.uk/id/local-authority/38,Oxfordshire County Council,NURSERY ED FUND,28/02/2024,5537,Payments to Other Establishments,3111622755,-549.72,Esther Ibbotson
http://statistics.data.gov.uk/id/local-authority/38,Oxfordshire County Council,NURSERY ED FUND,28/02/2024,5537,Payments to Other Establishments,3111624207,-549.72,Hannah Faure
http://statistics.data.gov.uk/id/local-authority/38,Oxfordshire County Council,NURSERY ED FUND,28/02/2024,5537,Payments to Other Establishments,3111622752,-549.72,Hazel Bridle
http://statistics.data.gov.uk/id/local-authority/38,Oxfordshire County Council,NURSERY ED FUND,28/02/2024,5537,Payments to Other Establishments,3111622187,-549.72,Helen Rains
http://statistics.data.gov.uk/id/local-authority/38,Oxfordshire County Council,NURSERY ED FUND,28/02/2024,5537,Payments to Other Establishments,3111624467,-549.72,Redacted Personal Data
http://statistics.data.gov.uk/id/local-authority/38,Oxfordshire County Council,NURSERY ED FUND,28/02/2024,5537,Payments to Other Establishments,3111615966,-549.72,Katie Rebecca Hoare Childminder
http://statistics.data.gov.uk/id/local-authority/38,Oxfordshire County Council,NURSERY ED FUND,28/02/2024,5537,Payments to Other Establishments,3111624038,-549.72,Kirstyn Saunders
http://statistics.data.gov.uk/id/local-authority/38,Oxfordshire County Council,NURSERY ED FUND,28/02/2024,5537,Payments to Other Establishments,3111621673,-549.72,Louise Gardner
http://statistics.data.gov.uk/id/local-authority/38,Oxfordshire County Council,NURSERY ED FUND,28/02/2024,5537,Payments to Other Establishments,3111622168,-549.72,Michelle Jenkins
http://statistics.data.gov.uk/id/local-authority/38,Oxfordshire County Council,NURSERY ED FUND,28/02/2024,5537,Payments to Other Establishments,3111623629,-549.72,Natalie Webb
http://statistics.data.gov.uk/id/local-authority/38,Oxfordshire County Council,NURSERY ED FUND,28/02/2024,5537,Payments to Other Establishments,3111624781,-549.72,Rachel Heskey
http://statistics.data.gov.uk/id/local-authority/38,Oxfordshire County Council,NURSERY ED FUND,28/02/2024,5537,Payments to Other Establishments,3111615947,-549.72,Sharon Maddox
http://statistics.data.gov.uk/id/local-authority/38,Oxfordshire County Council,NURSERY ED FUND,28/02/2024,5537,Payments to Other Establishments,3111622491,-549.72,Sophie Blizzard
http://statistics.data.gov.uk/id/local-authority/38,Oxfordshire County Council,NURSERY ED FUND,28/02/2024,5537,Payments to Other Establishments,3111623886,-549.72,Tina Willis
http://statistics.data.gov.uk/id/local-authority/38,Oxfordshire County Council,SEN TRANSPORT,26/02/2024,4320,Pupil / Client Travel Reimbursement,3111612326,-544.64,Redacted Personal Data
http://statistics.data.gov.uk/id/local-authority/38,Oxfordshire County Council,SEN Inclusion Fund,29/02/2024,5537,Payments to Other Establishments,3111625427,-539.00,Annabelles Nursery
http://statistics.data.gov.uk/id/local-authority/38,Oxfordshire County Council,SEN Inclusion Fund,29/02/2024,5537,Payments to Other Establishments,3111625897,-539.00,Grow Learn Play Project CIC
http://statistics.data.gov.uk/id/local-authority/38,Oxfordshire County Council,SEN Inclusion Fund,29/02/2024,5537,Payments to Other Establishments,3111625913,-539.00,Grow Learn Play Project CIC
http://statistics.data.gov.uk/id/local-authority/38,Oxfordshire County Council,SEN Inclusion Fund,29/02/2024,5537,Payments to Other Establishments,3111625842,-539.00,Little Acorns Pre-school Kingsmere
http://statistics.data.gov.uk/id/local-authority/38,Oxfordshire County Council,NURSERY ED FUND,28/02/2024,5537,Payments to Other Establishments,3111616619,-534.45,Annabelles Nursery
http://statistics.data.gov.uk/id/local-authority/38,Oxfordshire County Council,NURSERY ED FUND,28/02/2024,5537,Payments to Other Establishments,3111616638,-534.45,Annabelles Nursery
http://statistics.data.gov.uk/id/local-authority/38,Oxfordshire County Council,NURSERY ED FUND,28/02/2024,5537,Payments to Other Establishments,3111616639,-534.45,Annabelles Nursery
http://statistics.data.gov.uk/id/local-authority/38,Oxfordshire County Council,Funded Nursing Care  - Over 65,12/02/2024,5692,,3111605130,-533.58,HENLEY MANOR CARE HOME
http://statistics.data.gov.uk/id/local-authority/38,Oxfordshire County Council,Funded Nursing Care  - Over 65,12/02/2024,5692,,3111605854,-533.58,Stowford House
http://statistics.data.gov.uk/id/local-authority/38,Oxfordshire County Council,NURSERY ED FUND,28/02/2024,5537,Payments to Other Establishments,3111615949,-531.40,Karen Hynds
http://statistics.data.gov.uk/id/local-authority/38,Oxfordshire County Council,FOSTERING MAIN,06/02/2024,5569,,3111600548,-523.29,Redacted Personal Data
http://statistics.data.gov.uk/id/local-authority/38,Oxfordshire County Council,Children in Care Non-staffing - Centrl 2,05/02/2024,5394,Other Expenses,9300062725,-518.00,OCC SS Oxford City Div 1 Cash
http://statistics.data.gov.uk/id/local-authority/38,Oxfordshire County Council,Funded Nursing Care  - Over 65,12/02/2024,5692,,3111604494,-502.19,Coxwell Hall & Mews Nursing Home
http://statistics.data.gov.uk/id/local-authority/38,Oxfordshire County Council,SEN Inclusion Fund,29/02/2024,5537,Payments to Other Establishments,3111625457,-500.50,Banbury School Day Nurse
http://statistics.data.gov.uk/id/local-authority/38,Oxfordshire County Council,SEN Inclusion Fund,29/02/2024,5537,Payments to Other Establishments,3111625436,-500.50,Burford Pre-School
http://statistics.data.gov.uk/id/local-authority/38,Oxfordshire County Council,SEN Inclusion Fund,29/02/2024,5537,Payments to Other Establishments,3111625522,-500.50,Cropredy Pre-School
http://statistics.data.gov.uk/id/local-authority/38,Oxfordshire County Council,SEN Inclusion Fund,29/02/2024,5537,Payments to Other Establishments,3111625396,-500.50,Highmoor Nursery School Ltd
http://statistics.data.gov.uk/id/local-authority/38,Oxfordshire County Council,Support at Home 65+ Physical Support,02/02/2024,5227,Other Transport Arrangements,2201194451,500.00,Alpha Care Ambulance Service
http://statistics.data.gov.uk/id/local-authority/38,Oxfordshire County Council,Children & Family Legal Team,22/02/2024,5251,Legal Costs,2201201227,500.00,Amanda Gillett
http://statistics.data.gov.uk/id/local-authority/38,Oxfordshire County Council,Vulnerable Learners,05/02/2024,5380,"Author, Speaker and Lecturer Fees",2201194608,500.00,"Boogie Mites West Berkshire, South"
http://statistics.data.gov.uk/id/local-authority/38,Oxfordshire County Council,Support at Home 65+ Physical Support,09/02/2024,5227,Other Transport Arrangements,3111601775,500.00,Faringdon Cars
http://statistics.data.gov.uk/id/local-authority/38,Oxfordshire County Council,Councillors Priorities Fund,10/02/2024,4940,Other Services,3111601813,500.00,Finmere Parish Council
http://statistics.data.gov.uk/id/local-authority/38,Oxfordshire County Council,Support at Home U65 Learning Disability,05/02/2024,5227,Other Transport Arrangements,3111599718,500.00,Go Green Taxis
http://statistics.data.gov.uk/id/local-authority/38,Oxfordshire County Council,Councillors Priorities Fund,07/02/2024,4940,Other Services,3111601007,500.00,Heyford Park School
http://statistics.data.gov.uk/id/local-authority/38,Oxfordshire County Council,Resources and Waste Partnership,15/02/2024,4861,Hired and Contracted Services,2201198913,500.00,INCPEN
http://statistics.data.gov.uk/id/local-authority/38,Oxfordshire County Council,PUBLIC HEALTH GENERA,16/02/2024,4940,Other Services,2201199180,500.00,Lee Hecht Harrison Penna Limited
http://statistics.data.gov.uk/id/local-authority/38,Oxfordshire County Council,Maintenance & Operations Staffing,27/02/2024,4940,Other Services,2201202620,500.00,Lee Hecht Harrison Penna Limited
http://statistics.data.gov.uk/id/local-authority/38,Oxfordshire County Council,Business Rates and Insurance Payout,15/02/2024,5055,Insurance Costs,3111609884,500.00,OCC One Time Vendor
http://statistics.data.gov.uk/id/local-authority/38,Oxfordshire County Council,Business Rates and Insurance Payout,15/02/2024,5055,Insurance Costs,3111609903,500.00,OCC One Time Vendor
http://statistics.data.gov.uk/id/local-authority/38,Oxfordshire County Council,Business Rates and Insurance Payout,28/02/2024,5055,Insurance Costs,3111615818,500.00,OCC One Time Vendor
http://statistics.data.gov.uk/id/local-authority/38,Oxfordshire County Council,Home First Neighbourhood Team North,07/02/2024,5227,Other Transport Arrangements,3111600972,500.00,Oxon Transport Services Ltd
http://statistics.data.gov.uk/id/local-authority/38,Oxfordshire County Council,L&D CORE PROGRAMME,12/02/2024,3103,Other Training Courses and Qualification,2201198222,500.00,Premier Partnership
http://statistics.data.gov.uk/id/local-authority/38,Oxfordshire County Council,Councillors Priorities Fund,07/02/2024,4940,Other Services,3111601001,500.00,St Helen Without Parish Council
http://statistics.data.gov.uk/id/local-authority/38,Oxfordshire County Council,Treasure' Purchases,08/02/2024,4531,Materials,2201196892,500.00,The British Museum Great Court
http://statistics.data.gov.uk/id/local-authority/38,Oxfordshire County Council,SEN Alternative Provision,16/02/2024,4861,Hired and Contracted Services,3111610230,500.00,THE DARE2DREAM FOUNDATION
http://statistics.data.gov.uk/id/local-authority/38,Oxfordshire County Council,SEN Alternative Provision,23/02/2024,4861,Hired and Contracted Services,3111612177,500.00,THE DARE2DREAM FOUNDATION
http://statistics.data.gov.uk/id/local-authority/38,Oxfordshire County Council,RESPITE,23/02/2024,4330,Transport to School Activities,3111612274,500.00,The Oxfordshire Taxi Company Ltd T/
http://statistics.data.gov.uk/id/local-authority/38,Oxfordshire County Council,LAC PUPIL PREMIUM,13/02/2024,5537,Payments to Other Establishments,3111606833,500.00,The Swan School
http://statistics.data.gov.uk/id/local-authority/38,Oxfordshire County Council,LAC PUPIL PREMIUM,13/02/2024,5537,Payments to Other Establishments,3111606839,500.00,The Swan School
http://statistics.data.gov.uk/id/local-authority/38,Oxfordshire County Council,LAC PUPIL PREMIUM,13/02/2024,5537,Payments to Other Establishments,3111606831,500.00,The Willink School
http://statistics.data.gov.uk/id/local-authority/38,Oxfordshire County Council,Councillors Priorities Fund,07/02/2024,4940,Other Services,3111601000,500.00,Watlington Bowls Club
http://statistics.data.gov.uk/id/local-authority/38,Oxfordshire County Council,SEN Inclusion Fund,29/02/2024,5537,Payments to Other Establishments,3111625785,500.50,Benson Children & Family Services
http://statistics.data.gov.uk/id/local-authority/38,Oxfordshire County Council,SEN Inclusion Fund,29/02/2024,5537,Payments to Other Establishments,3111625503,500.50,St Nicolas Pre-School and Playgroup
http://statistics.data.gov.uk/id/local-authority/38,Oxfordshire County Council,SEN Inclusion Fund,29/02/2024,5537,Payments to Other Establishments,3111625506,500.50,St Nicolas Pre-School and Playgroup
http://statistics.data.gov.uk/id/local-authority/38,Oxfordshire County Council,SEN Inclusion Fund,29/02/2024,5537,Payments to Other Establishments,3111625507,500.50,St Nicolas Pre-School and Playgroup
http://statistics.data.gov.uk/id/local-authority/38,Oxfordshire County Council,SEN Inclusion Fund,29/02/2024,5537,Payments to Other Establishments,3111625604,500.50,St Thomas Day Nursery
http://statistics.data.gov.uk/id/local-authority/38,Oxfordshire County Council,SEN Inclusion Fund,29/02/2024,5537,Payments to Other Establishments,3111625741,500.50,Standlake CE Primary School
http://statistics.data.gov.uk/id/local-authority/38,Oxfordshire County Council,SEN Inclusion Fund,29/02/2024,5537,Payments to Other Establishments,3111625597,500.50,Stanford in the Vale Pre School
http://statistics.data.gov.uk/id/local-authority/38,Oxfordshire County Council,SEN Inclusion Fund,29/02/2024,5537,Payments to Other Establishments,3111625544,500.50,Stonesfield Pre-School
http://statistics.data.gov.uk/id/local-authority/38,Oxfordshire County Council,SEN Inclusion Fund,29/02/2024,5537,Payments to Other Establishments,3111625837,500.50,Sutton Courtenay C of E Primary Sch
http://statistics.data.gov.uk/id/local-authority/38,Oxfordshire County Council,SEN Inclusion Fund,29/02/2024,5537,Payments to Other Establishments,3111625855,500.50,Sutton Courtenay C of E Primary Sch
http://statistics.data.gov.uk/id/local-authority/38,Oxfordshire County Council,SEN Inclusion Fund,29/02/2024,5537,Payments to Other Establishments,3111625856,500.50,Sutton Courtenay C of E Primary Sch
http://statistics.data.gov.uk/id/local-authority/38,Oxfordshire County Council,SEN Inclusion Fund,29/02/2024,5537,Payments to Other Establishments,3111625524,500.50,The Cottage Nursery
http://statistics.data.gov.uk/id/local-authority/38,Oxfordshire County Council,SEN Inclusion Fund,29/02/2024,5537,Payments to Other Establishments,3111625950,500.50,The Little Firefly Outdoor Nursery
http://statistics.data.gov.uk/id/local-authority/38,Oxfordshire County Council,SEN Inclusion Fund,29/02/2024,5537,Payments to Other Establishments,3111625641,500.50,The Old Station Nursery
http://statistics.data.gov.uk/id/local-authority/38,Oxfordshire County Council,SEN Inclusion Fund,29/02/2024,5537,Payments to Other Establishments,3111625647,500.50,The Old Station Nursery
http://statistics.data.gov.uk/id/local-authority/38,Oxfordshire County Council,SEN Inclusion Fund,29/02/2024,5537,Payments to Other Establishments,3111625650,500.50,The Old Station Nursery
http://statistics.data.gov.uk/id/local-authority/38,Oxfordshire County Council,SEN Inclusion Fund,29/02/2024,5537,Payments to Other Establishments,3111625653,500.50,The Old Station Nursery
http://statistics.data.gov.uk/id/local-authority/38,Oxfordshire County Council,SEN Inclusion Fund,29/02/2024,5537,Payments to Other Establishments,3111625877,500.50,The Pod at St Frideswide CE School
http://statistics.data.gov.uk/id/local-authority/38,Oxfordshire County Council,SEN Inclusion Fund,29/02/2024,5537,Payments to Other Establishments,3111625879,500.50,The Pod at St Frideswide CE School
http://statistics.data.gov.uk/id/local-authority/38,Oxfordshire County Council,SEN Inclusion Fund,29/02/2024,5537,Payments to Other Establishments,3111625880,500.50,The Pod at St Frideswide CE School
http://statistics.data.gov.uk/id/local-authority/38,Oxfordshire County Council,SEN Inclusion Fund,29/02/2024,5537,Payments to Other Establishments,3111625881,500.50,The Pod at St Frideswide CE School
http://statistics.data.gov.uk/id/local-authority/38,Oxfordshire County Council,SEN Inclusion Fund,29/02/2024,5537,Payments to Other Establishments,3111625885,500.50,The Pod at St Frideswide CE School
http://statistics.data.gov.uk/id/local-authority/38,Oxfordshire County Council,SEN Inclusion Fund,29/02/2024,5537,Payments to Other Establishments,3111625891,500.50,The Pod at St Frideswide CE School
http://statistics.data.gov.uk/id/local-authority/38,Oxfordshire County Council,SEN Inclusion Fund,29/02/2024,5537,Payments to Other Establishments,3111625892,500.50,The Pod at St Frideswide CE School
http://statistics.data.gov.uk/id/local-authority/38,Oxfordshire County Council,SEN Inclusion Fund,29/02/2024,5537,Payments to Other Establishments,3111625898,500.50,The Pod at St Frideswide CE School
http://statistics.data.gov.uk/id/local-authority/38,Oxfordshire County Council,SEN Inclusion Fund,29/02/2024,5537,Payments to Other Establishments,3111625639,500.50,The Sunshine Centre
http://statistics.data.gov.uk/id/local-authority/38,Oxfordshire County Council,SEN Inclusion Fund,29/02/2024,5537,Payments to Other Establishments,3111625648,500.50,The Sunshine Centre
http://statistics.data.gov.uk/id/local-authority/38,Oxfordshire County Council,SEN Inclusion Fund,29/02/2024,5537,Payments to Other Establishments,3111625651,500.50,The Sunshine Centre
http://statistics.data.gov.uk/id/local-authority/38,Oxfordshire County Council,SEN Inclusion Fund,29/02/2024,5537,Payments to Other Establishments,3111625758,500.50,The Treehouse Thame Limited
http://statistics.data.gov.uk/id/local-authority/38,Oxfordshire County Council,SEN Inclusion Fund,29/02/2024,5537,Payments to Other Establishments,3111625743,500.50,Redacted Personal Data
http://statistics.data.gov.uk/id/local-authority/38,Oxfordshire County Council,SEN Inclusion Fund,29/02/2024,5537,Payments to Other Establishments,3111625541,500.50,Tiddlywinks Pre-School
http://statistics.data.gov.uk/id/local-authority/38,Oxfordshire County Council,SEN Inclusion Fund,29/02/2024,5537,Payments to Other Establishments,3111625547,500.50,Tiddlywinks Pre-School
http://statistics.data.gov.uk/id/local-authority/38,Oxfordshire County Council,SEN Inclusion Fund,29/02/2024,5537,Payments to Other Establishments,3111625555,500.50,Tiddlywinks Pre-School
http://statistics.data.gov.uk/id/local-authority/38,Oxfordshire County Council,SEN Inclusion Fund,29/02/2024,5537,Payments to Other Establishments,3111625448,500.50,Wantage Preschool
http://statistics.data.gov.uk/id/local-authority/38,Oxfordshire County Council,UASC 16&17,21/02/2024,4685,Clothing and Uniforms,9300062866,500.90,OCC SS Oxford City Div 1 Cash
http://statistics.data.gov.uk/id/local-authority/38,Oxfordshire County Council,Support at Home U65 MH OBC Contract,27/02/2024,5699,,3111615225,501.79,Oxford Private Care
http://statistics.data.gov.uk/id/local-authority/38,Oxfordshire County Council,LANDLORD & TENANT,28/02/2024,4001,Uniform Business Rates,3500103461,502.00,West Oxfordshire District Council
http://statistics.data.gov.uk/id/local-authority/38,Oxfordshire County Council,LANDLORD & TENANT,28/02/2024,4001,Uniform Business Rates,3500103465,502.00,West Oxfordshire District Council
http://statistics.data.gov.uk/id/local-authority/38,Oxfordshire County Council,Support at Home U65 Learning Disability,27/02/2024,5682,,3111612889,502.38,The Brandon Trust
http://statistics.data.gov.uk/id/local-authority/38,Oxfordshire County Council,Support at Home U65 Learning Disability,13/02/2024,5899,Social Care - Direct Payments,3111609018,502.48,Redacted Personal Data
http://statistics.data.gov.uk/id/local-authority/38,Oxfordshire County Council,FOSTERING MAIN,06/02/2024,5549,B*Fostering Allowance - Regulation 38,3111600614,502.86,Redacted Personal Data
http://statistics.data.gov.uk/id/local-authority/38,Oxfordshire County Council,ECH Central Costs,12/02/2024,5696,,3111602065,502.94,BPHA Limited
http://statistics.data.gov.uk/id/local-authority/38,Oxfordshire County Council,Support at Home U65 HFA,13/02/2024,5899,Social Care - Direct Payments,3111608035,503.06,Redacted Personal Data
http://statistics.data.gov.uk/id/local-authority/38,Oxfordshire County Council,FLEET MAINTENANCE,01/02/2024,4090,"Confidential, Hazardous & Medical Waste",2201194141,503.12,GRUNDON WASTE MANAGEMENT LTD
http://statistics.data.gov.uk/id/local-authority/38,Oxfordshire County Council,Early Years Pupil Premium,28/02/2024,5537,Payments to Other Establishments,3111623351,503.88,Little Acorns Pre-school Kingsmere
http://statistics.data.gov.uk/id/local-authority/38,Oxfordshire County Council,NURSERY ED FUND,28/02/2024,5537,Payments to Other Establishments,3111622365,503.91,Edith Moorhouse Primary School
http://statistics.data.gov.uk/id/local-authority/38,Oxfordshire County Council,NURSERY ED FUND,28/02/2024,5537,Payments to Other Establishments,3111617913,503.91,Rye St Antony School
http://statistics.data.gov.uk/id/local-authority/38,Oxfordshire County Council,NURSERY ED FUND,28/02/2024,5537,Payments to Other Establishments,3111617917,503.91,Rye St Antony School
http://statistics.data.gov.uk/id/local-authority/38,Oxfordshire County Council,NURSERY ED FUND,28/02/2024,5537,Payments to Other Establishments,3111617918,503.91,Rye St Antony School
http://statistics.data.gov.uk/id/local-authority/38,Oxfordshire County Council,NURSERY ED FUND,28/02/2024,5537,Payments to Other Establishments,3111617919,503.91,Rye St Antony School
http://statistics.data.gov.uk/id/local-authority/38,Oxfordshire County Council,NURSERY ED FUND,28/02/2024,5537,Payments to Other Establishments,3111617922,503.91,Rye St Antony School
http://statistics.data.gov.uk/id/local-authority/38,Oxfordshire County Council,Support at Home U65 Physical Support,13/02/2024,5899,Social Care - Direct Payments,3111607902,504.00,Redacted Personal Data
http://statistics.data.gov.uk/id/local-authority/38,Oxfordshire County Council,Support at Home U65 Sensory Support,13/02/2024,5899,Social Care - Direct Payments,3111608111,504.40,Redacted Personal Data
http://statistics.data.gov.uk/id/local-authority/38,Oxfordshire County Council,UASC 16&17,06/02/2024,4685,Clothing and Uniforms,3111600658,504.48,Redacted Personal Data
http://statistics.data.gov.uk/id/local-authority/38,Oxfordshire County Council,Reactive Maintenance,05/02/2024,3787,Premises Repairs,2201194987,504.84,PTSG
http://statistics.data.gov.uk/id/local-authority/38,Oxfordshire County Council,Support at Home 65+ Mental Health,27/02/2024,5696,,3111613116,504.85,Radis Community Care
http://statistics.data.gov.uk/id/local-authority/38,Oxfordshire County Council,Support at Home 65+ Physical Support,27/02/2024,5699,,3111615257,504.99,Oxfordshire Crossroads
http://statistics.data.gov.uk/id/local-authority/38,Oxfordshire County Council,Music Service - ACE funded,01/02/2024,5394,Other Expenses,2201193929,505.00,School Space Ltd
http://statistics.data.gov.uk/id/local-authority/38,Oxfordshire County Council,Music Service - ACE funded,21/02/2024,5394,Other Expenses,2201200331,505.00,School Space Ltd
http://statistics.data.gov.uk/id/local-authority/38,Oxfordshire County Council,FLEET COSTS,05/02/2024,4270,HTM / Other Vehicle - Hire Charges,2201194782,505.00,West Wallasey Fleet Hire Services
http://statistics.data.gov.uk/id/local-authority/38,Oxfordshire County Council,FLEET COSTS,05/02/2024,4270,HTM / Other Vehicle - Hire Charges,2201194785,505.00,West Wallasey Fleet Hire Services
http://statistics.data.gov.uk/id/local-authority/38,Oxfordshire County Council,FLEET COSTS,05/02/2024,4270,HTM / Other Vehicle - Hire Charges,2201194794,505.00,West Wallasey Fleet Hire Services
http://statistics.data.gov.uk/id/local-authority/38,Oxfordshire County Council,FLEET COSTS,05/02/2024,4270,HTM / Other Vehicle - Hire Charges,2201194795,505.00,West Wallasey Fleet Hire Services
http://statistics.data.gov.uk/id/local-authority/38,Oxfordshire County Council,FLEET COSTS,05/02/2024,4270,HTM / Other Vehicle - Hire Charges,2201194800,505.00,West Wallasey Fleet Hire Services
http://statistics.data.gov.uk/id/local-authority/38,Oxfordshire County Council,FLEET COSTS,05/02/2024,4270,HTM / Other Vehicle - Hire Charges,2201194802,505.00,West Wallasey Fleet Hire Services
http://statistics.data.gov.uk/id/local-authority/38,Oxfordshire County Council,FLEET COSTS,05/02/2024,4270,HTM / Other Vehicle - Hire Charges,2201194808,505.00,West Wallasey Fleet Hire Services
http://statistics.data.gov.uk/id/local-authority/38,Oxfordshire County Council,FLEET COSTS,05/02/2024,4270,HTM / Other Vehicle - Hire Charges,2201194812,505.00,West Wallasey Fleet Hire Services
http://statistics.data.gov.uk/id/local-authority/38,Oxfordshire County Council,FLEET COSTS,05/02/2024,4270,HTM / Other Vehicle - Hire Charges,2201194815,505.00,West Wallasey Fleet Hire Services
http://statistics.data.gov.uk/id/local-authority/38,Oxfordshire County Council,FLEET COSTS,05/02/2024,4270,HTM / Other Vehicle - Hire Charges,2201194826,505.00,West Wallasey Fleet Hire Services
http://statistics.data.gov.uk/id/local-authority/38,Oxfordshire County Council,FLEET COSTS,05/02/2024,4270,HTM / Other Vehicle - Hire Charges,2201194830,505.00,West Wallasey Fleet Hire Services
http://statistics.data.gov.uk/id/local-authority/38,Oxfordshire County Council,FLEET COSTS,05/02/2024,4270,HTM / Other Vehicle - Hire Charges,2201194838,505.00,West Wallasey Fleet Hire Services
http://statistics.data.gov.uk/id/local-authority/38,Oxfordshire County Council,SEN TRANSPORT,12/02/2024,4320,Pupil / Client Travel Reimbursement,3111602035,505.12,Redacted Personal Data
http://statistics.data.gov.uk/id/local-authority/38,Oxfordshire County Council,Support at Home U65 Learning Disability,13/02/2024,5899,Social Care - Direct Payments,3111608667,505.36,Purple Conversation Com In Co (DP)
http://statistics.data.gov.uk/id/local-authority/38,Oxfordshire County Council,Support at Home U65 Learning Disability,12/02/2024,5690,,3111602849,505.43,Style Acre
http://statistics.data.gov.uk/id/local-authority/38,Oxfordshire County Council,LEGAL BUDGET,14/02/2024,5251,Legal Costs,2201198722,506.00,DNA WORLDWIDE GROUP
http://statistics.data.gov.uk/id/local-authority/38,Oxfordshire County Council,TRANSPORT COSTS,20/02/2024,4330,Transport to School Activities,2201199711,506.75,Declan G Dufficy T/A Ciara's Cars
http://statistics.data.gov.uk/id/local-authority/38,Oxfordshire County Council,Support at Home U65 Physical Support,27/02/2024,5698,,3111615137,506.78,Oxford Private Care
http://statistics.data.gov.uk/id/local-authority/38,Oxfordshire County Council,FAM GRP CONFERENCES,27/02/2024,4940,Other Services,2201202837,507.50,Jamal Scott-Ayoku
http://statistics.data.gov.uk/id/local-authority/38,Oxfordshire County Council,FAM GRP CONFERENCES,01/02/2024,4940,Other Services,2201194115,507.64,Angela Reynolds
http://statistics.data.gov.uk/id/local-authority/38,Oxfordshire County Council,Support at Home 65+ Physical Support,27/02/2024,5689,,3111615260,507.70,Prestige Nursing Ltd
http://statistics.data.gov.uk/id/local-authority/38,Oxfordshire County Council,Support at Home 65+ Physical Support,27/02/2024,5699,,3111614760,508.19,Direct Link Care Ltd
http://statistics.data.gov.uk/id/local-authority/38,Oxfordshire County Council,Support at Home 65+ Physical Support,27/02/2024,5699,,3111613553,508.20,Care Outlook Ltd
http://statistics.data.gov.uk/id/local-authority/38,Oxfordshire County Council,Support at Home 65+ Physical Support,27/02/2024,5699,,3111613577,508.20,Care Outlook Ltd
http://statistics.data.gov.uk/id/local-authority/38,Oxfordshire County Council,FOSTERING MAIN,27/02/2024,5549,B*Fostering Allowance - Regulation 38,3111614661,508.90,Redacted Personal Data
http://statistics.data.gov.uk/id/local-authority/38,Oxfordshire County Council,Family Solutions Plus Non-staff - South,02/02/2024,4940,Other Services,2201194235,508.95,Culbone Limited
http://statistics.data.gov.uk/id/local-authority/38,Oxfordshire County Council,Supported Internships for YP with SEND,26/02/2024,4495,IT Software,2201202415,509.00,SOFTCAT
http://statistics.data.gov.uk/id/local-authority/38,Oxfordshire County Council,NURSERY ED FUND,28/02/2024,5537,Payments to Other Establishments,3111625262,509.00,ST Hugh's School
http://statistics.data.gov.uk/id/local-authority/38,Oxfordshire County Council,NURSERY ED FUND,28/02/2024,5537,Payments to Other Establishments,3111625264,509.00,ST Hugh's School
http://statistics.data.gov.uk/id/local-authority/38,Oxfordshire County Council,NURSERY ED FUND,28/02/2024,5537,Payments to Other Establishments,3111621465,509.00,St Johns Priory School
http://statistics.data.gov.uk/id/local-authority/38,Oxfordshire County Council,Support at Home 65+ Physical Support,27/02/2024,5699,,3111615574,509.11,Virtuous Business Solutions Limited
http://statistics.data.gov.uk/id/local-authority/38,Oxfordshire County Council,Support at Home U65 Physical Support,13/02/2024,5899,Social Care - Direct Payments,3111608877,509.12,Purple Conversation Com In Co (DP)
http://statistics.data.gov.uk/id/local-authority/38,Oxfordshire County Council,PROCUREMENT,12/02/2024,4685,Clothing and Uniforms,2201198293,509.50,Northern Diver International Limite
http://statistics.data.gov.uk/id/local-authority/38,Oxfordshire County Council,Support at Home U65 Physical Support,27/02/2024,5689,,3111615031,509.82,My Carer Ltd
http://statistics.data.gov.uk/id/local-authority/38,Oxfordshire County Council,Support at Home U65 Learning Disability,16/02/2024,5227,Other Transport Arrangements,3111610145,510.00,Abingdon Taxis FKN Autotaxis
http://statistics.data.gov.uk/id/local-authority/38,Oxfordshire County Council,ON ST PARK OXFD P&D,22/02/2024,4861,Hired and Contracted Services,2201201149,510.00,Flowbird Smart City
http://statistics.data.gov.uk/id/local-authority/38,Oxfordshire County Council,HSF Welfare Support Grant & FSM support,13/02/2024,4939,,3111609116,510.00,John Blandy Primary School
http://statistics.data.gov.uk/id/local-authority/38,Oxfordshire County Council,TREE MAINT OPS,16/02/2024,5526,Payments to Private Contractors,2201199189,510.00,Ringrose Tree Surgery Ltd
http://statistics.data.gov.uk/id/local-authority/38,Oxfordshire County Council,HSF Welfare Support Grant & FSM support,13/02/2024,4939,,3111609162,510.00,St. James CofE Primary School
http://statistics.data.gov.uk/id/local-authority/38,Oxfordshire County Council,Support at Home U65 Physical Support,27/02/2024,5699,,3111613179,510.94,Acquire Care Ltd
http://statistics.data.gov.uk/id/local-authority/38,Oxfordshire County Council,Support at Home 65+ Physical Support,27/02/2024,5699,,3111613121,510.95,Goldsmith Personnel Ltd
http://statistics.data.gov.uk/id/local-authority/38,Oxfordshire County Council,Support at Home U65 Physical Support,13/02/2024,5899,Social Care - Direct Payments,3111608293,511.28,Redacted Personal Data
http://statistics.data.gov.uk/id/local-authority/38,Oxfordshire County Council,Support at Home U65 Learning Disability,13/02/2024,5899,Social Care - Direct Payments,3111608503,511.96,Purple Conversation Com In Co (DP)
http://statistics.data.gov.uk/id/local-authority/38,Oxfordshire County Council,Support at Home 65+ Other /Soc Isolation,12/02/2024,5693,,3111602025,512.00,Redacted Personal Data
http://statistics.data.gov.uk/id/local-authority/38,Oxfordshire County Council,Support at Home U65 Learning Disability,02/02/2024,5227,Other Transport Arrangements,3111599449,512.00,LINK SHIRES LTD
http://statistics.data.gov.uk/id/local-authority/38,Oxfordshire County Council,Support at Home U65 HFA,12/02/2024,5690,,3111602103,512.06,Autism at Kingwood Limited
http://statistics.data.gov.uk/id/local-authority/38,Oxfordshire County Council,Supervised Consumption APL,01/02/2024,4934,,3111601376,512.48,Kidlington Pharmacy (Maneph)
http://statistics.data.gov.uk/id/local-authority/38,Oxfordshire County Council,Support at Home U65 Learning Disability,27/02/2024,5682,,3111612914,512.88,The Brandon Trust
http://statistics.data.gov.uk/id/local-authority/38,Oxfordshire County Council,FOSTERING MAIN,13/02/2024,5662,B*Christmas Allowance,3111607704,513.00,Redacted Personal Data
http://statistics.data.gov.uk/id/local-authority/38,Oxfordshire County Council,Support at Home 65+ Physical Support,13/02/2024,5899,Social Care - Direct Payments,3111608914,513.20,Purple Conversation Com In Co (DP)
http://statistics.data.gov.uk/id/local-authority/38,Oxfordshire County Council,Unregistered Placements,22/02/2024,5526,Payments to Private Contractors,2201200989,513.93,Network Ventures Ltd
http://statistics.data.gov.uk/id/local-authority/38,Oxfordshire County Council,Support at Home U65 Physical Support,07/02/2024,5693,,3111601024,515.00,BE WELL CARE LTD
http://statistics.data.gov.uk/id/local-authority/38,Oxfordshire County Council,Support at Home 65+ Memory & Cognition,27/02/2024,5699,,3111613219,515.06,Adult Transition Services Ltd (ATrS
http://statistics.data.gov.uk/id/local-authority/38,Oxfordshire County Council,Support at Home 65+ Physical Support,27/02/2024,5699,,3111613776,515.06,Care Time UK Ltd
http://statistics.data.gov.uk/id/local-authority/38,Oxfordshire County Council,Support at Home 65+ Physical Support,27/02/2024,5699,,3111614816,515.07,Eleanor Nursing & Social Care Ltd
http://statistics.data.gov.uk/id/local-authority/38,Oxfordshire County Council,Support at Home 65+ Physical Support,27/02/2024,5699,,3111615543,515.07,Trinity Carers Services Ltd
http://statistics.data.gov.uk/id/local-authority/38,Oxfordshire County Council,COMM DRAWDOWN FUNDNG,13/02/2024,8102,Payments to main contractor,2201198512,515.14,Milestone Infrastructure Limited
http://statistics.data.gov.uk/id/local-authority/38,Oxfordshire County Council,SPECIAL GUARDIANSHIP,06/02/2024,5661,B*Carriageway pre surf. dressing patchin,3111600246,515.80,Redacted Personal Data
http://statistics.data.gov.uk/id/local-authority/38,Oxfordshire County Council,SPECIAL GUARDIANSHIP,13/02/2024,5661,B*Carriageway pre surf. dressing patchin,3111607059,515.80,Redacted Personal Data
http://statistics.data.gov.uk/id/local-authority/38,Oxfordshire County Council,SPECIAL GUARDIANSHIP,20/02/2024,5661,B*Carriageway pre surf. dressing patchin,3111610596,515.80,Redacted Personal Data
http://statistics.data.gov.uk/id/local-authority/38,Oxfordshire County Council,SPECIAL GUARDIANSHIP,27/02/2024,5661,B*Carriageway pre surf. dressing patchin,3111613446,515.80,Redacted Personal Data
http://statistics.data.gov.uk/id/local-authority/38,Oxfordshire County Council,FOSTERING MAIN,13/02/2024,5227,Other Transport Arrangements,3111607504,517.00,Redacted Personal Data
http://statistics.data.gov.uk/id/local-authority/38,Oxfordshire County Council,FOSTERING MAIN,27/02/2024,5227,Other Transport Arrangements,3111613843,517.00,Redacted Personal Data
http://statistics.data.gov.uk/id/local-authority/38,Oxfordshire County Council,Support at Home U65 Physical Support,26/02/2024,5693,,3111612450,517.36,Chamomile Care Ltd
http://statistics.data.gov.uk/id/local-authority/38,Oxfordshire County Council,Support at Home U65 Learning Disability,13/02/2024,5899,Social Care - Direct Payments,3111608866,517.48,Purple Conversation Com In Co (DP)
http://statistics.data.gov.uk/id/local-authority/38,Oxfordshire County Council,Support at Home U65 Other /Soc Isolation,12/02/2024,5690,,3111602131,517.86,Headway Oxford
http://statistics.data.gov.uk/id/local-authority/38,Oxfordshire County Council,Children in Care Non-staffing - Centrl 2,05/02/2024,5394,Other Expenses,9300062724,518.00,OCC SS Oxford City Div 1 Cash
http://statistics.data.gov.uk/id/local-authority/38,Oxfordshire County Council,Children in Care Non-staffing - Centrl 2,05/02/2024,5394,Other Expenses,9300062726,518.00,OCC SS Oxford City Div 1 Cash
http://statistics.data.gov.uk/id/local-authority/38,Oxfordshire County Council,FOSTERING MAIN,06/02/2024,5227,Other Transport Arrangements,3111600542,518.07,Redacted Personal Data
http://statistics.data.gov.uk/id/local-authority/38,Oxfordshire County Council,NURSERY ED FUND,28/02/2024,5537,Payments to Other Establishments,3111618098,519.24,Camel Pre-School (PFSU)
http://statistics.data.gov.uk/id/local-authority/38,Oxfordshire County Council,NURSERY ED FUND,28/02/2024,5537,Payments to Other Establishments,3111616716,519.24,Deddington (PFSU)
http://statistics.data.gov.uk/id/local-authority/38,Oxfordshire County Council,NURSERY ED FUND,28/02/2024,5537,Payments to Other Establishments,3111616222,519.24,Early Days Nursery Schoo
http://statistics.data.gov.uk/id/local-authority/38,Oxfordshire County Council,CONCESSIONARY FARES,08/02/2024,5781,Payments to Transport Operators,2201196871,519.63,Z & S Transport Ltd
http://statistics.data.gov.uk/id/local-authority/38,Oxfordshire County Council,Support at Home U65 Learning Disability,23/02/2024,5227,Other Transport Arrangements,3111612246,519.92,The Oxfordshire Taxi Company Ltd T/
http://statistics.data.gov.uk/id/local-authority/38,Oxfordshire County Council,Support at Home 65+ Memory & Cognition,13/02/2024,5899,Social Care - Direct Payments,3111608952,519.96,Purple Conversation Com In Co (DP)
http://statistics.data.gov.uk/id/local-authority/38,Oxfordshire County Council,Wokingham Adoption Support Fund,05/02/2024,4861,Hired and Contracted Services,2201194592,520.00,Clarabella Gray
http://statistics.data.gov.uk/id/local-authority/38,Oxfordshire County Council,POST 16 SEN,22/02/2024,4330,Transport to School Activities,3111611846,520.00,Oxon Transport Services Ltd
http://statistics.data.gov.uk/id/local-authority/38,Oxfordshire County Council,FOSTERING MAIN,27/02/2024,5532,B*Fostering - Loan Equipment,3111614433,520.00,Redacted Personal Data
http://statistics.data.gov.uk/id/local-authority/38,Oxfordshire County Council,Partnership Youth Offer,16/02/2024,3100,Educational and Vocational Training,2201199244,520.00,SAFE!
http://statistics.data.gov.uk/id/local-authority/38,Oxfordshire County Council,Planned Maintenance,22/02/2024,3787,Premises Repairs,2201201061,520.15,PTSG
http://statistics.data.gov.uk/id/local-authority/38,Oxfordshire County Council,FOSTERING MAIN,13/02/2024,5227,Other Transport Arrangements,3111607531,520.34,Redacted Personal Data
http://statistics.data.gov.uk/id/local-authority/38,Oxfordshire County Council,GP Services,01/02/2024,4933,,3111599571,520.52,White Horse Practice
http://statistics.data.gov.uk/id/local-authority/38,Oxfordshire County Council,Support at Home U65 Learning Disability,13/02/2024,5899,Social Care - Direct Payments,3111609024,520.72,Redacted Personal Data
http://statistics.data.gov.uk/id/local-authority/38,Oxfordshire County Council,FOSTERING MAIN,06/02/2024,5549,B*Fostering Allowance - Regulation 38,3111600439,520.90,Redacted Personal Data
http://statistics.data.gov.uk/id/local-authority/38,Oxfordshire County Council,CONTRACEPTION,08/02/2024,4933,,3111601339,521.00,St Clements Surgery
http://statistics.data.gov.uk/id/local-authority/38,Oxfordshire County Council,Support at Home 65+ Mental Health,26/02/2024,5693,,3111612499,521.58,Trinity Carers Services Ltd
http://statistics.data.gov.uk/id/local-authority/38,Oxfordshire County Council,ON ST PARK OXFD SPA,14/02/2024,4861,Hired and Contracted Services,2201198772,521.64,Elite Group
http://statistics.data.gov.uk/id/local-authority/38,Oxfordshire County Council,UASC 16&17,28/02/2024,5665,B*Fostering Project Care Fee,9300063005,521.71,OCC SS Oxford City Div 1 Cash
http://statistics.data.gov.uk/id/local-authority/38,Oxfordshire County Council,Community Support Service - Witney,13/02/2024,4232,Vehicle Fuel,2201198476,521.73,Allstar Business Solutions Ltd
http://statistics.data.gov.uk/id/local-authority/38,Oxfordshire County Council,Support at Home 65+ Mental Health,27/02/2024,5699,,3111613222,521.93,Adult Transition Services Ltd (ATrS
http://statistics.data.gov.uk/id/local-authority/38,Oxfordshire County Council,Support at Home 65+ Physical Support,27/02/2024,5699,,3111613328,521.93,Bridges Home Care Ltd
http://statistics.data.gov.uk/id/local-authority/38,Oxfordshire County Council,Support at Home U65 Mental Health,27/02/2024,5699,,3111613421,521.93,Calvary Care Ltd
http://statistics.data.gov.uk/id/local-authority/38,Oxfordshire County Council,Support at Home 65+ Physical Support,26/02/2024,5693,,3111612473,521.93,FLEXI DIRECT LTD
http://statistics.data.gov.uk/id/local-authority/38,Oxfordshire County Council,Support at Home U65 Learning Disability,27/02/2024,5699,,3111615042,521.93,Kare Plus Oxford
http://statistics.data.gov.uk/id/local-authority/38,Oxfordshire County Council,Support at Home 65+ Physical Support,27/02/2024,5699,,3111615382,521.93,Ringstead Healthcare Limited
http://statistics.data.gov.uk/id/local-authority/38,Oxfordshire County Council,PROCUREMENT,06/02/2024,4495,IT Software,2201195397,522.00,C Track UK
http://statistics.data.gov.uk/id/local-authority/38,Oxfordshire County Council,AGENCY RESID - DISAB,06/02/2024,5549,B*Fostering Allowance - Regulation 38,3111600702,522.00,Redacted Personal Data
http://statistics.data.gov.uk/id/local-authority/38,Oxfordshire County Council,AGENCY RESID - DISAB,13/02/2024,5549,B*Fostering Allowance - Regulation 38,3111607535,522.00,Redacted Personal Data
http://statistics.data.gov.uk/id/local-authority/38,Oxfordshire County Council,AGENCY RESID - DISAB,20/02/2024,5549,B*Fostering Allowance - Regulation 38,3111610905,522.00,Redacted Personal Data
http://statistics.data.gov.uk/id/local-authority/38,Oxfordshire County Council,AGENCY RESID - DISAB,27/02/2024,5549,B*Fostering Allowance - Regulation 38,3111613962,522.00,Redacted Personal Data
http://statistics.data.gov.uk/id/local-authority/38,Oxfordshire County Council,SHORT BREAK ACTIVITIES,06/02/2024,5526,Payments to Private Contractors,2201195562,522.50,Lets Play Project
http://statistics.data.gov.uk/id/local-authority/38,Oxfordshire County Council,FLEET OPERATIONS,13/02/2024,4685,Clothing and Uniforms,2201198612,522.63,Oxford Safety Supplies
http://statistics.data.gov.uk/id/local-authority/38,Oxfordshire County Council,Direct payments,26/02/2024,5554,Childrens' Social Care - Direct Payments,3111612631,522.64,Redacted Personal Data
http://statistics.data.gov.uk/id/local-authority/38,Oxfordshire County Council,Support at Home 65+ Sensory Support,13/02/2024,5899,Social Care - Direct Payments,3111608898,523.08,Purple Conversation Com In Co (DP)
http://statistics.data.gov.uk/id/local-authority/38,Oxfordshire County Council,Support at Home U65 Learning Disability,13/02/2024,5899,Social Care - Direct Payments,3111608732,523.56,Purple Conversation Com In Co (DP)
http://statistics.data.gov.uk/id/local-authority/38,Oxfordshire County Council,SPECIAL GUARDIANSHIP,06/02/2024,5661,B*Carriageway pre surf. dressing patchin,3111600247,523.90,Redacted Personal Data
http://statistics.data.gov.uk/id/local-authority/38,Oxfordshire County Council,SPECIAL GUARDIANSHIP,13/02/2024,5661,B*Carriageway pre surf. dressing patchin,3111607060,523.90,Redacted Personal Data
http://statistics.data.gov.uk/id/local-authority/38,Oxfordshire County Council,SPECIAL GUARDIANSHIP,20/02/2024,5661,B*Carriageway pre surf. dressing patchin,3111610597,523.90,Redacted Personal Data
http://statistics.data.gov.uk/id/local-authority/38,Oxfordshire County Council,SPECIAL GUARDIANSHIP,27/02/2024,5661,B*Carriageway pre surf. dressing patchin,3111613448,523.90,Redacted Personal Data
http://statistics.data.gov.uk/id/local-authority/38,Oxfordshire County Council,FLEET COSTS,05/02/2024,4270,HTM / Other Vehicle - Hire Charges,2201194797,524.00,West Wallasey Fleet Hire Services
http://statistics.data.gov.uk/id/local-authority/38,Oxfordshire County Council,PLACEMENTS- RELEVANT,28/02/2024,5785,Client Lodgings and Accommodation,3111615745,524.54,A2dominion
http://statistics.data.gov.uk/id/local-authority/38,Oxfordshire County Council,SEN Miscellaneous Expenditure,16/02/2024,4859,Medical and Counselling Fees,3111610137,524.60,Children in motion Ltd
http://statistics.data.gov.uk/id/local-authority/38,Oxfordshire County Council,HSF Welfare Support Grant & FSM support,13/02/2024,4939,,3111609049,525.00,Aureus Primary School Academy
http://statistics.data.gov.uk/id/local-authority/38,Oxfordshire County Council,Oxfordshire Adoption Support Fund,27/02/2024,4861,Hired and Contracted Services,2201202550,525.00,Gateway Psychology Ltd.
http://statistics.data.gov.uk/id/local-authority/38,Oxfordshire County Council,CAP CHRGES-PRIM SCHS,26/02/2024,8102,Payments to main contractor,2201202057,525.00,Life Environmental Services Ltd
http://statistics.data.gov.uk/id/local-authority/38,Oxfordshire County Council,COUNTY PRINT FINSHRS,27/02/2024,4531,Materials,2201202613,525.00,Premier Paper Group
http://statistics.data.gov.uk/id/local-authority/38,Oxfordshire County Council,HSF Welfare Support Grant & FSM support,13/02/2024,4939,,3111609509,525.00,Willowcroft Community School
http://statistics.data.gov.uk/id/local-authority/38,Oxfordshire County Council,Support at Home U65 Learning Disability,13/02/2024,5899,Social Care - Direct Payments,3111608084,525.40,Redacted Personal Data
http://statistics.data.gov.uk/id/local-authority/38,Oxfordshire County Council,LIBRARY COLLECTIONS,09/02/2024,4539,"Books, DVDs and CDs",3111601821,525.82,ASKEWS & HOLTS LIBRARY SERVICES LTD
http://statistics.data.gov.uk/id/local-authority/38,Oxfordshire County Council,TVERC,14/02/2024,4494,Purchase of IT Equipment,2201198680,526.20,Andy Foy Consulting
http://statistics.data.gov.uk/id/local-authority/38,Oxfordshire County Council,Support at Home 65+ Memory & Cognition,12/02/2024,5690,,3111602501,526.47,Daybreak Oxford
http://statistics.data.gov.uk/id/local-authority/38,Oxfordshire County Council,Support at Home 65+ Physical Support,27/02/2024,5696,,3111613005,526.80,All Care GB Ltd
http://statistics.data.gov.uk/id/local-authority/38,Oxfordshire County Council,Support at Home 65+ Physical Support,27/02/2024,5696,,3111613120,526.80,Radis Community Care
http://statistics.data.gov.uk/id/local-authority/38,Oxfordshire County Council,SHARED LIVES,12/02/2024,5365,Non-Staff Subsistence and Expenses,3111603671,526.88,Redacted Personal Data
http://statistics.data.gov.uk/id/local-authority/38,Oxfordshire County Council,Support at Home U65 Learning Disability,27/02/2024,5682,,3111612858,526.97,The Brandon Trust
http://statistics.data.gov.uk/id/local-authority/38,Oxfordshire County Council,Support at Home U65 MH OBC Contract,12/02/2024,5690,,3111602118,527.47,Autism at Kingwood Limited
http://statistics.data.gov.uk/id/local-authority/38,Oxfordshire County Council,Support at Home U65 Learning Disability,12/02/2024,5690,,3111602126,527.47,MacIntyre Care (Womaston)
http://statistics.data.gov.uk/id/local-authority/38,Oxfordshire County Council,Support at Home 65+ Physical Support,13/02/2024,5899,Social Care - Direct Payments,3111608729,527.56,Purple Conversation Com In Co (DP)
http://statistics.data.gov.uk/id/local-authority/38,Oxfordshire County Council,Children & Family Legal Team,07/02/2024,5251,Legal Costs,9300062762,528.00,OCC CE Legal Law/Culture Bank
http://statistics.data.gov.uk/id/local-authority/38,Oxfordshire County Council,CONTRACEPTION,08/02/2024,4933,,3111601340,528.00,Sibford Gower Surgery
http://statistics.data.gov.uk/id/local-authority/38,Oxfordshire County Council,VOIDS/VACANCY COSTS,12/02/2024,3945,Rent,3111602365,528.30,Cherwell District Council
http://statistics.data.gov.uk/id/local-authority/38,Oxfordshire County Council,SEN TRANSPORT,26/02/2024,4320,Pupil / Client Travel Reimbursement,3111612760,528.84,Redacted Personal Data
http://statistics.data.gov.uk/id/local-authority/38,Oxfordshire County Council,Support at Home U65 Memory & Cognition,13/02/2024,5899,Social Care - Direct Payments,3111608841,529.00,Purple Conversation Com In Co (DP)
http://statistics.data.gov.uk/id/local-authority/38,Oxfordshire County Council,Marketing,06/02/2024,4940,Other Services,2201195569,530.00,Dave Marriott Photography Ltd
http://statistics.data.gov.uk/id/local-authority/38,Oxfordshire County Council,POST18 UASC DCSF FND,15/02/2024,4407,Equipment,9300062832,530.00,OCC SS Oxford City Div 1 Cash
http://statistics.data.gov.uk/id/local-authority/38,Oxfordshire County Council,STI TESTING+TREATMEN,01/02/2024,4940,Other Services,3111599005,530.11,Nottingham University Hospitals
http://statistics.data.gov.uk/id/local-authority/38,Oxfordshire County Council,SEN TRANSPORT,12/02/2024,4320,Pupil / Client Travel Reimbursement,3111602037,530.64,Redacted Personal Data
http://statistics.data.gov.uk/id/local-authority/38,Oxfordshire County Council,FOSTERING MAIN,20/02/2024,5394,Other Expenses,3111610872,531.00,Redacted Personal Data
http://statistics.data.gov.uk/id/local-authority/38,Oxfordshire County Council,Support at Home 65+ Learning Disability,12/02/2024,5690,,3111602098,531.20,HF TRUST Ltd
http://statistics.data.gov.uk/id/local-authority/38,Oxfordshire County Council,Support at Home U65 Other /Soc Isolation,13/02/2024,5899,Social Care - Direct Payments,3111608936,531.28,Purple Conversation Com In Co (DP)
http://statistics.data.gov.uk/id/local-authority/38,Oxfordshire County Council,Support at Home U65 Learning Disability,13/02/2024,5899,Social Care - Direct Payments,3111607790,531.48,Redacted Personal Data
http://statistics.data.gov.uk/id/local-authority/38,Oxfordshire County Council,Support at Home U65 Physical Support,13/02/2024,5899,Social Care - Direct Payments,3111608531,531.52,Purple Conversation Com In Co (DP)
http://statistics.data.gov.uk/id/local-authority/38,Oxfordshire County Council,Support at Home U65 Physical Support,27/02/2024,5689,,3111615212,532.42,Oxfordshire Crossroads
http://statistics.data.gov.uk/id/local-authority/38,Oxfordshire County Council,UASC 16&17,06/02/2024,4685,Clothing and Uniforms,3111600661,532.49,Redacted Personal Data
http://statistics.data.gov.uk/id/local-authority/38,Oxfordshire County Council,Planned Maintenance,15/02/2024,3103,Other Training Courses and Qualification,2201198914,532.56,HSS ProService Limited
http://statistics.data.gov.uk/id/local-authority/38,Oxfordshire County Council,Community Support Service Banbury,09/02/2024,2040,Agency Staff,2201198038,532.80,Completely Care Ltd
http://statistics.data.gov.uk/id/local-authority/38,Oxfordshire County Council,FOSTERING MAIN,27/02/2024,5394,Other Expenses,3111614004,533.35,Redacted Personal Data
http://statistics.data.gov.uk/id/local-authority/38,Oxfordshire County Council,FOSTERING MAIN,27/02/2024,5227,Other Transport Arrangements,3111614248,533.38,Redacted Personal Data
http://statistics.data.gov.uk/id/local-authority/38,Oxfordshire County Council,FOSTERING MAIN,06/02/2024,5548,B*Fostering - Special Rates & Plus Amou,3111600683,533.98,Redacted Personal Data
http://statistics.data.gov.uk/id/local-authority/38,Oxfordshire County Council,NURSERY ED FUND,28/02/2024,5537,Payments to Other Establishments,3111619051,534.50,Pinewood School
http://statistics.data.gov.uk/id/local-authority/38,Oxfordshire County Council,Reactive Maintenance,07/02/2024,3787,Premises Repairs,2201196101,535.00,Windrush Door & Window Services Ltd
http://statistics.data.gov.uk/id/local-authority/38,Oxfordshire County Council,TRAFF SIGNALS MTCE,07/02/2024,4531,Materials,2201196133,535.08,Telent Technology Services Limited
http://statistics.data.gov.uk/id/local-authority/38,Oxfordshire County Council,Support at Home 65+ Physical Support,27/02/2024,5699,,3111613154,535.66,Abi-Support Ltd
http://statistics.data.gov.uk/id/local-authority/38,Oxfordshire County Council,Support at Home 65+ Memory & Cognition,27/02/2024,5699,,3111613536,535.67,Care Outlook Ltd
http://statistics.data.gov.uk/id/local-authority/38,Oxfordshire County Council,Support at Home 65+ Physical Support,27/02/2024,5699,,3111614998,535.67,Home Helpers Care Ltd
http://statistics.data.gov.uk/id/local-authority/38,Oxfordshire County Council,Support at Home 65+ Physical Support,27/02/2024,5699,,3111615375,535.67,Ringstead Healthcare Limited
http://statistics.data.gov.uk/id/local-authority/38,Oxfordshire County Council,LIBRARY COLLECTIONS,13/02/2024,4706,Stationery and other office consumables,2201198375,535.68,BOOK PROTECTORS & CO
http://statistics.data.gov.uk/id/local-authority/38,Oxfordshire County Council,UASC 16&17,15/02/2024,4685,Clothing and Uniforms,9300062833,536.40,OCC SS Oxford City Div 1 Cash
http://statistics.data.gov.uk/id/local-authority/38,Oxfordshire County Council,SEN TRANSPORT,27/02/2024,4320,Pupil / Client Travel Reimbursement,3111615650,536.69,Redacted Personal Data
http://statistics.data.gov.uk/id/local-authority/38,Oxfordshire County Council,Support at Home U65 MH OBC Contract,13/02/2024,5899,Social Care - Direct Payments,3111607766,537.56,Redacted Personal Data
http://statistics.data.gov.uk/id/local-authority/38,Oxfordshire County Council,Community Support Service Bicester,20/02/2024,2040,Agency Staff,2201200031,538.35,Completely Care Ltd
http://statistics.data.gov.uk/id/local-authority/38,Oxfordshire County Council,Filming,13/02/2024,5526,Payments to Private Contractors,2201198557,538.87,Milestone Infrastructure Limited
http://statistics.data.gov.uk/id/local-authority/38,Oxfordshire County Council,Support at Home U65 Learning Disability,12/02/2024,5690,,3111602085,539.15,ADVANCE HOUSING & SUPPORT LTD
http://statistics.data.gov.uk/id/local-authority/38,Oxfordshire County Council,Support at Home U65 Learning Disability,07/02/2024,5227,Other Transport Arrangements,3111601266,540.00,Ali's Cabs
http://statistics.data.gov.uk/id/local-authority/38,Oxfordshire County Council,Support at Home U65 Physical Support,06/02/2024,5227,Other Transport Arrangements,3111600099,540.00,Blackstar Chauffeur Ltd T/A Blackst
http://statistics.data.gov.uk/id/local-authority/38,Oxfordshire County Council,SEN TRANSPORT,13/02/2024,4330,Transport to School Activities,3111606616,540.00,Oxon Transport Services Ltd
http://statistics.data.gov.uk/id/local-authority/38,Oxfordshire County Council,LAC PUPIL PREMIUM,13/02/2024,5537,Payments to Other Establishments,3111606922,540.00,The Abbey School
http://statistics.data.gov.uk/id/local-authority/38,Oxfordshire County Council,HSF Welfare Support Grant & FSM support,13/02/2024,4939,,3111609184,540.00,The Batt CE Primary School
http://statistics.data.gov.uk/id/local-authority/38,Oxfordshire County Council,Household Support Fund 3,12/02/2024,5195,Grant Aid and Donations,2201198164,540.00,Vale of White Horse District Counci
http://statistics.data.gov.uk/id/local-authority/38,Oxfordshire County Council,HSF Welfare Support Grant & FSM support,13/02/2024,4939,,3111609215,540.00,Wolvercote Primary School
http://statistics.data.gov.uk/id/local-authority/38,Oxfordshire County Council,LAC PUPIL PREMIUM,13/02/2024,5537,Payments to Other Establishments,3111606882,540.00,Woolwich Polytechnic School for boy
http://statistics.data.gov.uk/id/local-authority/38,Oxfordshire County Council,LAC PUPIL PREMIUM,13/02/2024,5537,Payments to Other Establishments,3111606884,540.00,Woolwich Polytechnic School for boy
http://statistics.data.gov.uk/id/local-authority/38,Oxfordshire County Council,Direct payments,26/02/2024,5554,Childrens' Social Care - Direct Payments,3111612621,540.06,Redacted Personal Data
http://statistics.data.gov.uk/id/local-authority/38,Oxfordshire County Council,Direct payments,26/02/2024,5554,Childrens' Social Care - Direct Payments,3111612685,540.79,Purple Conversation Com In Co (DP)
http://statistics.data.gov.uk/id/local-authority/38,Oxfordshire County Council,FOSTERING MAIN,27/02/2024,5394,Other Expenses,3111614273,541.50,Redacted Personal Data
http://statistics.data.gov.uk/id/local-authority/38,Oxfordshire County Council,Support at Home U65 HFA,13/02/2024,5899,Social Care - Direct Payments,3111608276,541.52,Redacted Personal Data
http://statistics.data.gov.uk/id/local-authority/38,Oxfordshire County Council,Support at Home U65 Learning Disability,12/02/2024,5690,,3111602515,541.89,FIT (Farm Inspiration Trust)
http://statistics.data.gov.uk/id/local-authority/38,Oxfordshire County Council,FOSTERING MAIN,13/02/2024,5549,B*Fostering Allowance - Regulation 38,3111607435,542.00,Redacted Personal Data
http://statistics.data.gov.uk/id/local-authority/38,Oxfordshire County Council,FOSTERING MAIN,20/02/2024,5549,B*Fostering Allowance - Regulation 38,3111610694,542.00,Redacted Personal Data
http://statistics.data.gov.uk/id/local-authority/38,Oxfordshire County Council,FOSTERING MAIN,27/02/2024,5549,B*Fostering Allowance - Regulation 38,3111613619,542.00,Redacted Personal Data
http://statistics.data.gov.uk/id/local-authority/38,Oxfordshire County Council,FOSTERING MAIN,06/02/2024,5549,B*Fostering Allowance - Regulation 38,3111600446,542.00,Redacted Personal Data
http://statistics.data.gov.uk/id/local-authority/38,Oxfordshire County Council,FOSTERING MAIN,13/02/2024,5549,B*Fostering Allowance - Regulation 38,3111607424,542.00,Redacted Personal Data
http://statistics.data.gov.uk/id/local-authority/38,Oxfordshire County Council,FOSTERING MAIN,20/02/2024,5549,B*Fostering Allowance - Regulation 38,3111610666,542.00,Redacted Personal Data
http://statistics.data.gov.uk/id/local-authority/38,Oxfordshire County Council,FOSTERING MAIN,27/02/2024,5549,B*Fostering Allowance - Regulation 38,3111613582,542.00,Redacted Personal Data
http://statistics.data.gov.uk/id/local-authority/38,Oxfordshire County Council,FOSTERING MAIN,06/02/2024,5549,B*Fostering Allowance - Regulation 38,3111600479,542.00,Redacted Personal Data
http://statistics.data.gov.uk/id/local-authority/38,Oxfordshire County Council,FOSTERING MAIN,13/02/2024,5549,B*Fostering Allowance - Regulation 38,3111607436,542.00,Redacted Personal Data
http://statistics.data.gov.uk/id/local-authority/38,Oxfordshire County Council,FOSTERING MAIN,20/02/2024,5549,B*Fostering Allowance - Regulation 38,3111610697,542.00,Redacted Personal Data
http://statistics.data.gov.uk/id/local-authority/38,Oxfordshire County Council,FOSTERING MAIN,27/02/2024,5549,B*Fostering Allowance - Regulation 38,3111613621,542.00,Redacted Personal Data
http://statistics.data.gov.uk/id/local-authority/38,Oxfordshire County Council,FOSTERING MAIN,06/02/2024,5549,B*Fostering Allowance - Regulation 38,3111600493,542.00,Redacted Personal Data
http://statistics.data.gov.uk/id/local-authority/38,Oxfordshire County Council,FOSTERING MAIN,13/02/2024,5549,B*Fostering Allowance - Regulation 38,3111607439,542.00,Redacted Personal Data
http://statistics.data.gov.uk/id/local-authority/38,Oxfordshire County Council,FOSTERING MAIN,20/02/2024,5549,B*Fostering Allowance - Regulation 38,3111610702,542.00,Redacted Personal Data
http://statistics.data.gov.uk/id/local-authority/38,Oxfordshire County Council,FOSTERING MAIN,27/02/2024,5549,B*Fostering Allowance - Regulation 38,3111613640,542.00,Redacted Personal Data
http://statistics.data.gov.uk/id/local-authority/38,Oxfordshire County Council,AGENCY RESID - DISAB,06/02/2024,5549,B*Fostering Allowance - Regulation 38,3111600730,542.00,Redacted Personal Data
http://statistics.data.gov.uk/id/local-authority/38,Oxfordshire County Council,AGENCY RESID - DISAB,13/02/2024,5549,B*Fostering Allowance - Regulation 38,3111607548,542.00,Redacted Personal Data
http://statistics.data.gov.uk/id/local-authority/38,Oxfordshire County Council,AGENCY RESID - DISAB,20/02/2024,5549,B*Fostering Allowance - Regulation 38,3111610933,542.00,Redacted Personal Data
http://statistics.data.gov.uk/id/local-authority/38,Oxfordshire County Council,AGENCY RESID - DISAB,27/02/2024,5549,B*Fostering Allowance - Regulation 38,3111614016,542.00,Redacted Personal Data
http://statistics.data.gov.uk/id/local-authority/38,Oxfordshire County Council,FOSTERING MAIN,06/02/2024,5549,B*Fostering Allowance - Regulation 38,3111600722,542.00,Redacted Personal Data
http://statistics.data.gov.uk/id/local-authority/38,Oxfordshire County Council,FOSTERING MAIN,13/02/2024,5549,B*Fostering Allowance - Regulation 38,3111607544,542.00,Redacted Personal Data
http://statistics.data.gov.uk/id/local-authority/38,Oxfordshire County Council,FOSTERING MAIN,20/02/2024,5549,B*Fostering Allowance - Regulation 38,3111610925,542.00,Redacted Personal Data
http://statistics.data.gov.uk/id/local-authority/38,Oxfordshire County Council,FOSTERING MAIN,27/02/2024,5549,B*Fostering Allowance - Regulation 38,3111614000,542.00,Redacted Personal Data
http://statistics.data.gov.uk/id/local-authority/38,Oxfordshire County Council,FOSTERING MAIN,13/02/2024,5549,B*Fostering Allowance - Regulation 38,3111607590,542.00,Redacted Personal Data
http://statistics.data.gov.uk/id/local-authority/38,Oxfordshire County Council,FOSTERING MAIN,20/02/2024,5549,B*Fostering Allowance - Regulation 38,3111611020,542.00,Redacted Personal Data
http://statistics.data.gov.uk/id/local-authority/38,Oxfordshire County Council,FOSTERING MAIN,06/02/2024,5549,B*Fostering Allowance - Regulation 38,3111600931,542.00,Redacted Personal Data
http://statistics.data.gov.uk/id/local-authority/38,Oxfordshire County Council,FOSTERING MAIN,13/02/2024,5549,B*Fostering Allowance - Regulation 38,3111607723,542.00,Redacted Personal Data
http://statistics.data.gov.uk/id/local-authority/38,Oxfordshire County Council,FOSTERING MAIN,20/02/2024,5549,B*Fostering Allowance - Regulation 38,3111611256,542.00,Redacted Personal Data
http://statistics.data.gov.uk/id/local-authority/38,Oxfordshire County Council,FOSTERING MAIN,27/02/2024,5549,B*Fostering Allowance - Regulation 38,3111614664,542.00,Redacted Personal Data
http://statistics.data.gov.uk/id/local-authority/38,Oxfordshire County Council,FOSTERING MAIN,06/02/2024,5549,B*Fostering Allowance - Regulation 38,3111600561,542.00,Redacted Personal Data
http://statistics.data.gov.uk/id/local-authority/38,Oxfordshire County Council,FOSTERING MAIN,13/02/2024,5549,B*Fostering Allowance - Regulation 38,3111607473,542.00,Redacted Personal Data
http://statistics.data.gov.uk/id/local-authority/38,Oxfordshire County Council,FOSTERING MAIN,20/02/2024,5549,B*Fostering Allowance - Regulation 38,3111610775,542.00,Redacted Personal Data
http://statistics.data.gov.uk/id/local-authority/38,Oxfordshire County Council,FOSTERING MAIN,27/02/2024,5549,B*Fostering Allowance - Regulation 38,3111613748,542.00,Redacted Personal Data
http://statistics.data.gov.uk/id/local-authority/38,Oxfordshire County Council,FOSTERING MAIN,06/02/2024,5549,B*Fostering Allowance - Regulation 38,3111600889,542.00,Redacted Personal Data
http://statistics.data.gov.uk/id/local-authority/38,Oxfordshire County Council,FOSTERING MAIN,13/02/2024,5549,B*Fostering Allowance - Regulation 38,3111607682,542.00,Redacted Personal Data
http://statistics.data.gov.uk/id/local-authority/38,Oxfordshire County Council,FOSTERING MAIN,20/02/2024,5549,B*Fostering Allowance - Regulation 38,3111611213,542.00,Redacted Personal Data
http://statistics.data.gov.uk/id/local-authority/38,Oxfordshire County Council,FOSTERING MAIN,06/02/2024,5549,B*Fostering Allowance - Regulation 38,3111600951,542.00,Redacted Personal Data
http://statistics.data.gov.uk/id/local-authority/38,Oxfordshire County Council,FOSTERING MAIN,13/02/2024,5549,B*Fostering Allowance - Regulation 38,3111607743,542.00,Redacted Personal Data
http://statistics.data.gov.uk/id/local-authority/38,Oxfordshire County Council,FOSTERING MAIN,20/02/2024,5549,B*Fostering Allowance - Regulation 38,3111611275,542.00,Redacted Personal Data
http://statistics.data.gov.uk/id/local-authority/38,Oxfordshire County Council,FOSTERING MAIN,27/02/2024,5549,B*Fostering Allowance - Regulation 38,3111614743,542.00,Redacted Personal Data
http://statistics.data.gov.uk/id/local-authority/38,Oxfordshire County Council,Independent Foster,14/02/2024,5559,,3111609681,542.10,BANYA FAMILY PLACEMENT
http://statistics.data.gov.uk/id/local-authority/38,Oxfordshire County Council,Independent Foster,14/02/2024,5559,,3111609682,542.10,BANYA FAMILY PLACEMENT
http://statistics.data.gov.uk/id/local-authority/38,Oxfordshire County Council,Independent Foster,14/02/2024,5559,,3111609686,542.10,BANYA FAMILY PLACEMENT
http://statistics.data.gov.uk/id/local-authority/38,Oxfordshire County Council,Independent Foster,14/02/2024,5559,,3111609687,542.10,BANYA FAMILY PLACEMENT
http://statistics.data.gov.uk/id/local-authority/38,Oxfordshire County Council,POST18 UASC DCSF FND,22/02/2024,3942,Hire of Accommodation and Facilities,3111611921,542.32,Redacted Personal Data
http://statistics.data.gov.uk/id/local-authority/38,Oxfordshire County Council,Support at Home U65 Mental Health,05/02/2024,5696,,3111599976,542.40,Orders of St John Care Trust
http://statistics.data.gov.uk/id/local-authority/38,Oxfordshire County Council,Family Solutions Plus Non-staff - Centra,21/02/2024,4940,Other Services,2201200718,542.50,UK LANGUAGE SOLUTIONS
http://statistics.data.gov.uk/id/local-authority/38,Oxfordshire County Council,Support at Home 65+ Physical Support,27/02/2024,5689,,3111614878,542.95,Golden Services Care Ltd
http://statistics.data.gov.uk/id/local-authority/38,Oxfordshire County Council,Property Cleaning,19/02/2024,4070,Cleaning services,2201199681,543.17,Parker Contract Cleaning
http://statistics.data.gov.uk/id/local-authority/38,Oxfordshire County Council,2 YEAR OLD FUNDING - DISADVANTAGED,28/02/2024,5537,Payments to Other Establishments,3111619954,543.18,Chipping Norton Pre-school
http://statistics.data.gov.uk/id/local-authority/38,Oxfordshire County Council,2 YEAR OLD FUNDING - DISADVANTAGED,28/02/2024,5537,Payments to Other Establishments,3111618567,543.18,Ladybird Pre-School Limited
http://statistics.data.gov.uk/id/local-authority/38,Oxfordshire County Council,Support at Home U65 Physical Support,27/02/2024,5689,,3111614874,543.41,Golden Services Care Ltd
http://statistics.data.gov.uk/id/local-authority/38,Oxfordshire County Council,Unregistered Placements,06/02/2024,5526,Payments to Private Contractors,2201196026,544.32,Network Ventures Ltd
http://statistics.data.gov.uk/id/local-authority/38,Oxfordshire County Council,Unregistered Placements,06/02/2024,5526,Payments to Private Contractors,2201196027,544.32,Network Ventures Ltd
http://statistics.data.gov.uk/id/local-authority/38,Oxfordshire County Council,Unregistered Placements,08/02/2024,5526,Payments to Private Contractors,2201197083,544.32,Network Ventures Ltd
http://statistics.data.gov.uk/id/local-authority/38,Oxfordshire County Council,Unregistered Placements,12/02/2024,5526,Payments to Private Contractors,2201198234,544.32,Network Ventures Ltd
http://statistics.data.gov.uk/id/local-authority/38,Oxfordshire County Council,Support at Home U65 MH OBC Contract,13/02/2024,5899,Social Care - Direct Payments,3111608801,544.32,Purple Conversation Com In Co (DP)
http://statistics.data.gov.uk/id/local-authority/38,Oxfordshire County Council,SEN TRANSPORT,23/02/2024,4320,Pupil / Client Travel Reimbursement,3111612286,544.64,Redacted Personal Data
http://statistics.data.gov.uk/id/local-authority/38,Oxfordshire County Council,SEN TRANSPORT,20/02/2024,4320,Pupil / Client Travel Reimbursement,3111611283,544.64,Redacted Personal Data
http://statistics.data.gov.uk/id/local-authority/38,Oxfordshire County Council,SEN TRANSPORT,14/02/2024,4320,Pupil / Client Travel Reimbursement,3111609764,544.64,Redacted Personal Data
http://statistics.data.gov.uk/id/local-authority/38,Oxfordshire County Council,,20/02/2024,1531,Cash Allocation Control Account,3111612327,544.64,Redacted Personal Data
http://statistics.data.gov.uk/id/local-authority/38,Oxfordshire County Council,FOSTERING MAIN,13/02/2024,5227,Other Transport Arrangements,3111607660,544.72,Redacted Personal Data
http://statistics.data.gov.uk/id/local-authority/38,Oxfordshire County Council,Reactive Maintenance,14/02/2024,3787,Premises Repairs,2201198826,545.00,Windrush Door & Window Services Ltd
http://statistics.data.gov.uk/id/local-authority/38,Oxfordshire County Council,MEADOWBROOK TRANSPT,12/02/2024,4330,Transport to School Activities,3111601993,546.00,Ali's Cabs
http://statistics.data.gov.uk/id/local-authority/38,Oxfordshire County Council,OPERATIONS,13/02/2024,4498,Health and Safety Equipment,2201198641,547.00,Arco Wessex
http://statistics.data.gov.uk/id/local-authority/38,Oxfordshire County Council,FLEET MAINTENANCE,15/02/2024,4210,Vehicles and Plant - Repairs and Main,2201199102,548.06,Sutch Lifting Equipment
http://statistics.data.gov.uk/id/local-authority/38,Oxfordshire County Council,Support at Home 65+ Learning Disability,12/02/2024,5690,,3111602548,548.35,The Ice Centre
http://statistics.data.gov.uk/id/local-authority/38,Oxfordshire County Council,Support at Home 65+ Mental Health,27/02/2024,5696,,3111612950,548.75,All Care GB Ltd
http://statistics.data.gov.uk/id/local-authority/38,Oxfordshire County Council,Support at Home U65 Learning Disability,27/02/2024,5689,,3111614924,549.36,Greigcare Home Service
http://statistics.data.gov.uk/id/local-authority/38,Oxfordshire County Council,Support at Home 65+ Memory & Cognition,13/02/2024,5899,Social Care - Direct Payments,3111608365,549.36,Redacted Personal Data
http://statistics.data.gov.uk/id/local-authority/38,Oxfordshire County Council,Support at Home U65 MH OBC Contract,27/02/2024,5699,,3111613212,549.40,Adult Transition Services Ltd (ATrS
http://statistics.data.gov.uk/id/local-authority/38,Oxfordshire County Council,Support at Home 65+ Subsantance Abuse,27/02/2024,5699,,3111613241,549.40,Adult Transition Services Ltd (ATrS
http://statistics.data.gov.uk/id/local-authority/38,Oxfordshire County Council,Support at Home U65 MH OBC Contract,27/02/2024,5699,,3111613279,549.40,BBC CARE SERVICE LIMITED
http://statistics.data.gov.uk/id/local-authority/38,Oxfordshire County Council,Support at Home 65+ Physical Support,27/02/2024,5699,,3111613325,549.40,Bridges Home Care Ltd
http://statistics.data.gov.uk/id/local-authority/38,Oxfordshire County Council,Support at Home U65 Physical Support,29/02/2024,5699,,3111625326,549.40,CareUK Living Limited
http://statistics.data.gov.uk/id/local-authority/38,Oxfordshire County Council,Support at Home 65+ Physical Support,27/02/2024,5699,,3111614311,549.40,Clarissa�s Home Healthcare Services
http://statistics.data.gov.uk/id/local-authority/38,Oxfordshire County Council,Support at Home 65+ Physical Support,27/02/2024,5699,,3111614607,549.40,Day and Nightcare Assistance
http://statistics.data.gov.uk/id/local-authority/38,Oxfordshire County Council,Support at Home U65 Physical Support,27/02/2024,5693,,3111614792,549.40,Direct Link Care Ltd
http://statistics.data.gov.uk/id/local-authority/38,Oxfordshire County Council,Support at Home U65 Physical Support,27/02/2024,5699,,3111614875,549.40,GET CARE LIMITED
http://statistics.data.gov.uk/id/local-authority/38,Oxfordshire County Council,Support at Home U65 Mental Health,26/02/2024,5697,,3111612507,549.40,Jeff Jen Care Plus Ltd
http://statistics.data.gov.uk/id/local-authority/38,Oxfordshire County Council,Support at Home U65 Memory & Cognition,13/02/2024,5899,Social Care - Direct Payments,3111607924,549.40,Redacted Personal Data
http://statistics.data.gov.uk/id/local-authority/38,Oxfordshire County Council,Support at Home 65+ Mental Health,27/02/2024,5699,,3111615464,549.40,Star Projections
http://statistics.data.gov.uk/id/local-authority/38,Oxfordshire County Council,Support at Home U65 Other /Soc Isolation,27/02/2024,5699,,3111615467,549.40,SureCare Oxfordshire
http://statistics.data.gov.uk/id/local-authority/38,Oxfordshire County Council,Support at Home 65+ Physical Support,27/02/2024,5699,,3111615498,549.40,SureCare Oxfordshire
http://statistics.data.gov.uk/id/local-authority/38,Oxfordshire County Council,Support at Home 65+ Physical Support,26/02/2024,5693,,3111612401,549.60,A CARING HAND LTD
http://statistics.data.gov.uk/id/local-authority/38,Oxfordshire County Council,Support at Home 65+ Physical Support,28/02/2024,5693,,3111615790,549.60,Pioneering Care Bicester Limited
http://statistics.data.gov.uk/id/local-authority/38,Oxfordshire County Council,Alcohol Prevention,23/02/2024,3100,Educational and Vocational Training,2201201591,549.65,Humankind Charity
http://statistics.data.gov.uk/id/local-authority/38,Oxfordshire County Council,NURSERY ED FUND,28/02/2024,5537,Payments to Other Establishments,3111625243,549.70,ST Hugh's School
http://statistics.data.gov.uk/id/local-authority/38,Oxfordshire County Council,NURSERY ED FUND,28/02/2024,5537,Payments to Other Establishments,3111621480,549.72,Aflah Nursery
http://statistics.data.gov.uk/id/local-authority/38,Oxfordshire County Council,NURSERY ED FUND,28/02/2024,5537,Payments to Other Establishments,3111619770,549.72,Berinsfield Early Years Pre-School
http://statistics.data.gov.uk/id/local-authority/38,Oxfordshire County Council,NURSERY ED FUND,28/02/2024,5537,Payments to Other Establishments,3111618915,549.72,Bubbles Pre School
http://statistics.data.gov.uk/id/local-authority/38,Oxfordshire County Council,NURSERY ED FUND,28/02/2024,5537,Payments to Other Establishments,3111618917,549.72,Bubbles Pre School
http://statistics.data.gov.uk/id/local-authority/38,Oxfordshire County Council,NURSERY ED FUND,28/02/2024,5537,Payments to Other Establishments,3111621724,549.72,Busy Bees at Oxford
http://statistics.data.gov.uk/id/local-authority/38,Oxfordshire County Council,NURSERY ED FUND,28/02/2024,5537,Payments to Other Establishments,3111621638,549.72,Catherine Emma Waddy
http://statistics.data.gov.uk/id/local-authority/38,Oxfordshire County Council,PROCUREMENT,27/02/2024,4232,Vehicle Fuel,2201202810,549.72,Certas Energy UK Ltd
http://statistics.data.gov.uk/id/local-authority/38,Oxfordshire County Council,NURSERY ED FUND,28/02/2024,5537,Payments to Other Establishments,3111624607,549.72,Charlton Primary School Nursery
http://statistics.data.gov.uk/id/local-authority/38,Oxfordshire County Council,NURSERY ED FUND,28/02/2024,5537,Payments to Other Establishments,3111618992,549.72,Chasewell Playgroup
http://statistics.data.gov.uk/id/local-authority/38,Oxfordshire County Council,NURSERY ED FUND,28/02/2024,5537,Payments to Other Establishments,3111616866,549.72,Cholsey Pre-School (PFSU)
http://statistics.data.gov.uk/id/local-authority/38,Oxfordshire County Council,NURSERY ED FUND,28/02/2024,5537,Payments to Other Establishments,3111616884,549.72,Cholsey Pre-School (PFSU)
http://statistics.data.gov.uk/id/local-authority/38,Oxfordshire County Council,NURSERY ED FUND,28/02/2024,5537,Payments to Other Establishments,3111623699,549.72,Christopher Rawlins Primary School
http://statistics.data.gov.uk/id/local-authority/38,Oxfordshire County Council,NURSERY ED FUND,28/02/2024,5537,Payments to Other Establishments,3111617870,549.72,Cogges Under 5s Associa
http://statistics.data.gov.uk/id/local-authority/38,Oxfordshire County Council,NURSERY ED FUND,28/02/2024,5537,Payments to Other Establishments,3111621347,549.72,Eynsham Community
http://statistics.data.gov.uk/id/local-authority/38,Oxfordshire County Council,NURSERY ED FUND,28/02/2024,5537,Payments to Other Establishments,3111625074,549.72,Graven Hill Primary School
http://statistics.data.gov.uk/id/local-authority/38,Oxfordshire County Council,NURSERY ED FUND,28/02/2024,5537,Payments to Other Establishments,3111617235,549.72,Grovelands Park Pre-School
http://statistics.data.gov.uk/id/local-authority/38,Oxfordshire County Council,NURSERY ED FUND,28/02/2024,5537,Payments to Other Establishments,3111616325,549.72,Hagbourne Pre-School
http://statistics.data.gov.uk/id/local-authority/38,Oxfordshire County Council,NURSERY ED FUND,28/02/2024,5537,Payments to Other Establishments,3111618640,549.72,Hanborough Meadows Pre-School
http://statistics.data.gov.uk/id/local-authority/38,Oxfordshire County Council,NURSERY ED FUND,28/02/2024,5537,Payments to Other Establishments,3111617467,549.72,Hanborough Pre-School
http://statistics.data.gov.uk/id/local-authority/38,Oxfordshire County Council,NURSERY ED FUND,28/02/2024,5537,Payments to Other Establishments,3111622751,549.72,Hazel Bridle
http://statistics.data.gov.uk/id/local-authority/38,Oxfordshire County Council,NURSERY ED FUND,28/02/2024,5537,Payments to Other Establishments,3111622801,549.72,Karen Wilcox
http://statistics.data.gov.uk/id/local-authority/38,Oxfordshire County Council,NURSERY ED FUND,28/02/2024,5537,Payments to Other Establishments,3111617495,549.72,Kingsfield Nursery
http://statistics.data.gov.uk/id/local-authority/38,Oxfordshire County Council,NURSERY ED FUND,28/02/2024,5537,Payments to Other Establishments,3111617500,549.72,Kingsfield Nursery
http://statistics.data.gov.uk/id/local-authority/38,Oxfordshire County Council,NURSERY ED FUND,28/02/2024,5537,Payments to Other Establishments,3111617506,549.72,Kingsfield Nursery
http://statistics.data.gov.uk/id/local-authority/38,Oxfordshire County Council,NURSERY ED FUND,28/02/2024,5537,Payments to Other Establishments,3111619358,549.72,Ladygrove Day Nursery and Nursery S
http://statistics.data.gov.uk/id/local-authority/38,Oxfordshire County Council,NURSERY ED FUND,28/02/2024,5537,Payments to Other Establishments,3111623882,549.72,Lauren Gladden-Eaves
http://statistics.data.gov.uk/id/local-authority/38,Oxfordshire County Council,NURSERY ED FUND,28/02/2024,5537,Payments to Other Establishments,3111616283,549.72,Little Acorns
http://statistics.data.gov.uk/id/local-authority/38,Oxfordshire County Council,NURSERY ED FUND,28/02/2024,5537,Payments to Other Establishments,3111620132,549.72,Little Bears Pre-School (PFSU)
http://statistics.data.gov.uk/id/local-authority/38,Oxfordshire County Council,NURSERY ED FUND,28/02/2024,5537,Payments to Other Establishments,3111616427,549.72,Little Pippins Pre-Schoo
http://statistics.data.gov.uk/id/local-authority/38,Oxfordshire County Council,NURSERY ED FUND,28/02/2024,5537,Payments to Other Establishments,3111622529,549.72,Mandy Stone
http://statistics.data.gov.uk/id/local-authority/38,Oxfordshire County Council,NURSERY ED FUND,28/02/2024,5537,Payments to Other Establishments,3111616850,549.72,Middle Barton Pre-School
http://statistics.data.gov.uk/id/local-authority/38,Oxfordshire County Council,NURSERY ED FUND,28/02/2024,5537,Payments to Other Establishments,3111616863,549.72,Middle Barton Pre-School
http://statistics.data.gov.uk/id/local-authority/38,Oxfordshire County Council,NURSERY ED FUND,28/02/2024,5537,Payments to Other Establishments,3111622102,549.72,Mortimer Hall Pre-School CIO
http://statistics.data.gov.uk/id/local-authority/38,Oxfordshire County Council,NURSERY ED FUND,28/02/2024,5537,Payments to Other Establishments,3111618251,549.72,Polstead Preschool Oxford
http://statistics.data.gov.uk/id/local-authority/38,Oxfordshire County Council,NURSERY ED FUND,28/02/2024,5537,Payments to Other Establishments,3111623315,549.72,Poppy Elliott
http://statistics.data.gov.uk/id/local-authority/38,Oxfordshire County Council,NURSERY ED FUND,28/02/2024,5537,Payments to Other Establishments,3111622799,549.72,Sally Rosoman
http://statistics.data.gov.uk/id/local-authority/38,Oxfordshire County Council,NURSERY ED FUND,28/02/2024,5537,Payments to Other Establishments,3111622808,549.72,Sally Rosoman
http://statistics.data.gov.uk/id/local-authority/38,Oxfordshire County Council,NURSERY ED FUND,28/02/2024,5537,Payments to Other Establishments,3111617563,549.72,Saltway Day Nursery
http://statistics.data.gov.uk/id/local-authority/38,Oxfordshire County Council,NURSERY ED FUND,28/02/2024,5537,Payments to Other Establishments,3111617584,549.72,Saltway Day Nursery
http://statistics.data.gov.uk/id/local-authority/38,Oxfordshire County Council,NURSERY ED FUND,28/02/2024,5537,Payments to Other Establishments,3111625122,549.72,St Johns CofE Academy
http://statistics.data.gov.uk/id/local-authority/38,Oxfordshire County Council,NURSERY ED FUND,28/02/2024,5537,Payments to Other Establishments,3111625130,549.72,St Johns CofE Academy
http://statistics.data.gov.uk/id/local-authority/38,Oxfordshire County Council,NURSERY ED FUND,28/02/2024,5537,Payments to Other Establishments,3111625132,549.72,St Johns CofE Academy
http://statistics.data.gov.uk/id/local-authority/38,Oxfordshire County Council,NURSERY ED FUND,28/02/2024,5537,Payments to Other Establishments,3111625160,549.72,St Johns CofE Academy
http://statistics.data.gov.uk/id/local-authority/38,Oxfordshire County Council,NURSERY ED FUND,28/02/2024,5537,Payments to Other Establishments,3111623951,549.72,St Nicholas C of E Primary School
http://statistics.data.gov.uk/id/local-authority/38,Oxfordshire County Council,NURSERY ED FUND,28/02/2024,5537,Payments to Other Establishments,3111623952,549.72,St Nicholas C of E Primary School
http://statistics.data.gov.uk/id/local-authority/38,Oxfordshire County Council,NURSERY ED FUND,28/02/2024,5537,Payments to Other Establishments,3111621563,549.72,Standlake CE Primary School
